Workbook

Sheet Open
A2: Clark Real Estate Open
A3: Futurity | B3: Der | C3: HS | D3: Age Inct. | E3: Nom | F3: Av | G3: REV | H3: Draw | I3: Rider Name | J3: Horse Name | K3: Pen | L3: Time | M3: Final Time | N3: Placing | O3: Money Earned | Q3: D Placing | S3: Split
H4: 284 | I4: Sierra Shields | J4: HighSPeedtaheaven | L4: 15.541 | N4: 1D 1st | O4: 1171.8 | Q4: 1D
H5: 294 | I5: Ashley Schafer | J5: Jetts Letter Ta Abby | L5: 15.555 | N5: 1D 2nd | O5: 1004.4 | Q5: 2D | S5: 0.5
H6: 126 | I6: Andrea Busby | J6: Buckwyld | L6: 15.611 | N6: 1D 3rd | O6: 837 | Q6: 3D | S6: 0.5
D7: A | H7: 123 | I7: Cierra Chapman | J7: Sun In Fun | L7: 15.632 | N7: 1D 4th | O7: 669.6 | Q7: 4D | S7: 0.5
B8: X | H8: 84 | I8: Stephanie Fryar | J8: The Red Maserati | L8: 15.668 | N8: 1D 5th | O8: 502.2 | Q8: 5D | S8: 0.5
D9: S | H9: 418 | I9: Carmel Wright | J9: Fortunes Last Xtrem | L9: 15.686 | M9: =IF(OR(K9=5,K9=10, K9=15, K9="BP",K9="SCR"),"NT",L9) -> 15.686 | N9: 1D 6th | O9: 390.6
H10: 411 | I10: Stevi Hillman | J10: Truck | L10: 15.692 | M10: =IF(OR(K10=5,K10=10, K10=15, K10="BP",K10="SCR"),"NT",L10) -> 15.692 | N10: 1D 7th | O10: 334.8 | Q10: # Entered
B11: X | C11: X | H11: 351 | I11: Wenda Johnson | J11: Macgyver Moonflash | L11: 15.704 | N11: 1D 8th | O11: 279 | Q11: 415
A12: X | H12: 12 | I12: Stephanie Fryar | J12: RR LaJollas Roll | L12: 15.739 | N12: 1D 9th | O12: 223.2
H13: 388 | I13: Shaylee Hindman | J13: Oscar | L13: 15.784 | N13: 1D 10th | O13: 167.4 | Q13: # Ran
A14: X | G14: X | H14: 46 | I14: Kassie Mowry | J14: Famous Ladies Man | L14: 15.815 | Q14: 415
C15: X | D15: A | H15: 7 | I15: Jolene Montgomery | J15: Streakin Easily | L15: 15.818
H16: 266 | I16: Tandi Remy | J16: Cool Ta Fame | L16: 15.83 | Q16: # Left
D17: S | H17: 21 | I17: Sherri Barnes | J17: Famous Little Jet | L17: 15.842 | Q17: =$Q$11-$Q$14 -> 0
A18: X | D18: A | H18: 32 | I18: Kelly Allen | J18: Moons Fire Ta Fame | L18: 15.843
B19: X | C19: X | D19: Y | G19: X | H19: 364 | I19: Emily Becker | J19: MR Elegant Shawne | L19: 15.849
A20: X | D20: A | H20: 71 | I20: Jolene Montgomery | J20: Flits Khamacasse | L20: 15.86
A21: X | H21: 170 | I21: Kassie Mowry | J21: Dashing Canelo | L21: 15.87
A22: X | H22: 185 | I22: Jessie Domann | J22: Ima Perry N Famous | L22: 15.895
D23: Y | H23: 238 | I23: Emma Smith | J23: Double O Daryl | L23: 15.9
B24: X | D24: Y | H24: 355 | I24: Shannon Jensen | J24: Frenchmans Dashnista | L24: 15.932
A25: X | G25: X | H25: 108 | I25: Kassie Mowry | J25: CP He Will Be Epic | L25: 15.938
A26: X | G26: X | H26: 72 | I26: Kassie Mowry | J26: Epic Guy | L26: 15.942
A27: X | H27: 173 | I27: Kelsey Lutjen | J27: KN Luna | L27: 15.958
A28: X | C28: X | D28: A | H28: 103 | I28: Jolene Montgomery | J28: Firin Ta Heaven | L28: 15.959
H29: 200 | I29: Brian Ramirez | J29: Holly | L29: 15.966
H30: 373 | I30: Phillip Kenyon | J30: Tillies Hayday | L30: 15.981
D31: S | H31: 69 | I31: Sherri Barnes | J31: Racing For Perks | L31: 15.989
D32: A | H32: 271 | I32: Cassidy Kruse | J32: Guys Six Pack | L32: 15.99
H33: 188 | I33: Andrea Busby | J33: Taylor | L33: 15.991
D34: S | H34: 49 | I34: Jaque Woolman | J34: Another Bug | L34: 16
D35: S | G35: X | H35: 299 | I35: Lisa Wernli | J35: Flashs Fine Effort | L35: 16.005
H36: 60 | I36: Kim Ferguson | J36: Three Smashed Bugs | L36: 16.023
D37: Y | G37: X | H37: 342 | I37: Riley Cook | L37: 16.031
D38: A | H38: 156 | I38: Kaylee Gallino | J38: W Q Bar Socks | L38: 16.036
H39: 155 | I39: Andrea Busby | J39: Newly | L39: 16.037
H40: 58 | I40: Lisa Flores | J40: Make Me Macho | L40: 16.039
H41: 142 | I41: Nicole RIggle | J41: Famous Desire | L41: 16.062 | N41: 2D 1st | O41: 976.5
D42: A | H42: 119 | I42: Kaylee Gallino | J42: JC Baldy Frost | L42: 16.066 | N42: 2D 2nd | O42: 837
A43: X | H43: 372 | I43: Lacey Harmon | J43: Mitey Man | L43: 16.078 | N43: 2D 3rd | O43: 697.5
A44: X | H44: 104 | I44: Kelsey Lutjen | J44: TS Dash Dang It | L44: 16.081 | N44: 2D 4th | O44: 558
D45: S | G45: X | H45: 153 | I45: Teresa McClendon | J45: Striking Poses | L45: 16.106 | N45: 2D 5th | O45: 418.5
H46: 384 | I46: Paige Wiseman | J46: Eye Rule | L46: 16.116 | N46: 2D 6th | O46: 325.5
A47: X | H47: 390 | I47: James Barnes | J47: Flamin Flicka | L47: 16.132 | N47: 2D 7th | O47: 279
D48: Y | H48: 262 | I48: Kalli McCall | J48: Dr Nicks Cash | L48: 16.141 | N48: 2D 8th | O48: 232.5
G49: X | H49: 241 | I49: Chancie Rogers | J49: One Third Sugar | L49: 16.142 | N49: 2D 9th | O49: 186
A50: X | H50: 139 | I50: Andrea Cline | J50: Cruz N Ta Fame | L50: 16.147 | N50: 2D 10th | O50: 139.5
H51: 221 | I51: Hanna Forbes | J51: Eye Jess Zoomed Bye | L51: 16.152
D52: A | H52: 280 | I52: Brandy Vogue | J52: Dmac Hypnotize | L52: 16.156
H53: 339 | I53: Nicki Zimmerman | J53: Prime Gold | L53: 16.164
A54: X | H54: 349 | I54: Kim Squires | J54: Ima Diva Red Dasher | L54: 16.172
A55: X | H55: 141 | I55: Kassie Mowry | J55: Back The Blue | L55: 16.173
H56: 252 | I56: Wendy Suhn | J56: HLH Streakin A Fling | L56: 16.173
D57: A | H57: 322 | I57: Denny Ralls | J57: Whiskey | L57: 16.177
A58: X | H58: 421 | I58: James Barnes | J58: Slicks Sweet Legacy | L58: 16.184 | M58: =IF(OR(K58=5,K58=10, K58=15, K58="BP",K58="SCR"),"NT",L58) -> 16.184
D59: S | H59: 194 | I59: Mary Carter | J59: Bullys Tiger Eye | L59: 16.191
B60: X | H60: 111 | I60: Joy Wargo | J60: Run Leo Run | L60: 16.194
H61: 279 | I61: Laynee Massey | J61: Chula | L61: 16.196
D62: Y | G62: X | H62: 145 | I62: Haley Hunt | J62: Hoops | L62: 16.202
A63: X | H63: 256 | I63: Rachel Arms | J63: RY Wyatt Earl | L63: 16.205
H64: 239 | I64: Sarah Rau | J64: Shes SO Fuel | L64: 16.205
H65: 115 | I65: Chelsea Young | J65: Bogies French Hen | L65: 16.216
H66: 161 | I66: Hannah Sharon | J66: JL Redwood | L66: 16.217
H67: 308 | I67: Sadie Weldon | J67: Boots Classy Perks | L67: 16.22
D68: Y | H68: 117 | I68: Rhese Brough | J68: Wildcard Money | L68: 16.221
G69: X | H69: 244 | I69: Jamie Wilson | J69: Check Your Bet | L69: 16.221
H70: 303 | I70: Phillip Kenyon | J70: Contagious Charm | L70: 16.224
H71: 203 | I71: Lindsey Hoffman | J71: First Down Deception | L71: 16.225
A72: X | D72: A | H72: 30 | I72: Pete Oen | J72: HGF Flinging Frosted | L72: 16.227
H73: 354 | I73: Savannah Mantooth | J73: Feature Me French | L73: 16.238
A74: X | H74: 402 | I74: Jade Crago | J74: CM Sierras Fire Frost | L74: 16.239 | M74: =IF(OR(K74=5,K74=10, K74=15, K74="BP",K74="SCR"),"NT",L74) -> 16.239
D75: Y | H75: 135 | I75: Faith Ross | J75: Cash | L75: 16.245
H76: 94 | I76: Casey Hammons | J76: BH Trip Ta Fame | L76: 16.247
H77: 52 | I77: Lea Baze | J77: A Guy With Try | L77: 16.264
H78: 251 | I78: Shelby Shackelford | J78: RTF A Natural Stoli | L78: 16.28
H79: 105 | I79: Andrea Cline | J79: C3 Illegitimate Fame | L79: 16.282
D80: Y | G80: X | H80: 345 | I80: Josie Hartmann | J80: TR Illumniater Cash | L80: 16.289
A81: X | D81: S | H81: 387 | I81: Carmel Wright | J81: PG Eye Bully Fame | L81: 16.299
H82: 157 | I82: Sophie Nolen | J82: Guys Special Show | L82: 16.299
D83: S | H83: 92 | I83: Martha Smith | J83: Firewatermakemehappy | L83: 16.3
A84: X | H84: 386 | I84: Ryan Reynolds | J84: Kick of Fame | L84: 16.306
H85: 259 | I85: Shaylee Self | J85: Frio | L85: 16.318
H86: 100 | I86: Kacey Kirby | J86: VVR Corona Dash | L86: 16.32
A87: X | H87: 243 | I87: Brooke Kelley | J87: Nu Bueno Karma | L87: 16.327
H88: 295 | I88: Wendy Suhn | J88: She B Astreakin | L88: 16.33
A89: X | H89: 70 | I89: Danyelle Campbell | J89: Primrose Fame | L89: 16.332
H90: 254 | I90: Shannon Pearson | J90: Reds Roany Pony | L90: 16.335
A91: X | H91: 78 | I91: Kelsey Lutjen | J91: Blazin X's N Oh's | L91: 16.337
H92: 395 | I92: Kristen Hendewerk | J92: Sevens | L92: 16.338
H93: 297 | I93: Jolene Jones | J93: Streakin Louie | L93: 16.339
A94: X | D94: A | H94: 172 | I94: Jolene Montgomery | J94: Famously Perkin | L94: 16.34
H95: 168 | I95: Jo Kirby | J95: Heavenly Joak | L95: 16.341
H96: 177 | I96: Ashley Schafer | J96: Bailys Streakinchick | L96: 16.344
H97: 337 | I97: Madison Reich | J97: Pie | L97: 16.357
H98: 310 | I98: Kelly Bruner | J98: Tempting Teaser | L98: 16.363
A99: X | D99: S | H99: 3 | I99: Jaque Woolman | J99: Bugs A Boo | L99: 16.369
H100: 323 | I100: Sadie Holloway | J100: Sheeza Witty Lynx | L100: 16.378
H101: 328 | I101: Davie King | J101: Jessie | L101: 16.378
H102: 242 | I102: Lylan Cory | L102: 16.399
H103: 363 | I103: Emma Wildeisen | J103: It Is What It Is Guys | L103: 16.403
D104: A | H104: 107 | I104: Pete Oen | J104: Corona Four Fiesta | L104: 16.406
A105: X | H105: 128 | I105: Kelsey Lutjen | J105: TS Queens Shakem | L105: 16.408
A106: X | H106: 208 | I106: Nicole RIggle | J106: Moonshinesgotmefiren | L106: 16.408
H107: 112 | I107: Billie Ann Harmon | J107: Fire and Shake | L107: 16.41
D108: S | H108: 130 | I108: Debbie Rabb | J108: VF Famous Fooster | L108: 16.411
A109: X | H109: 101 | I109: Danyelle Campbell | J109: CP Winnie | L109: 16.416
D110: A | H110: 274 | I110: Kathy Vazquez | J110: Sail On Ta Fame | L110: 16.421
H111: 389 | I111: Misty Peek | J111: Amos | L111: 16.421
H112: 214 | I112: Megan Boone | J112: USS Bu Mercedes | L112: 16.43
H113: 45 | I113: Lacy Billingsley | J113: VF High N Famous | L113: 16.439
H114: 396 | I114: Kristi Tuinei | J114: Zippys Cash Ta Fame | L114: 16.442
A115: X | H115: 144 | I115: Joy Wargo | J115: Dash Ta Mirage | L115: 16.447
A116: x | H116: 159 | I116: Ryann Pedone | J116: Dash Ta Perfection | L116: 16.448
D117: Y | H117: 300 | I117: Kalli McCall | J117: Showdown San Man | L117: 16.467
H118: 23 | I118: Molli Montgomery | J118: Kindafeelinheavenly | L118: 16.472
A119: X | H119: 309 | I119: Cassidy Kruse | J119: Lost Creek Widow | L119: 16.481
A120: X | H120: 51 | I120: Kari Brough | J120: Hot French Lady | L120: 16.482
D121: A | H121: 228 | I121: Pete Oen | J121: Deans Terror | L121: 16.484
A122: X | H122: 391 | I122: Wyatt Paul | J122: Paparazzi Love Me | L122: 16.484
D123: S | G123: X | H123: 245 | I123: Terry Vogel | J123: BB Boogyingfrenchman | L123: 16.493
B124: X | D124: A | H124: 131 | I124: Cassidy Rabb | J124: VF Temptations | L124: 16.506
H125: 67 | I125: Nisa Berry | J125: Oscar | L125: 16.522
H126: 110 | I126: Nicole Riggle | J126: Desire To Be Famous | L126: 16.533
A127: X | H127: 127 | I127: Tasha Welch | J127: Victorious Firewater | L127: 16.543 | N127: 3D 1st | O127: 781.2
H128: 47 | I128: Sally Preston | J128: Cee U Later Gator | L128: 16.544 | N128: 3D 2nd | O128: 669.6
D129: Y | H129: 270 | I129: Emma Smith | J129: Pocket Fulla Pozzi | L129: 16.545 | N129: 3D 3rd | O129: 558
D130: A | H130: 88 | I130: Kendall Jordan | J130: Guns On Fire | L130: 16.553 | N130: 3D 4th/5th | O130: 391
H131: 257 | I131: Ryann Pedone | J131: Frosty | L131: 16.553 | N131: 3D 4th/5th | O131: 391
H132: 314 | I132: Kim Otwell | J132: BootcJustalena | L132: 16.555 | N132: 3D 6th | O132: 260.4
H133: 98 | I133: Shelby Scott | J133: Perty Biankus Chrome | L133: 16.556 | N133: 3D 7th | O133: 223.2
D134: Y | G134: X | H134: 376 | I134: Josie Hartmann | J134: Hes Honor | L134: 16.56 | N134: 3D 8th | O134: 186
H135: 403 | I135: Mindy Holloway | J135: H1 | L135: 16.562 | M135: =IF(OR(K135=5,K135=10, K135=15, K135="BP",K135="SCR"),"NT",L135) -> 16.562 | N135: 3D 9th | O135: 148.8
H136: 383 | I136: Danielle Wright | J136: Passngosmoothly | L136: 16.563 | N136: 3D 10th | O136: 111.6
D137: Y | G137: X | H137: 273 | I137: Stormi Branch | J137: Demon | L137: 16.565
H138: 346 | I138: Phillip Kenyon | J138: SV Sun Kinda Wonder | L138: 16.565
D139: A | H139: 180 | I139: Gayle Jones | J139: Credit Me For Hollan | L139: 16.567
D140: Y | H140: 335 | I140: Alex Stokes | J140: Mo Sugar Bars Bee | L140: 16.582
H141: 106 | I141: Sharin Hall | J141: Lillyliveninthesun | L141: 16.584
A142: X | H142: 218 | I142: Jessie Domann | J142: IRoseSuchAStinson | L142: 16.588
A143: X | D143: A | G143: X | H143: 36 | I143: Debbie Bloxom | J143: Bad Firing Rising | L143: 16.597
A144: X | D144: A | H144: 166 | I144: Pete Oen | J144: FC Black Firewater | L144: 16.617
D145: A | H145: 182 | I145: Kelsey Howard | J145: Midnight DJ | L145: 16.62
H146: 422 | I146: Blake Myers | J146: Swampy | L146: 16.626 | M146: =IF(OR(K146=5,K146=10, K146=15, K146="BP",K146="SCR"),"NT",L146) -> 16.626
H147: 20 | I147: Andrea Sewell | J147: Frenchmans Bellarose | L147: 16.642
A148: X | H148: 102 | I148: Andrea Sewell | J148: Uptown Fame | L148: 16.65
H149: 423 | I149: Makala Pierce | J149: Hasta | L149: 16.653 | M149: =IF(OR(K149=5,K149=10, K149=15, K149="BP",K149="SCR"),"NT",L149) -> 16.653
A150: X | H150: 204 | I150: Madison Merrill | J150: RS Forever Famous | L150: 16.657
D151: S | H151: 292 | I151: Lynn Saunders | J151: Chumly | L151: 16.668
H152: 312 | I152: Tasha Welch | J152: Rummy | L152: 16.669
D153: A | H153: 400 | I153: Jess Lewis | J153: Francy Streak | L153: 16.678 | M153: =IF(OR(K153=5,K153=10, K153=15, K153="BP",K153="SCR"),"NT",L153) -> 16.678
H154: 232 | I154: Ashley Schafer | J154: One Blazin Fire | L154: 16.678
H155: 44 | I155: Amber Green | J155: Twister | L155: 16.686
H156: 186 | I156: Fallon Forbes | J156: Latte To Go | L156: 16.695
H157: 196 | I157: McKinley Goodger | J157: Fame Us First Lady | L157: 16.695
H158: 152 | I158: Kelsey Lutjen | J158: MS Tres Perks | L158: 16.71
B159: X | C159: X | H159: 329 | I159: Haley Bowen | J159: Sadies Superman | L159: 16.711
H160: 223 | I160: Meredith Minoletti | J160: Maseratis Fourtune | L160: 16.713
G161: X | H161: 344 | I161: Kyann Hartmann | J161: SS Dreamin of Roses | L161: 16.713
H162: 192 | I162: Chelsea Young | J162: Tressy Oaks | L162: 16.729
H163: 205 | I163: Ashley Schafer | J163: Fling Ta Famous | L163: 16.732
D164: A | G164: X | H164: 10 | I164: Jennifer Abbott | J164: Wendall Jackson | L164: 16.735
D165: Y | H165: 378 | I165: Alex Stokes | J165: View This Lady Rose | L165: 16.737
A166: X | H166: 191 | I166: Ryann Pedone | J166: Sudden Hero | L166: 16.74
H167: 42 | I167: Jennifer Fite | J167: Firewater Edition | L167: 16.74
H168: 366 | I168: Shelly Lilley-O | J168: Winston | L168: 16.749
A169: X | H169: 62 | I169: Lauren Whitmire | J169: Down Dash Anytime | L169: 16.753
H170: 229 | I170: Jessica Sitzes | J170: Miss Mighty Invictus | L170: 16.753
H171: 4 | I171: Nicole Meadows | J171: Calibshippityhop | L171: 16.76
H172: 124 | I172: Ashley Schafer | J172: La Jollas Isastreaker | L172: 16.769
D173: S | H173: 227 | I173: Connie Randolph | J173: Hot Rod Kitty Cat | L173: 16.778
A174: X | H174: 38 | I174: Danyelle Campbell | J174: Dirrty Money | L174: 16.78
A175: X | H175: 14 | I175: Kari Brough | J175: Frenchmantwistedfame | L175: 16.784
H176: 22 | I176: Karen Shelley | J176: Flying Bar Bailey | L176: 16.791
D177: A | H177: 146 | I177: Kelsey Howard | J177: Triple Gold Time | L177: 16.8
A178: X | H178: 56 | I178: SheaLynn Leach | J178: Peter Wabbit | L178: 16.808
H179: 99 | I179: Hannah Hertel | J179: Egos Moving Effort | L179: 16.81
B180: X | D180: A | H180: 169 | I180: Cassidy Rabb | J180: VF Coup Fulla Coins | L180: 16.811
H181: 48 | I181: Andrea Cline | J181: Famous LaJolla | L181: 16.812
H182: 86 | I182: Cadee Williams | J182: Munchkin | L182: 16.819
H183: 11 | I183: Lea Baze | J183: Sheza Smooth Dash | L183: 16.825
H184: 375 | I184: Stevie Ann Wilhelm | J184: Picosita Shake | L184: 16.831
H185: 39 | I185: Rachel Primm | J185: Foolish In My Socks | L185: 16.833
H186: 28 | I186: Kim Ferguson | J186: Dudes Spectacular Bag | L186: 16.835
H187: 96 | I187: SheaLynn Leach | J187: NMD ChestersLilBunny | L187: 16.835
A188: X | D188: A | H188: 143 | I188: Pete Oen | J188: Fyre In The Skye | L188: 16.837
D189: A | H189: 209 | I189: Mandy Holloway | J189: First Touch of Fire | L189: 16.838
H190: 162 | I190: Hailey Loose | J190: Shiners Blue Frost | L190: 16.842
D191: Y | H191: 417 | I191: Shannon Jensen | J191: Frenchmans Lajolla | L191: 16.85 | M191: =IF(OR(K191=5,K191=10, K191=15, K191="BP",K191="SCR"),"NT",L191) -> 16.85
D192: A | H192: 278 | I192: Alisha Todd | J192: Sheza Amarillo Doc | L192: 16.853
D193: A | H193: 233 | I193: Kylena Hager | J193: Bar B Firewater Steel | L193: 16.867
D194: A | H194: 359 | I194: Tammy Hickey | J194: Josey | L194: 16.873
H195: 6 | I195: Lacy Billingsley | J195: Dirty Dizco Diane 37 | L195: 16.884
H196: 247 | I196: Tami Claflin | J196: Thursday Cash A Chex | L196: 16.911
H197: 290 | I197: Sam Boone | J197: Dan | L197: 16.919
B198: X | H198: 224 | I198: Ashley Martinkus | J198: Jane | L198: 16.921
D199: Y | G199: X | H199: 356 | I199: Bradie Bacon | J199: Millie | L199: 16.925
A200: X | H200: 93 | I200: Ashley Schafer | J200: Streakin Cisco | L200: 16.925
H201: 332 | I201: Gretchen Goedeken | J201: Fine Whatever | L201: 16.935
... 302 more rows

Sheet Senior
A1: Futurity | B1: Der | C1: Age Inct. | D1: BBR | E1: Draw | F1: Rider Name | G1: Horse Name | H1: Pen | I1: Time | J1: Final Time | K1: Placing | L1: Money Earned
E2: 1 | F2: Carmel Wright | G2: Fortunes Last Xtrem | I2: 15.686 | K2: 1D 1st | L2: 147
E3: 2 | F3: Sherri Barnes | G3: Famous Little Jet | I3: 15.842 | K3: 1D 2nd | L3: 98
E4: 3 | F4: Sherri Barnes | G4: Racing For Perks | I4: 15.989
E5: 4 | F5: Jaque Woolman | G5: Another Bug | I5: 16
E6: 5 | F6: Lisa Wernli | G6: Flashs Fine Effort | I6: 16.005
E7: 6 | F7: Teresa McClendon | G7: Striking Poses | I7: 16.106
E8: 7 | F8: Mary Carter | G8: Bullys Tiger Eye | I8: 16.191 | K8: 2D 1st | L8: 126
E9: 8 | F9: Carmel Wright | G9: PG Eye Bully Fame | I9: 16.299 | K9: 2D 2nd | L9: 84
E10: 9 | F10: Martha Smith | G10: Firewatermakemehappy | I10: 16.3
E11: 10 | F11: Jaque Woolman | G11: Bugs A Boo | I11: 16.369
E12: 11 | F12: Debbie Rabb | G12: VF Famous Fooster | I12: 16.411
E13: 12 | F13: Terry Vogel | G13: BB Boogyingfrenchman | I13: 16.493
E14: 13 | F14: Lynn Saunders | G14: Chumly | I14: 16.668
E15: 14 | F15: Connie Randolph | G15: Hot Rod Kitty Cat | I15: 16.778 | K15: 3D 1st | L15: 84
E16: 15 | F16: Simone Elmore | G16: Badger A Conchadrift | I16: 16.954 | K16: 3D 2nd | L16: 56
E17: 16 | F17: Curtis Watson | G17: Peppy Fire Frost | I17: 17.054
E18: 17 | F18: Lisa Wernli | G18: PROUDTOBEFRENCH | I18: 17.074
E19: 18 | F19: Tracy Henderson | G19: Heza Stray Cat | I19: 17.076
E20: 19 | F20: Terry Quintana | G20: Jerry | I20: 17.091
E21: 20 | F21: Glenda Barnett | G21: Miss Famous Beduino | I21: 17.241 | K21: 4D 1st | L21: 63
E22: 21 | F22: Terry Vogel | G22: Imablueyedblondbitz | I22: 17.464 | K22: 4D 2nd | L22: 42
E23: 22 | F23: Martha Smith | G23: My Epic Moment | I23: 17.626
E24: 23 | F24: Kevin Davis | G24: Gibbs | I24: 17.651
E25: 24 | F25: DeeDee Jordan | G25: Little Yella Draw | I25: 27.918
E26: 25 | F26: DeeDee Jordan | G26: First Rappin Judge | I26: nt
E27: 26 | F27: Martha Jordan | G27: JLFourtafame | I27: nt16.213
E28: 27 | F28: Jill Harbour | G28: Bullit Proof | I28: nt16.306
E29: 28 | F29: Shelly Shields | G29: Streakers Queen | I29: nt16.558
E30: 29 | F30: Debbie Bloxom | G30: KN Born This Way | I30: nt16.578
E31: 30 | F31: Kathy Muehlen | G31: Fly Away Gal | I31: nt16.659
E32: 31 | F32: Lisa Cotter | G32: Sonitas Shaker | I32: nt16.708
E33: 32 | F33: Glenda Barnett | G33: Highonbrownwhiskey | I33: nt16.76
E34: 33 | F34: Debbie Rabb | G34: FirewaterzLil Fritz | I34: nt17.282
E35: 34 | F35: Martha Smith | G35: Victory Blue Moon | I35: nt17.698
E36: 35 | F36: Kathy Minteer | G36: Lil Bit | I36: nt18.805
E37: 36
E38: 37
E39: 38
E40: 39
E41: 40
E42: 41 | J42: =IF(OR(H42=5,H42=10, H42=15, H42="BP",H42="SCR"),"NT",I42) -> 0
E43: 42 | J43: 0
E44: 43 | J44: 0
E45: 44 | J45: 0
E46: 45 | J46: 0
E47: 46 | J47: 0
E48: 47 | J48: 0
E49: 48 | J49: 0
E50: 49 | J50: 0
E51: 50 | J51: 0
E52: 51 | J52: 0
E53: 52 | J53: 0
E54: 53 | J54: 0
E55: 54 | J55: 0
E56: 55 | J56: 0
E57: 56 | J57: 0
E58: 57 | J58: 0
E59: 58 | J59: 0
E60: 59 | J60: 0
E61: 60 | J61: 0
E62: 61 | J62: 0
E63: 62 | J63: 0
E64: 63 | J64: 0
E65: 64 | J65: 0
E66: 65 | J66: 0
E67: 66 | J67: =IF(OR(H67=5,H67=10, H67=15, H67="BP",H67="SCR"),"NT",I67) -> 0
E68: 67 | J68: 0
E69: 68 | J69: 0
E70: 69 | J70: 0
E71: 70 | J71: 0
E72: 71 | J72: 0
E73: 72 | J73: 0
E74: 73 | J74: 0
E75: 74 | J75: 0
E76: 75 | J76: 0
E77: 76 | J77: 0
E78: 77 | J78: 0
E79: 78 | J79: 0
E80: 79 | J80: 0
E81: 80 | J81: 0
E82: 81 | J82: 0
E83: 82 | J83: 0
E84: 83 | J84: 0
E85: 84 | J85: 0
E86: 85 | J86: 0
E87: 86 | J87: 0
E88: 87 | J88: 0
E89: 88 | J89: 0
E90: 89 | J90: 0
E91: 90 | J91: 0
E92: 91 | J92: 0
E93: 92 | J93: 0
E94: 93 | J94: 0
E95: 94 | J95: 0
E96: 95 | J96: 0
E97: 96 | J97: 0
E98: 97 | J98: 0
E99: 98 | J99: 0
E100: 99 | J100: 0
E101: 100 | J101: 0
E102: 101 | J102: 0
E103: 102 | J103: 0
E104: 103 | J104: 0
E105: 104 | J105: 0
E106: 105 | J106: 0
E107: 106 | J107: 0
E108: 107 | J108: 0
E109: 108 | J109: 0
E110: 109 | J110: 0
E111: 110 | J111: 0
E112: 111 | J112: 0
E113: 112 | J113: 0
E114: 113 | J114: 0
E115: 114 | J115: 0
E116: 115 | J116: 0
E117: 116 | J117: 0
E118: 117 | J118: 0
E119: 118 | J119: 0
E120: 119 | J120: 0
E121: 120 | J121: 0
E122: 121 | J122: 0
E123: 122 | J123: 0
E124: 123 | J124: 0
E125: 124 | J125: 0
E126: 125 | J126: 0
E127: 126 | J127: 0
E128: 127 | J128: 0
E129: 128 | J129: 0
E130: 129 | J130: 0
E131: 130 | J131: =IF(OR(H131=5,H131=10, H131=15, H131="BP",H131="SCR"),"NT",I131) -> 0
E132: 131 | J132: 0
E133: 132 | J133: 0
E134: 133 | J134: 0
E135: 134 | J135: 0
E136: 135 | J136: 0
E137: 136 | J137: 0
E138: 137 | J138: 0
E139: 138 | J139: 0
E140: 139 | J140: 0
E141: 140 | J141: 0
E142: 141 | J142: 0
E143: 142 | J143: 0
E144: 143 | J144: 0
E145: 144 | J145: 0
E146: 145 | J146: 0
E147: 146 | J147: 0
E148: 147 | J148: 0
E149: 148 | J149: 0
E150: 149 | J150: 0
E151: 150 | J151: 0
E152: 151 | J152: 0
E153: 152 | J153: 0
E154: 153 | J154: 0
E155: 154 | J155: 0
E156: 155 | J156: 0
E157: 156 | J157: 0
E158: 157 | J158: 0
E159: 158 | J159: 0
E160: 159 | J160: 0
E161: 160 | J161: 0
E162: 161 | J162: 0
E163: 162 | J163: 0
E164: 163 | J164: 0
E165: 164 | J165: 0
E166: 165 | J166: 0
E167: 166 | J167: 0
E168: 167 | J168: 0
E169: 168 | J169: 0
E170: 169 | J170: 0
E171: 170 | J171: 0
E172: 171 | J172: 0
E173: 172 | J173: 0
E174: 173 | J174: 0
E175: 174 | J175: 0
E176: 175 | J176: 0
E177: 176 | J177: 0
E178: 177 | J178: 0
E179: 178 | J179: 0
E180: 179 | J180: 0
E181: 180 | J181: 0
E182: 181 | J182: 0
E183: 182 | J183: 0
E184: 183 | J184: 0
E185: 184 | J185: 0
E186: 185 | J186: 0
E187: 186 | J187: 0
E188: 187 | J188: 0
E189: 188 | J189: 0
E190: 189 | J190: 0
E191: 190 | J191: 0
E192: 191 | J192: 0
E193: 192 | J193: 0
E194: 193 | J194: 0
E195: 194 | J195: =IF(OR(H195=5,H195=10, H195=15, H195="BP",H195="SCR"),"NT",I195) -> 0
E196: 195 | J196: 0
E197: 196 | J197: 0
E198: 197 | J198: 0
E199: 198 | J199: 0
E200: 199 | J200: 0
... 101 more rows

Sheet Adult
A1: Futurity | B1: Der | C1: Age Inct. | D1: BBR | E1: Draw | F1: Rider Name | G1: Horse Name | H1: Pen | I1: Time | J1: Final Time | K1: Placing | L1: Money Earned
E2: 1 | F2: Cierra Chapman | G2: Sun In Fun | I2: 15.632 | K2: 1D 1st | L2: 245
E3: 2 | F3: Jolene Montgomery | G3: Streakin Easily | I3: 15.818 | K3: 1D 2nd | L3: 196
E4: 3 | F4: Kelly Allen | G4: Moons Fire Ta Fame | I4: 15.843 | K4: 1D 3nd | L4: 147
E5: 4 | F5: Jolene Montgomery | G5: Flits Khamacasse | I5: 15.86
E6: 5 | F6: Jolene Montgomery | G6: Firin Ta Heaven | I6: 15.959
E7: 6 | F7: Cassidy Kruse | G7: Guys Six Pack | I7: 15.99
E8: 7 | F8: Kaylee Gallino | G8: W Q Bar Socks | I8: 16.036
E9: 8 | F9: Kaylee Gallino | G9: JC Baldy Frost | I9: 16.066
E10: 9 | F10: Brandy Vogue | G10: Dmac Hypnotize | I10: 16.156 | K10: 2D 1st | L10: 210
E11: 10 | F11: Denny Ralls | G11: Whiskey | I11: 16.177 | K11: 2D 2nd | L11: 126
E12: 11 | F12: Pete Oen | G12: HGF Flinging Frosted | I12: 16.227 | K12: 2D 3rd | L12: 84
E13: 12 | F13: Jolene Montgomery | G13: Famously Perkin | I13: 16.34
E14: 13 | F14: Pete Oen | G14: Corona Four Fiesta | I14: 16.406
E15: 14 | F15: Kathy Vazquez | G15: Sail On Ta Fame | I15: 16.421
E16: 15 | F16: Pete Oen | G16: Deans Terror | I16: 16.484
E17: 16 | F17: Cassidy Rabb | G17: VF Temptations | I17: 16.506
E18: 17 | F18: Kendall Jordan | G18: Guns On Fire | I18: 16.553
E19: 18 | F19: Gayle Jones | G19: Credit Me For Hollan | I19: 16.567
E20: 19 | F20: Debbie Bloxom | G20: Bad Firing Rising | I20: 16.597
E21: 20 | F21: Pete Oen | G21: FC Black Firewater | I21: 16.617
E22: 21 | F22: Kelsey Howard | G22: Midnight DJ | I22: 16.62
E23: 22 | F23: Jess Lewis | G23: Francy Streak | I23: 16.678 | K23: 3D 1st | L23: 140
E24: 23 | F24: Jennifer Abbott | G24: Wendall Jackson | I24: 16.735 | K24: 3D 2nd | L24: 84
E25: 24 | F25: Kelsey Howard | G25: Triple Gold Time | I25: 16.8 | K25: 3D 3rd | L25: 56
E26: 25 | F26: Cassidy Rabb | G26: VF Coup Fulla Coins | I26: 16.811
E27: 26 | F27: Pete Oen | G27: Fyre In The Skye | I27: 16.837
E28: 27 | F28: Mandy Holloway | G28: First Touch of Fire | I28: 16.838
E29: 28 | F29: Alisha Todd | G29: Sheza Amarillo Doc | I29: 16.853
E30: 29 | F30: Kylena Hager | G30: Bar B Firewater Steel | I30: 16.867
E31: 30 | F31: Tammy Hickey | G31: Josey | I31: 16.873
E32: 31 | F32: Nicole Buell | G32: Dirty Money | I32: 16.938
E33: 32 | F33: Shantell Hayes | G33: Pixie | I33: 16.952
E34: 33 | F34: Tristan Mounts | G34: Blazed Gunsmoke | I34: 16.999
E35: 34 | F35: Tiffany Durham | G35: Hippie | I35: 17.132 | K35: 4D 1st | L35: 105
E36: 35 | F36: Melissa Jones | G36: Threes Royal Derby | I36: 17.195 | K36: 4D 2nd | L36: 63
E37: 36 | F37: Gayle Jones | G37: CASh N Bubbles | I37: 17.204 | K37: 4D 3rd | L37: 42
E38: 37 | F38: Tiffany Cox | G38: C3Lacy | I38: 17.214
E39: 38 | F39: Lynn Whisenant | G39: Hezawonderstreakin | I39: 17.242
E40: 39 | F40: Aryn Wilkerson | G40: SpicyLitttleStar | I40: 17.321
E41: 40 | F41: Jennifer Abbott | G41: Blazin Wagon | I41: 17.324
E42: 41 | F42: Reagan Jackson | G42: Power TO The Moon | I42: 17.379
E43: 42 | F43: Chelsie Petty | G43: Jade | I43: 17.452
E44: 43 | F44: Charlotte Edwards | G44: VF Eye Of Tiger | I44: 17.566
E45: 44 | F45: Charlotte Edwards | G45: TR Hibbie Chick | I45: 17.576
E46: 45 | F46: Kelly Allen | G46: Miss JB 149 | I46: 17.594
E47: 46 | F47: Dominique Henderson | G47: Me Loves A Crowd | I47: 17.613
E48: 47 | F48: Sharin Hall | G48: Fast Dashin Chick | I48: 17.726
E49: 48 | F49: Kelli Ann McPherson | G49: Bar B Arabella Bug | I49: 17.744
E50: 49 | F50: Tiffany Durham | G50: Luke | I50: 17.926
E51: 50 | F51: Tallaney Nilson | G51: Alida | I51: 18.52
E52: 51 | F52: Kristi Smith | G52: Frenchmans Playgun | I52: 19.625
E53: 52 | F53: Reagan Jackson | G53: CPB Ryker | I53: 19.747
E54: 53 | F54: Pete Oen | G54: Strait To Dallas | I54: 20.698
E55: 54 | F55: Jolene Montgomery | G55: Promise Me A Jet | I55: nt
E56: 55 | F56: Tiffany Durham | G56: Rudy | I56: nt
E57: 56 | F57: Kylena Hager | G57: The Savoy Express | I57: nt
E58: 57 | F58: Kaylee Gallino | G58: JC Truly Bob | I58: nt15.772
E59: 58 | F59: Shantell Hayes | G59: Cougar | I59: nt16.042
E60: 59 | F60: Annabelle Martin | G60: DTF Making My Way | I60: nt16.095
E61: 60 | F61: Molli Montgomery | G61: Heavensfeelinspecial | I61: nt16.131
E62: 61 | F62: Carissa Bryant | G62: Flaming Money Buggy | I62: nt16.244
E63: 62 | F63: Gayle Jones | G63: LS Corona Winsalot | I63: nt16.256
E64: 63 | F64: Jolene Montgomery | G64: Smooth N Heavenly | I64: nt16.526
E65: 64 | F65: Lauren Thomas | G65: Dragons Fancy Pistol | I65: nt16.863
E66: 65 | F66: Melissa Patterson | G66: Blue | I66: nt16.930
E67: 66 | F67: Kaylyn Smith | G67: Classic Royal Star | I67: nt17.344
E68: 67 | F68: Cierra Chapman | G68: Lever Action | I68: nt17.884
E69: 68 | F69: Joanna Kysar | G69: Max | I69: nt18.407
E70: 69 | F70: Courtney Millsap | G70: Kat | I70: nt18.716
E71: 70 | F71: Pete Oen | G71: Fame TO The Max | I71: nt19.422 | J71: =IF(OR(H71=5,H71=10, H71=15, H71="BP",H71="SCR"),"NT",I71) -> nt19.422
E72: 71 | J72: 0
E73: 72 | J73: 0
E74: 73 | J74: 0
E75: 74 | J75: 0
E76: 75 | J76: 0
E77: 76 | J77: 0
E78: 77 | J78: 0
E79: 78 | J79: 0
E80: 79 | J80: 0
E81: 80 | J81: 0
E82: 81 | J82: 0
E83: 82 | J83: 0
E84: 83 | J84: 0
E85: 84 | J85: 0
E86: 85 | J86: 0
E87: 86 | J87: 0
E88: 87 | J88: 0
E89: 88 | J89: 0
E90: 89 | J90: 0
E91: 90 | J91: 0
E92: 91 | J92: 0
E93: 92 | J93: 0
E94: 93 | J94: 0
E95: 94 | J95: 0
E96: 95 | J96: 0
E97: 96 | J97: 0
E98: 97 | J98: 0
E99: 98 | J99: 0
E100: 99 | J100: 0
E101: 100 | J101: 0
E102: 101 | J102: 0
E103: 102 | J103: 0
E104: 103 | J104: 0
E105: 104 | J105: 0
E106: 105 | J106: 0
E107: 106 | J107: 0
E108: 107 | J108: 0
E109: 108 | J109: 0
E110: 109 | J110: 0
E111: 110 | J111: 0
E112: 111 | J112: 0
E113: 112 | J113: 0
E114: 113 | J114: 0
E115: 114 | J115: 0
E116: 115 | J116: 0
E117: 116 | J117: 0
E118: 117 | J118: 0
E119: 118 | J119: 0
E120: 119 | J120: 0
E121: 120 | J121: 0
E122: 121 | J122: 0
E123: 122 | J123: 0
E124: 123 | J124: 0
E125: 124 | J125: 0
E126: 125 | J126: 0
E127: 126 | J127: 0
E128: 127 | J128: 0
E129: 128 | J129: 0
E130: 129 | J130: 0
E131: 130 | J131: =IF(OR(H131=5,H131=10, H131=15, H131="BP",H131="SCR"),"NT",I131) -> 0
E132: 131 | J132: 0
E133: 132 | J133: 0
E134: 133 | J134: 0
E135: 134 | J135: 0
E136: 135 | J136: 0
E137: 136 | J137: 0
E138: 137 | J138: 0
E139: 138 | J139: 0
E140: 139 | J140: 0
E141: 140 | J141: 0
E142: 141 | J142: 0
E143: 142 | J143: 0
E144: 143 | J144: 0
E145: 144 | J145: 0
E146: 145 | J146: 0
E147: 146 | J147: 0
E148: 147 | J148: 0
E149: 148 | J149: 0
E150: 149 | J150: 0
E151: 150 | J151: 0
E152: 151 | J152: 0
E153: 152 | J153: 0
E154: 153 | J154: 0
E155: 154 | J155: 0
E156: 155 | J156: 0
E157: 156 | J157: 0
E158: 157 | J158: 0
E159: 158 | J159: 0
E160: 159 | J160: 0
E161: 160 | J161: 0
E162: 161 | J162: 0
E163: 162 | J163: 0
E164: 163 | J164: 0
E165: 164 | J165: 0
E166: 165 | J166: 0
E167: 166 | J167: 0
E168: 167 | J168: 0
E169: 168 | J169: 0
E170: 169 | J170: 0
E171: 170 | J171: 0
E172: 171 | J172: 0
E173: 172 | J173: 0
E174: 173 | J174: 0
E175: 174 | J175: 0
E176: 175 | J176: 0
E177: 176 | J177: 0
E178: 177 | J178: 0
E179: 178 | J179: 0
E180: 179 | J180: 0
E181: 180 | J181: 0
E182: 181 | J182: 0
E183: 182 | J183: 0
E184: 183 | J184: 0
E185: 184 | J185: 0
E186: 185 | J186: 0
E187: 186 | J187: 0
E188: 187 | J188: 0
E189: 188 | J189: 0
E190: 189 | J190: 0
E191: 190 | J191: 0
E192: 191 | J192: 0
E193: 192 | J193: 0
E194: 193 | J194: 0
E195: 194 | J195: =IF(OR(H195=5,H195=10, H195=15, H195="BP",H195="SCR"),"NT",I195) -> 0
E196: 195 | J196: 0
E197: 196 | J197: 0
E198: 197 | J198: 0
E199: 198 | J199: 0
E200: 199 | J200: 0
... 101 more rows

Sheet Youth
A1: Futurity | B1: Der | C1: Age Inct. | D1: BBR | E1: Draw | F1: Rider Name | G1: Horse Name | H1: Pen | I1: Time | J1: Placing | K1: Money Earned
E2: 1 | F2: Emily Becker | G2: MR Elegant Shawne | I2: 15.849 | J2: 1D 1st | K2: 130
E3: 2 | F3: Emma Smith | G3: Double O Daryl | I3: 15.9 | J3: 1D 2nd | K3: 87
E4: 3 | F4: Shannon Jensen | G4: Frenchmans Dashnista | I4: 15.932
E5: 4 | F5: Riley Cook | I5: 16.031
E6: 5 | F6: Kalli McCall | G6: Dr Nicks Cash | I6: 16.141
E7: 6 | F7: Haley Hunt | G7: Hoops | I7: 16.202
E8: 7 | F8: Rhese Brough | G8: Wildcard Money | I8: 16.221
E9: 8 | F9: Faith Ross | G9: Cash | I9: 16.245
E10: 9 | F10: Josie Hartmann | G10: TR Illumniater Cash | I10: 16.289
E11: 10 | F11: Kalli McCall | G11: Showdown San Man | I11: 16.467 | J11: 2D 1st | K11: 112
E12: 11 | F12: Emma Smith | G12: Pocket Fulla Pozzi | I12: 16.545 | J12: 2D 2nd | K12: 74
E13: 12 | F13: Josie Hartmann | G13: Hes Honor | I13: 16.56
E14: 13 | F14: Stormi Branch | G14: Demon | I14: 16.565
E15: 14 | F15: Alex Stokes | G15: Mo Sugar Bars Bee | I15: 16.582
E16: 15 | F16: Shannon Jensen | G16: Frenchmans Lajolla | I16: 16.85 | J16: 3D 1st | K16: 74
E17: 16 | F17: Bradie Bacon | G17: Millie | I17: 16.925 | J17: 3D 2nd | K17: 50
E18: 17 | F18: Corlee Massey | G18: Easy | I18: 17.076
E19: 18 | F19: Bella Skinner | G19: Shorty | I19: 17.081
E20: 19 | F20: Jolie Smith | G20: Docs Lil Leo | I20: 17.256
E21: 20 | F21: Kalli McCall | G21: All That Blizz | I21: 17.658 | J21: 4D 1st | K21: 56
E22: 21 | F22: Alex Stokes | G22: View This Lady Rose | I22: 17.842 | J22: 4D 2nd | K22: 37
E23: 22 | F23: Cara Crider | G23: Diesel | I23: 18.42
E24: 23 | F24: Cienna Jacobson | G24: Pixie | I24: 18.517
E25: 24 | F25: Walter Wolfe | G25: Texas | I25: 18.684
E26: 25 | F26: Mekenna Davis | G26: Dreamin N French | I26: nt15.680
E27: 26 | F27: Brynn Owens | G27: StrawflyintheGold | I27: nt16.165
E28: 27 | F28: Shannon Jensen | G28: Flits French Blondie | I28: nt16.294
E29: 28 | F29: Makynna Baldwin | G29: TE Prissy | I29: nt17.080
E30: 29 | F30: Brooke Hickey | G30: Shaggy | I30: nt17.081
E31: 30 | F31: Makynna Baldwin | G31: Norfleets Valley Girl | I31: nt17.739
E32: 31 | F32: Reece Cook | G32: Frost | I32: nt17.983
E33: 32
E34: 33
E35: 34
E36: 35
E37: 36
E38: 37
E39: 38
E40: 39
E41: 40
E42: 41
E43: 42
E44: 43
E45: 44
E46: 45
E47: 46
E48: 47
E49: 48
E50: 49
E51: 50
E52: 51
E53: 52
E54: 53
E55: 54
E56: 55
E57: 56
E58: 57
E59: 58
E60: 59
E61: 60
E62: 61
E63: 62
E64: 63
E65: 64
E66: 65
E67: 66
E68: 67
E69: 68
E70: 69
E71: 70
E72: 71
E73: 72
E74: 73
E75: 74
E76: 75
E77: 76
E78: 77
E79: 78
E80: 79
E81: 80
E82: 81
E83: 82
E84: 83
E85: 84
E86: 85
E87: 86
E88: 87
E89: 88
E90: 89
E91: 90
E92: 91
E93: 92
E94: 93
E95: 94
E96: 95
E97: 96
E98: 97
E99: 98
E100: 99
E101: 100
E102: 101
E103: 102
E104: 103
E105: 104
E106: 105
E107: 106
E108: 107
E109: 108
E110: 109
E111: 110
E112: 111
E113: 112
E114: 113
E115: 114
E116: 115
E117: 116
E118: 117
E119: 118
E120: 119
E121: 120
E122: 121
E123: 122
E124: 123
E125: 124
E126: 125
E127: 126
E128: 127
E129: 128
E130: 129
E131: 130
E132: 131
E133: 132
E134: 133
E135: 134
E136: 135
E137: 136
E138: 137
E139: 138
E140: 139
E141: 140
E142: 141
E143: 142
E144: 143
E145: 144
E146: 145
E147: 146
E148: 147
E149: 148
E150: 149
E151: 150
E152: 151
E153: 152
E154: 153
E155: 154
E156: 155
E157: 156
E158: 157
E159: 158
E160: 159
E161: 160
E162: 161
E163: 162
E164: 163
E165: 164
E166: 165
E167: 166
E168: 167
E169: 168
E170: 169
E171: 170
E172: 171
E173: 172
E174: 173
E175: 174
E176: 175
E177: 176
E178: 177
E179: 178
E180: 179
E181: 180
E182: 181
E183: 182
E184: 183
E185: 184
E186: 185
E187: 186
E188: 187
E189: 188
E190: 189
E191: 190
E192: 191
E193: 192
E194: 193
E195: 194
E196: 195
E197: 196
E198: 197
E199: 198
E200: 199
... 101 more rows

Sheet Derby
A1: Futurity | B1: Der | C1: Age Inct. | D1: BBR | E1: Draw | F1: Rider Name | G1: Horse Name | H1: c/o | I1: Time | J1: Final Time | K1: Placing | L1: Money Earned
E2: 1 | F2: Stephanie Fryar | G2: The Red Maserati | I2: 15.668 | K2: 1st | L2: 190
E3: 2 | F3: Wenda Johnson | G3: Macgyver Moonflash | I3: 15.704 | K3: 2nd | L3: 114
E4: 3 | F4: Emily Becker | G4: MR Elegant Shawne | I4: 15.849 | K4: 3rd | L4: 76
E5: 4 | F5: Shannon Jensen | G5: Frenchmans Dashnista | I5: 15.932
E6: 5 | F6: Joy Wargo | G6: Run Leo Run | I6: 16.194
E7: 6 | F7: Cassidy Rabb | G7: VF Temptations | I7: 16.506
E8: 7 | F8: Haley Bowen | G8: Sadies Superman | I8: 16.711
E9: 8 | F9: Cassidy Rabb | G9: VF Coup Fulla Coins | I9: 16.811
E10: 9 | F10: Ashley Martinkus | G10: Jane | I10: 16.921
E11: 10 | F11: Ashley Martinkus | G11: Famous First Flight | I11: 17.296
E12: 11 | F12: Hanna Forbes | G12: Ivory Candy | I12: 17.443
E13: 12 | F13: Jolene Montgomery | G13: Promise Me A Jet | I13: nt
E14: 13 | F14: Cierra Chapman | G14: Impackinfrenchpistol | I14: nt
E15: 14 | F15: Mekenna Davis | G15: Dreamin N French | I15: nt15.680
E16: 15 | F16: Cheyenne Wimberly | G16: Royal Blue Fame | I16: nt15.701
E17: 16 | F17: SheaLynn Leach | G17: Louie Bug | I17: nt16.067
E18: 17 | F18: Kassie Mowry | G18: LLP Silent Prayer | I18: nt16.160 | J18: =IF(OR(H18=5,H18=10, H18=15, H18="BP",H18="SCR"),"NT",I18) -> nt16.160
E19: 18 | F19: Shannon Jensen | G19: Flits French Blondie | I19: nt16.294 | J19: nt16.294
E20: 19 | F20: Cheyenne Wimberly | G20: Famous Willow | I20: nt16.322 | J20: nt16.322
E21: 20 | J21: 0
E22: 21 | J22: 0
E23: 22 | J23: 0
E24: 23 | J24: 0
E25: 24 | J25: 0
E26: 25 | J26: 0
E27: 26 | J27: 0
E28: 27 | J28: 0
E29: 28 | J29: 0
E30: 29 | J30: 0
E31: 30 | J31: 0
E32: 31 | J32: 0
E33: 32 | J33: 0
E34: 33 | J34: 0
E35: 34 | J35: 0
E36: 35 | J36: 0
E37: 36 | J37: 0
E38: 37 | J38: 0
E39: 38 | J39: 0
E40: 39 | J40: 0
E41: 40 | J41: 0
E42: 41 | J42: 0
E43: 42 | J43: 0
E44: 43 | J44: 0
E45: 44 | J45: 0
E46: 45 | J46: 0
E47: 46 | J47: 0
E48: 47 | J48: 0
E49: 48 | J49: 0
E50: 49 | J50: 0
E51: 50 | J51: 0
E52: 51 | J52: 0
E53: 52 | J53: 0
E54: 53 | J54: 0
E55: 54 | J55: 0
E56: 55 | J56: 0
E57: 56 | J57: 0
E58: 57 | J58: 0
E59: 58 | J59: 0
E60: 59 | J60: 0
E61: 60 | J61: 0
E62: 61 | J62: 0
E63: 62 | J63: 0
E64: 63 | J64: 0
E65: 64 | J65: 0
E66: 65 | J66: 0
E67: 66 | J67: 0
E68: 67 | J68: 0
E69: 68 | J69: 0
E70: 69 | J70: 0
E71: 70 | J71: 0
E72: 71 | J72: 0
E73: 72 | J73: 0
E74: 73 | J74: 0
E75: 74 | J75: 0
E76: 75 | J76: 0
E77: 76 | J77: 0
E78: 77 | J78: 0
E79: 78 | J79: 0
E80: 79 | J80: 0
E81: 80 | J81: 0
E82: 81 | J82: =IF(OR(H82=5,H82=10, H82=15, H82="BP",H82="SCR"),"NT",I82) -> 0
E83: 82 | J83: 0
E84: 83 | J84: 0
E85: 84 | J85: 0
E86: 85 | J86: 0
E87: 86 | J87: 0
E88: 87 | J88: 0
E89: 88 | J89: 0
E90: 89 | J90: 0
E91: 90 | J91: 0
E92: 91 | J92: 0
E93: 92 | J93: 0
E94: 93 | J94: 0
E95: 94 | J95: 0
E96: 95 | J96: 0
E97: 96 | J97: 0
E98: 97 | J98: 0
E99: 98 | J99: 0
E100: 99 | J100: 0
E101: 100 | J101: 0
E102: 101 | J102: 0
E103: 102 | J103: 0
E104: 103 | J104: 0
E105: 104 | J105: 0
E106: 105 | J106: 0
E107: 106 | J107: 0
E108: 107 | J108: 0
E109: 108 | J109: 0
E110: 109 | J110: 0
E111: 110 | J111: 0
E112: 111 | J112: 0
E113: 112 | J113: 0
E114: 113 | J114: 0
E115: 114 | J115: 0
E116: 115 | J116: 0
E117: 116 | J117: 0
E118: 117 | J118: 0
E119: 118 | J119: 0
E120: 119 | J120: 0
E121: 120 | J121: 0
E122: 121 | J122: 0
E123: 122 | J123: 0
E124: 123 | J124: 0
E125: 124 | J125: 0
E126: 125 | J126: 0
E127: 126 | J127: 0
E128: 127 | J128: 0
E129: 128 | J129: 0
E130: 129 | J130: 0
E131: 130 | J131: 0
E132: 131 | J132: 0
E133: 132 | J133: 0
E134: 133 | J134: 0
E135: 134 | J135: 0
E136: 135 | J136: 0
E137: 136 | J137: 0
E138: 137 | J138: 0
E139: 138 | J139: 0
E140: 139 | J140: 0
E141: 140 | J141: 0
E142: 141 | J142: 0
E143: 142 | J143: 0
E144: 143 | J144: 0
E145: 144 | J145: 0
E146: 145 | J146: =IF(OR(H146=5,H146=10, H146=15, H146="BP",H146="SCR"),"NT",I146) -> 0
E147: 146 | J147: 0
E148: 147 | J148: 0
E149: 148 | J149: 0
E150: 149 | J150: 0
E151: 150 | J151: 0
E152: 151 | J152: 0
E153: 152 | J153: 0
E154: 153 | J154: 0
E155: 154 | J155: 0
E156: 155 | J156: 0
E157: 156 | J157: 0
E158: 157 | J158: 0
E159: 158 | J159: 0
E160: 159 | J160: 0
E161: 160 | J161: 0
E162: 161 | J162: 0
E163: 162 | J163: 0
E164: 163 | J164: 0
E165: 164 | J165: 0
E166: 165 | J166: 0
E167: 166 | J167: 0
E168: 167 | J168: 0
E169: 168 | J169: 0
E170: 169 | J170: 0
E171: 170 | J171: 0
E172: 171 | J172: 0
E173: 172 | J173: 0
E174: 173 | J174: 0
E175: 174 | J175: 0
E176: 175 | J176: 0
E177: 176 | J177: 0
E178: 177 | J178: 0
E179: 178 | J179: 0
E180: 179 | J180: 0
E181: 180 | J181: 0
E182: 181 | J182: 0
E183: 182 | J183: 0
E184: 183 | J184: 0
E185: 184 | J185: 0
E186: 185 | J186: 0
E187: 186 | J187: 0
E188: 187 | J188: 0
E189: 188 | J189: 0
E190: 189 | J190: 0
E191: 190 | J191: 0
E192: 191 | J192: 0
E193: 192 | J193: 0
E194: 193 | J194: 0
E195: 194 | J195: 0
E196: 195 | J196: 0
E197: 196 | J197: 0
E198: 197 | J198: 0
E199: 198 | J199: 0
E200: 199 | J200: 0
... 101 more rows

Sheet Revolution
A1: Futurity | B1: Der | C1: Age Inct. | D1: BBR | E1: Draw | F1: Rider Name | G1: Horse Name | H1: c/o | I1: Time | J1: Final Time | K1: Placing | L1: Money Earned
E2: 1 | F2: Kassie Mowry | G2: Famous Ladies Man | I2: 15.815 | K2: 1D 1st
E3: 2 | F3: Emily Becker | G3: MR Elegant Shawne | I3: 15.849
E4: 3 | F4: Kassie Mowry | G4: CP He Will Be Epic | I4: 15.938
E5: 4 | F5: Kassie Mowry | G5: Epic Guy | I5: 15.942
E6: 5 | F6: Lisa Wernli | G6: Flashs Fine Effort | I6: 16.005
E7: 6 | F7: Riley Cook | I7: 16.031
E8: 7 | F8: Teresa McClendon | G8: Striking Poses | I8: 16.106
E9: 8 | F9: Chancie Rogers | G9: One Third Sugar | I9: 16.142
E10: 9 | F10: Haley Hunt | G10: Hoops | I10: 16.202
E11: 10 | F11: Jamie Wilson | G11: Check Your Bet | I11: 16.221
E12: 11 | F12: Josie Hartmann | G12: TR Illumniater Cash | I12: 16.289
E13: 12 | F13: Terry Vogel | G13: BB Boogyingfrenchman | I13: 16.493 | K13: 2D 1st
E14: 13 | F14: Josie Hartmann | G14: Hes Honor | I14: 16.56
E15: 14 | F15: Stormi Branch | G15: Demon | I15: 16.565
E16: 15 | F16: Debbie Bloxom | G16: Bad Firing Rising | I16: 16.597
E17: 16 | F17: Kyann Hartmann | G17: SS Dreamin of Roses | I17: 16.713
E18: 17 | F18: Bradie Bacon | G18: Millie | I18: 16.925 | K18: 3D 1st
E19: 18 | F19: Nicole Buell | G19: Dirty Money | I19: 16.938
E20: 19 | F20: Pattie Mackie | G20: Flitter Fuel Lad | I20: 16.938
E21: 20 | F21: Shantell Hayes | G21: Pixie | I21: 16.952
E22: 21 | F22: Curtis Watson | G22: Peppy Fire Frost | I22: 17.054
E23: 22 | F23: Lisa Wernli | G23: PROUDTOBEFRENCH | I23: 17.074
E24: 23 | F24: Tracy Henderson | G24: Heza Stray Cat | I24: 17.076
E25: 24 | F25: Bella Skinner | G25: Shorty | I25: 17.081
E26: 25 | F26: Marlyn Bland | G26: CD Quick Key Dash | I26: 17.081
E27: 26 | F27: Carey Benton | G27: Prime Thriftshop | I27: 17.11
E28: 27 | F28: Myndi Muncy | G28: Streakin Sox | I28: 17.17
E29: 28 | F29: Tiffany Cox | G29: C3Lacy | I29: 17.214
E30: 29 | F30: Aryn Wilkerson | G30: SpicyLitttleStar | I30: 17.321 | K30: 4D 1st
E31: 30 | F31: Terry Vogel | G31: Imablueyedblondbitz | I31: 17.464
E32: 31 | F32: Alley Harris | G32: Princess | I32: 17.682
E33: 32 | F33: Sharin Hall | G33: Fast Dashin Chick | I33: 17.725
E34: 33 | F34: Becky Dockery | G34: Faithman | I34: 17.873
E35: 34 | F35: Jennifer Abbott | G35: Wendall Jackson | I35: 16.735S
E36: 35 | F36: Molli Montgomery | G36: Heavensfeelinspecial | I36: nt16.131
E37: 36 | F37: Carissa Bryant | G37: Flaming Money Buggy | I37: nt16.244
E38: 37 | F38: Sharin Hall | G38: Rare Packin Six | I38: nt16.560
E39: 38 | F39: Debbie Bloxom | G39: KN Born This Way | I39: nt16.578
E40: 39 | F40: Kathy Muehlen | G40: Fly Away Gal | I40: nt16.659
E41: 40 | F41: Makynna Baldwin | G41: TE Prissy | I41: nt17.080
E42: 41 | F42: Makynna Baldwin | G42: Norfleets Valley Girl | I42: nt17.739
E43: 42
E44: 43
E45: 44
E46: 45
E47: 46
E48: 47
E49: 48 | J49: =IF(OR(H49=5,H49=10, H49=15, H49="BP",H49="SCR"),"NT",I49) -> 0
E50: 49 | J50: 0
E51: 50 | J51: 0
E52: 51 | J52: 0
E53: 52 | J53: 0
E54: 53 | J54: 0
E55: 54 | J55: 0
E56: 55 | J56: 0
E57: 56 | J57: 0
E58: 57 | J58: 0
E59: 58 | J59: 0
E60: 59 | J60: 0
E61: 60 | J61: 0
E62: 61 | J62: 0
E63: 62 | J63: 0
E64: 63 | J64: 0
E65: 64 | J65: 0
E66: 65 | J66: 0
E67: 66 | J67: 0
E68: 67 | J68: 0
E69: 68 | J69: 0
E70: 69 | J70: 0
E71: 70 | J71: 0
E72: 71 | J72: 0
E73: 72 | J73: 0
E74: 73 | J74: 0
E75: 74 | J75: 0
E76: 75 | J76: 0
E77: 76 | J77: 0
E78: 77 | J78: 0
E79: 78 | J79: 0
E80: 79 | J80: 0
E81: 80 | J81: 0
E82: 81 | J82: 0
E83: 82 | J83: 0
E84: 83 | J84: 0
E85: 84 | J85: 0
E86: 85 | J86: 0
E87: 86 | J87: 0
E88: 87 | J88: 0
E89: 88 | J89: 0
E90: 89 | J90: 0
E91: 90 | J91: 0
E92: 91 | J92: 0
E93: 92 | J93: 0
E94: 93 | J94: 0
E95: 94 | J95: 0
E96: 95 | J96: 0
E97: 96 | J97: 0
E98: 97 | J98: 0
E99: 98 | J99: 0
E100: 99 | J100: 0
E101: 100 | J101: 0
E102: 101 | J102: 0
E103: 102 | J103: 0
E104: 103 | J104: =IF(OR(H104=5,H104=10, H104=15, H104="BP",H104="SCR"),"NT",I104) -> 0
E105: 104 | J105: 0
E106: 105 | J106: 0
E107: 106 | J107: 0
E108: 107 | J108: 0
E109: 108 | J109: 0
E110: 109 | J110: 0
E111: 110 | J111: 0
E112: 111 | J112: 0
E113: 112 | J113: 0
E114: 113 | J114: 0
E115: 114 | J115: 0
E116: 115 | J116: 0
E117: 116 | J117: 0
E118: 117 | J118: 0
E119: 118 | J119: 0
E120: 119 | J120: 0
E121: 120 | J121: 0
E122: 121 | J122: 0
E123: 122 | J123: 0
E124: 123 | J124: 0
E125: 124 | J125: 0
E126: 125 | J126: 0
E127: 126 | J127: 0
E128: 127 | J128: 0
E129: 128 | J129: 0
E130: 129 | J130: 0
E131: 130 | J131: 0
E132: 131 | J132: 0
E133: 132 | J133: 0
E134: 133 | J134: 0
E135: 134 | J135: 0
E136: 135 | J136: 0
E137: 136 | J137: 0
E138: 137 | J138: 0
E139: 138 | J139: 0
E140: 139 | J140: 0
E141: 140 | J141: 0
E142: 141 | J142: 0
E143: 142 | J143: 0
E144: 143 | J144: 0
E145: 144 | J145: 0
E146: 145 | J146: 0
E147: 146 | J147: 0
E148: 147 | J148: 0
E149: 148 | J149: 0
E150: 149 | J150: 0
E151: 150 | J151: 0
E152: 151 | J152: 0
E153: 152 | J153: 0
E154: 153 | J154: 0
E155: 154 | J155: 0
E156: 155 | J156: 0
E157: 156 | J157: 0
E158: 157 | J158: 0
E159: 158 | J159: 0
E160: 159 | J160: 0
E161: 160 | J161: 0
E162: 161 | J162: 0
E163: 162 | J163: 0
E164: 163 | J164: 0
E165: 164 | J165: 0
E166: 165 | J166: 0
E167: 166 | J167: 0
E168: 167 | J168: =IF(OR(H168=5,H168=10, H168=15, H168="BP",H168="SCR"),"NT",I168) -> 0
E169: 168 | J169: 0
E170: 169 | J170: 0
E171: 170 | J171: 0
E172: 171 | J172: 0
E173: 172 | J173: 0
E174: 173 | J174: 0
E175: 174 | J175: 0
E176: 175 | J176: 0
E177: 176 | J177: 0
E178: 177 | J178: 0
E179: 178 | J179: 0
E180: 179 | J180: 0
E181: 180 | J181: 0
E182: 181 | J182: 0
E183: 182 | J183: 0
E184: 183 | J184: 0
E185: 184 | J185: 0
E186: 185 | J186: 0
E187: 186 | J187: 0
E188: 187 | J188: 0
E189: 188 | J189: 0
E190: 189 | J190: 0
E191: 190 | J191: 0
E192: 191 | J192: 0
E193: 192 | J193: 0
E194: 193 | J194: 0
E195: 194 | J195: 0
E196: 195 | J196: 0
E197: 196 | J197: 0
E198: 197 | J198: 0
E199: 198 | J199: 0
E200: 199 | J200: 0
... 101 more rows

Sheet Highstakes
A1: Futurity | B1: Der | C1: Age Inct. | D1: BBR | E1: Draw | F1: Rider Name | G1: Horse Name | H1: c/o | I1: Time | J1: Final Time | K1: Placing | L1: Money Earned
E2: 1 | F2: Wenda Johnson | G2: Macgyver Moonflash | I2: 15.704 | K2: 1st | L2: 432
E3: 2 | F3: Jolene Montgomery | G3: Streakin Easily | I3: 15.818 | K3: 2nd | L3: 288
E4: 3 | F4: Emily Becker | G4: MR Elegant Shawne | I4: 15.849
E5: 4 | F5: Jolene Montgomery | G5: Firin Ta Heaven | I5: 15.959
E6: 5 | F6: Haley Bowen | G6: Sadies Superman | I6: 16.711
E7: 6 | F7: Wenda Johnson | G7: Dreams First Flush | I7: nt15.658
E8: 7 | F8: Kaylee Gallino | G8: JC Truly Bob | I8: nt15.772
E9: 8 | F9: Martha Jordan | G9: JLFourtafame | I9: nt16.213
E10: 9 | F10: Lauren Whitmire | G10: Fame Rox | I10: nt17.447
E11: 10
E12: 11
E13: 12
E14: 13
E15: 14
E16: 15
E17: 16
E18: 17
E19: 18
E20: 19
E21: 20
E22: 21
E23: 22
E24: 23
E25: 24
E26: 25
E27: 26
E28: 27
E29: 28
E30: 29
E31: 30
E32: 31
E33: 32
E34: 33
E35: 34
E36: 35
E37: 36
E38: 37
E39: 38
E40: 39 | J40: =IF(OR(H40=5,H40=10, H40=15, H40="BP",H40="SCR"),"NT",I40) -> 0
E41: 40 | J41: 0
E42: 41 | J42: 0
E43: 42 | J43: 0
E44: 43 | J44: 0
E45: 44 | J45: 0
E46: 45 | J46: 0
E47: 46 | J47: 0
E48: 47 | J48: 0
E49: 48 | J49: 0
E50: 49 | J50: 0
E51: 50 | J51: 0
E52: 51 | J52: 0
E53: 52 | J53: 0
E54: 53 | J54: 0
E55: 54 | J55: 0
E56: 55 | J56: 0
E57: 56 | J57: 0
E58: 57 | J58: 0
E59: 58 | J59: 0
E60: 59 | J60: 0
E61: 60 | J61: 0
E62: 61 | J62: 0
E63: 62 | J63: 0
E64: 63 | J64: 0
E65: 64 | J65: 0
E66: 65 | J66: 0
E67: 66 | J67: 0
E68: 67 | J68: 0
E69: 68 | J69: 0
E70: 69 | J70: 0
E71: 70 | J71: 0
E72: 71 | J72: 0
E73: 72 | J73: 0
E74: 73 | J74: 0
E75: 74 | J75: 0
E76: 75 | J76: 0
E77: 76 | J77: 0
E78: 77 | J78: 0
E79: 78 | J79: 0
E80: 79 | J80: 0
E81: 80 | J81: 0
E82: 81 | J82: 0
E83: 82 | J83: 0
E84: 83 | J84: 0
E85: 84 | J85: 0
E86: 85 | J86: 0
E87: 86 | J87: 0
E88: 87 | J88: 0
E89: 88 | J89: 0
E90: 89 | J90: 0
E91: 90 | J91: 0
E92: 91 | J92: 0
E93: 92 | J93: 0
E94: 93 | J94: 0
E95: 94 | J95: 0
E96: 95 | J96: 0
E97: 96 | J97: 0
E98: 97 | J98: 0
E99: 98 | J99: 0
E100: 99 | J100: 0
E101: 100 | J101: 0
E102: 101 | J102: 0
E103: 102 | J103: 0
E104: 103 | J104: =IF(OR(H104=5,H104=10, H104=15, H104="BP",H104="SCR"),"NT",I104) -> 0
E105: 104 | J105: 0
E106: 105 | J106: 0
E107: 106 | J107: 0
E108: 107 | J108: 0
E109: 108 | J109: 0
E110: 109 | J110: 0
E111: 110 | J111: 0
E112: 111 | J112: 0
E113: 112 | J113: 0
E114: 113 | J114: 0
E115: 114 | J115: 0
E116: 115 | J116: 0
E117: 116 | J117: 0
E118: 117 | J118: 0
E119: 118 | J119: 0
E120: 119 | J120: 0
E121: 120 | J121: 0
E122: 121 | J122: 0
E123: 122 | J123: 0
E124: 123 | J124: 0
E125: 124 | J125: 0
E126: 125 | J126: 0
E127: 126 | J127: 0
E128: 127 | J128: 0
E129: 128 | J129: 0
E130: 129 | J130: 0
E131: 130 | J131: 0
E132: 131 | J132: 0
E133: 132 | J133: 0
E134: 133 | J134: 0
E135: 134 | J135: 0
E136: 135 | J136: 0
E137: 136 | J137: 0
E138: 137 | J138: 0
E139: 138 | J139: 0
E140: 139 | J140: 0
E141: 140 | J141: 0
E142: 141 | J142: 0
E143: 142 | J143: 0
E144: 143 | J144: 0
E145: 144 | J145: 0
E146: 145 | J146: 0
E147: 146 | J147: 0
E148: 147 | J148: 0
E149: 148 | J149: 0
E150: 149 | J150: 0
E151: 150 | J151: 0
E152: 151 | J152: 0
E153: 152 | J153: 0
E154: 153 | J154: 0
E155: 154 | J155: 0
E156: 155 | J156: 0
E157: 156 | J157: 0
E158: 157 | J158: 0
E159: 158 | J159: 0
E160: 159 | J160: 0
E161: 160 | J161: 0
E162: 161 | J162: 0
E163: 162 | J163: 0
E164: 163 | J164: 0
E165: 164 | J165: 0
E166: 165 | J166: 0
E167: 166 | J167: 0
E168: 167 | J168: =IF(OR(H168=5,H168=10, H168=15, H168="BP",H168="SCR"),"NT",I168) -> 0
E169: 168 | J169: 0
E170: 169 | J170: 0
E171: 170 | J171: 0
E172: 171 | J172: 0
E173: 172 | J173: 0
E174: 173 | J174: 0
E175: 174 | J175: 0
E176: 175 | J176: 0
E177: 176 | J177: 0
E178: 177 | J178: 0
E179: 178 | J179: 0
E180: 179 | J180: 0
E181: 180 | J181: 0
E182: 181 | J182: 0
E183: 182 | J183: 0
E184: 183 | J184: 0
E185: 184 | J185: 0
E186: 185 | J186: 0
E187: 186 | J187: 0
E188: 187 | J188: 0
E189: 188 | J189: 0
E190: 189 | J190: 0
E191: 190 | J191: 0
E192: 191 | J192: 0
E193: 192 | J193: 0
E194: 193 | J194: 0
E195: 194 | J195: 0
E196: 195 | J196: 0
E197: 196 | J197: 0
E198: 197 | J198: 0
E199: 198 | J199: 0
E200: 199 | J200: 0
... 101 more rows

Sheet Futurity
A1: Futurity | B1: Der | C1: Age Inct. | D1: BBR | E1: Draw | F1: Rider Name | G1: Horse Name | H1: c/o | I1: Time | J1: Final Time | K1: Placing | L1: Money Earned
E2: 1 | F2: Stephanie Fryar | G2: RR LaJollas Roll | I2: 15.739 | K2: 1D 1st | L2: 945
E3: 2 | F3: Kassie Mowry | G3: Famous Ladies Man | I3: 15.815 | K3: 1D 2nd | L3: 787.5
E4: 3 | F4: Kelly Allen | G4: Moons Fire Ta Fame | I4: 15.843 | K4: 1D 3rd | L4: 630
E5: 4 | F5: Jolene Montgomery | G5: Flits Khamacasse | I5: 15.86 | K5: 1D 4th | L5: 472.5
E6: 5 | F6: Kassie Mowry | G6: Dashing Canelo | I6: 15.87 | K6: 1D 5th | L6: 315
E7: 6 | F7: Jessie Domann | G7: Ima Perry N Famous | I7: 15.895
E8: 7 | F8: Kassie Mowry | G8: CP He Will Be Epic | I8: 15.938
E9: 8 | F9: Kassie Mowry | G9: Epic Guy | I9: 15.942
E10: 9 | F10: Kelsey Lutjen | G10: KN Luna | I10: 15.958
E11: 10 | F11: Jolene Montgomery | G11: Firin Ta Heaven | I11: 15.959
E12: 11 | F12: Lacey Harmon | G12: Mitey Man | I12: 16.078
E13: 12 | F13: Kelsey Lutjen | G13: TS Dash Dang It | I13: 16.081
E14: 13 | F14: James Barnes | G14: Flamin Flicka | I14: 16.132
E15: 14 | F15: Andrea Cline | G15: Cruz N Ta Fame | I15: 16.147
E16: 15 | F16: Kim Squires | G16: Ima Diva Red Dasher | I16: 16.172
E17: 16 | F17: Kassie Mowry | G17: Back The Blue | I17: 16.173
E18: 17 | F18: James Barnes | G18: Slicks Sweet Legacy | I18: 16.184
E19: 18 | F19: Rachel Arms | G19: RY Wyatt Earl | I19: 16.205
E20: 19 | F20: Pete Oen | G20: HGF Flinging Frosted | I20: 16.227
E21: 20 | F21: Jade Crago | G21: CM Sierras Fire Frost | I21: 16.239 | K21: 2D 1st | L21: 405
E22: 21 | F22: Carmel Wright | G22: PG Eye Bully Fame | I22: 16.299 | K22: 2D 2nd | L22: 337.5
E23: 22 | F23: Ryan Reynolds | G23: Kick of Fame | I23: 16.306 | K23: 2D 3rd | L23: 270
E24: 23 | F24: Brooke Kelley | G24: Nu Bueno Karma | I24: 16.327 | K24: 2D 4th | L24: 202.5
E25: 24 | F25: Danyelle Campbell | G25: Primrose Fame | I25: 16.332 | K25: 2D 5th | L25: 135
E26: 25 | F26: Kelsey Lutjen | G26: Blazin X's N Oh's | I26: 16.337
E27: 26 | F27: Jolene Montgomery | G27: Famously Perkin | I27: 16.34
E28: 27 | F28: Jaque Woolman | G28: Bugs A Boo | I28: 16.369
E29: 28 | F29: Kelsey Lutjen | G29: TS Queens Shakem | I29: 16.408
E30: 29 | F30: Nicole RIggle | G30: Moonshinesgotmefiren | I30: 16.408
E31: 30 | F31: Danyelle Campbell | G31: CP Winnie | I31: 16.416
E32: 31 | F32: Joy Wargo | G32: Dash Ta Mirage | I32: 16.447
E33: 32 | F33: Ryann Pedone | G33: Dash Ta Perfection | I33: 16.448
E34: 33 | F34: Cassidy Kruse | G34: Lost Creek Widow | I34: 16.481
E35: 34 | F35: Kari Brough | G35: Hot French Lady | I35: 16.482
E36: 35 | F36: Wyatt Paul | G36: Paparazzi Love Me | I36: 16.484
E37: 36 | F37: Tasha Welch | G37: Victorious Firewater | I37: 16.543
E38: 37 | F38: Jessie Domann | G38: IRoseSuchAStinson | I38: 16.588
E39: 38 | F39: Debbie Bloxom | G39: Bad Firing Rising | I39: 16.597
E40: 39 | F40: Pete Oen | G40: FC Black Firewater | I40: 16.617
E41: 40 | F41: Andrea Sewell | G41: Uptown Fame | I41: 16.65
E42: 41 | F42: Madison Merrill | G42: RS Forever Famous | I42: 16.657
E43: 42 | F43: Ryann Pedone | G43: Sudden Hero | I43: 16.74
E44: 43 | F44: Lauren Whitmire | G44: Down Dash Anytime | I44: 16.753
E45: 44 | F45: Danyelle Campbell | G45: Dirrty Money | I45: 16.78
E46: 45 | F46: Kari Brough | G46: Frenchmantwistedfame | I46: 16.784
E47: 46 | F47: SheaLynn Leach | G47: Peter Wabbit | I47: 16.808
E48: 47 | F48: Pete Oen | G48: Fyre In The Skye | I48: 16.837
E49: 48 | F49: Ashley Schafer | G49: Streakin Cisco | I49: 16.925
E50: 49 | F50: Tristan Mounts | G50: Blazed Gunsmoke | I50: 16.999
E51: 50 | F51: Billie Ann Harmon | G51: Patroits Firewater | I51: 17.087
E52: 51 | F52: Joy Wargo | G52: WR Calamity Fame | I52: 17.195
E53: 52 | F53: Glenda Barnett | G53: Miss Famous Beduino | I53: 17.241
E54: 53 | F54: Andrea Cline | G54: Superflysraretreasure | I54: 17.373
E55: 54 | F55: Charlotte Edwards | G55: VF Eye Of Tiger | I55: 17.566
E56: 55 | F56: Charlotte Edwards | G56: TR Hibbie Chick | I56: 17.576
E57: 56 | F57: Kelly Allen | G57: Miss JB 149 | I57: 17.594
E58: 57 | F58: Sharin Hall | G58: Fast Dashin Chick | I58: 17.726
E59: 58 | F59: Lacey Harmon | G59: Guys Silver and Gold | I59: 17.846
E60: 59 | F60: Jenna Napier | G60: Frenchmans Dually | I60: 19.692
E61: 60 | F61: Pete Oen | G61: Strait To Dallas | I61: 20.698
E62: 61 | F62: Andrea Cline | G62: Dash Ta The Fire | I62: 21.495
E63: 62 | F63: Stephanie Fryar | G63: Some Streakin French | I63: nt15.946
E64: 63 | F64: Kelsey Lutjen | G64: Rivons Gotta Tomboy | I64: nt16.047
E65: 64 | F65: Molli Montgomery | G65: Heavensfeelinspecial | I65: nt16.131
E66: 65 | F66: Cierra Chapman | G66: Lil Blushing Blonde | I66: nt16.198
E67: 66 | F67: Whitney Godinez | G67: Her Perks Are On Fire | I67: nt16.283
E68: 67 | F68: Nisa Berry | G68: Code Name Fame | I68: nt16.386
E69: 68 | F69: Ryann Pedone | G69: VQ Im Buzzed | I69: nt16.403
E70: 69 | F70: Jolene Montgomery | G70: Smooth N Heavenly | I70: nt16.526
E71: 70 | F71: Shelly Shields | G71: Streakers Queen | I71: nt16.558
E72: 71 | F72: Sharin Hall | G72: Rare Packin Six | I72: nt16.560
E73: 72 | F73: Jana Himes | G73: KC High Pick | I73: nt16.748
E74: 73 | F74: Dacota Monk | G74: Sheza Slick Design | I74: nt16.981
E75: 74 | F75: Shelby Rowe | G75: Jess Say Yes | I75: nt18.707
E76: 75 | F76: Pete Oen | G76: Fame TO The Max | I76: nt19.422
E77: 76 | J77: =IF(OR(H77=5,H77=10, H77=15, H77="BP",H77="SCR"),"NT",I77) -> 0
E78: 77 | J78: 0
E79: 78 | J79: 0
E80: 79 | J80: 0
E81: 80 | J81: 0
E82: 81 | J82: 0
E83: 82 | J83: 0
E84: 83 | J84: 0
E85: 84 | J85: 0
E86: 85 | J86: 0
E87: 86 | J87: 0
E88: 87 | J88: 0
E89: 88 | J89: 0
E90: 89 | J90: 0
E91: 90 | J91: 0
E92: 91 | J92: 0
E93: 92 | J93: 0
E94: 93 | J94: 0
E95: 94 | J95: 0
E96: 95 | J96: =IF(OR(H96=5,H96=10, H96=15, H96="BP",H96="SCR"),"NT",I96) -> 0
E97: 96 | J97: 0
E98: 97 | J98: 0
E99: 98 | J99: 0
E100: 99 | J100: 0
E101: 100 | J101: 0
E102: 101 | J102: 0
E103: 102 | J103: 0
E104: 103 | J104: 0
E105: 104 | J105: 0
E106: 105 | J106: 0
E107: 106 | J107: 0
E108: 107 | J108: 0
E109: 108 | J109: 0
E110: 109 | J110: 0
E111: 110 | J111: 0
E112: 111 | J112: 0
E113: 112 | J113: 0
E114: 113 | J114: 0
E115: 114 | J115: 0
E116: 115 | J116: 0
E117: 116 | J117: 0
E118: 117 | J118: 0
E119: 118 | J119: 0
E120: 119 | J120: 0
E121: 120 | J121: 0
E122: 121 | J122: 0
E123: 122 | J123: 0
E124: 123 | J124: 0
E125: 124 | J125: 0
E126: 125 | J126: 0
E127: 126 | J127: 0
E128: 127 | J128: 0
E129: 128 | J129: 0
E130: 129 | J130: 0
E131: 130 | J131: 0
E132: 131 | J132: 0
E133: 132 | J133: 0
E134: 133 | J134: 0
E135: 134 | J135: 0
E136: 135 | J136: 0
E137: 136 | J137: 0
E138: 137 | J138: 0
E139: 138 | J139: 0
E140: 139 | J140: 0
E141: 140 | J141: 0
E142: 141 | J142: 0
E143: 142 | J143: 0
E144: 143 | J144: 0
E145: 144 | J145: 0
E146: 145 | J146: 0
E147: 146 | J147: 0
E148: 147 | J148: 0
E149: 148 | J149: 0
E150: 149 | J150: 0
E151: 150 | J151: 0
E152: 151 | J152: 0
E153: 152 | J153: 0
E154: 153 | J154: 0
E155: 154 | J155: 0
E156: 155 | J156: 0
E157: 156 | J157: 0
E158: 157 | J158: 0
E159: 158 | J159: 0
E160: 159 | J160: =IF(OR(H160=5,H160=10, H160=15, H160="BP",H160="SCR"),"NT",I160) -> 0
E161: 160 | J161: 0
E162: 161 | J162: 0
E163: 162 | J163: 0
E164: 163 | J164: 0
E165: 164 | J165: 0
E166: 165 | J166: 0
E167: 166 | J167: 0
E168: 167 | J168: 0
E169: 168 | J169: 0
E170: 169 | J170: 0
E171: 170 | J171: 0
E172: 171 | J172: 0
E173: 172 | J173: 0
E174: 173 | J174: 0
E175: 174 | J175: 0
E176: 175 | J176: 0
E177: 176 | J177: 0
E178: 177 | J178: 0
E179: 178 | J179: 0
E180: 179 | J180: 0
E181: 180 | J181: 0
E182: 181 | J182: 0
E183: 182 | J183: 0
E184: 183 | J184: 0
E185: 184 | J185: 0
E186: 185 | J186: 0
E187: 186 | J187: 0
E188: 187 | J188: 0
E189: 188 | J189: 0
E190: 189 | J190: 0
E191: 190 | J191: 0
E192: 191 | J192: 0
E193: 192 | J193: 0
E194: 193 | J194: 0
E195: 194 | J195: 0
E196: 195 | J196: 0
E197: 196 | J197: 0
E198: 197 | J198: 0
E199: 198 | J199: 0
E200: 199 | J200: 0
... 101 more rows

Sheet 12 & Under (hidden)
A1: Futurity | B1: Der | C1: Age Inct. | D1: R/O | E1: Draw | F1: Rider Name | G1: Horse Name | H1: Time | I1: Final Time | J1: Placing | K1: Money Earned
E33: 32
E34: 33
E35: 34
E36: 35
E37: 36
E38: 37
E39: 38
E40: 39
E41: 40
E42: 41
E43: 42
E44: 43
E45: 44
E46: 45
E47: 46
E48: 47
E49: 48
E50: 49
E51: 50
E52: 51
E53: 52
E54: 53
E55: 54
E56: 55
E57: 56
E58: 57
E59: 58
E60: 59
E61: 60
E62: 61
E63: 62
E64: 63
E65: 64
E66: 65
E67: 66
E68: 67
E69: 68
E70: 69
E71: 70
E72: 71
E73: 72
E74: 73
E75: 74
E76: 75
E77: 76
E78: 77
E79: 78
E80: 79
E81: 80
E82: 81
E83: 82
E84: 83
E85: 84
E86: 85
E87: 86
E88: 87
E89: 88
E90: 89
E91: 90
E92: 91
E93: 92
E94: 93
E95: 94
E96: 95
E97: 96
E98: 97
E99: 98
E100: 99
E101: 100
E102: 101
E103: 102
E104: 103
E105: 104
E106: 105
E107: 106
E108: 107
E109: 108
E110: 109
E111: 110
E112: 111
E113: 112
E114: 113
E115: 114
E116: 115
E117: 116
E118: 117
E119: 118
E120: 119
E121: 120
E122: 121
E123: 122
E124: 123
E125: 124
E126: 125
E127: 126
E128: 127
E129: 128
E130: 129
E131: 130
E132: 131
E133: 132
E134: 133
E135: 134
E136: 135
E137: 136
E138: 137
E139: 138
E140: 139
E141: 140
E142: 141
E143: 142
E144: 143
E145: 144
E146: 145
E147: 146
E148: 147
E149: 148
E150: 149
E151: 150
E152: 151
E153: 152
E154: 153
E155: 154
E156: 155
E157: 156
E158: 157
E159: 158
E160: 159
E161: 160
E162: 161
E163: 162
E164: 163
E165: 164
E166: 165
E167: 166
E168: 167
E169: 168
E170: 169
E171: 170
E172: 171
E173: 172
E174: 173
E175: 174
E176: 175
E177: 176
E178: 177
E179: 178
E180: 179
E181: 180
E182: 181
E183: 182
E184: 183
E185: 184
E186: 185
E187: 186
E188: 187
E189: 188
E190: 189
E191: 190
E192: 191
E193: 192
E194: 193
E195: 194
E196: 195
E197: 196
E198: 197
E199: 198
E200: 199
E201: 200
E202: 201
E203: 202
E204: 203
E205: 204
E206: 205
E207: 206
E208: 207
E209: 208
E210: 209
E211: 210
E212: 211
E213: 212
E214: 213
E215: 214
E216: 215
E217: 216
E218: 217
E219: 218
E220: 219
E221: 220
E222: 221
E223: 222
E224: 223
E225: 224
E226: 225
E227: 226
E228: 227
E229: 228
E230: 229
E231: 230
... 70 more rows

Sheet 8&under
A1: Draw | B1: Rider Name | C1: Horse Name | D1: Pen | E1: Time | F1: Final Time | G1: Placing | H1: Money Earned
A2: 1 | B2: Kyndall Pedone
A3: 2 | B3: Raylee Cook
A4: 3
A5: 4
A6: 5
A7: 6
A8: 7
A9: 8
A10: 9
A11: 10 | F11: =IF(OR(D11=5,D11=10, D11=15, D11="BP",D11="SCR"),"NT",E11) -> 0
A12: 11 | F12: 0
A13: 12 | F13: 0
A14: 13 | F14: 0
A15: 14 | F15: 0
A16: 15 | F16: 0
A17: 16 | F17: 0
A18: 17 | F18: 0
A19: 18 | F19: 0
A20: 19 | F20: 0
A21: 20 | F21: 0

Sheet Average
A1: Parker County Arena
A2: Open
A3: 4 Yr Fut | B3: 5 Yr Fut | C3: Der | D3: Age Inct. | E3: Am | F3: Carry | G3: T/C | H3: F/F | I3: Mem | J3: Nom | K3: Av | L3: BBR | M3: WPRA | N3: Draw | O3: Owner Name | P3: Rider Name | Q3: Horse Name | R3: Pen | S3: Time 1 | T3: Final Time 1 | U3: Pen | V3: Time 2 | W3: Final Time 2 | X3: Total Time | Y3: Average Time | Z3: Placing | AA3: Money Earned | AC3: D Placing | AE3: Split
N4: 1 | T4: =IF(OR(R4=5,R4=10, R4=15, R4="BP",R4="SCR"),"NT",S4) -> 0 | W4: =IF(OR(U4=5,U4=10, U4=15, U4="BP",U4="SCR"),"NT",V4) -> 0 | X4: =(T4+W4) -> 0 | Y4: =(T4+W4)/2 -> 0 | AC4: 1D
N5: 2 | T5: 0 | W5: 0 | X5: 0 | Y5: 0 | AC5: 2D | AD5: =$AD$4+$AE$5 -> 0.5 | AE5: 0.5
N6: 3 | T6: 0 | W6: 0 | X6: 0 | Y6: 0 | AC6: 3D | AD6: =$AD$5+$AE$6 -> 1 | AE6: 0.5
N7: 4 | T7: 0 | W7: 0 | X7: 0 | Y7: 0 | AC7: 4D | AD7: =$AD$6+$AE$7 -> 1.5 | AE7: 0.5
N8: 5 | T8: 0 | W8: 0 | X8: 0 | Y8: 0 | AC8: 5D | AD8: =$AD$7+$AE$8 -> 2 | AE8: 0.5
N9: 6 | T9: 0 | W9: 0 | X9: 0 | Y9: 0
N10: 7 | T10: 0 | W10: 0 | X10: 0 | Y10: 0 | AC10: # Entered
N11: 8 | T11: 0 | W11: 0 | X11: 0 | Y11: 0 | AC11: =COUNTA(P4:P503) -> 0
N12: 9 | T12: 0 | W12: 0 | X12: 0 | Y12: 0
N13: 10 | T13: 0 | W13: 0 | X13: 0 | Y13: 0
N14: 11 | T14: 0 | W14: 0 | X14: 0 | Y14: 0
N15: 12 | T15: 0 | W15: 0 | X15: 0 | Y15: 0
N16: 13 | T16: 0 | W16: 0 | X16: 0 | Y16: 0
N17: 14 | T17: =IF(OR(R17=5,R17=10, R17=15, R17="BP",R17="SCR"),"NT",S17) -> 0 | W17: =IF(OR(U17=5,U17=10, U17=15, U17="BP",U17="SCR"),"NT",V17) -> 0 | X17: =(T17+W17) -> 0 | Y17: =(T17+W17)/2 -> 0
N18: 15 | T18: 0 | W18: 0 | X18: 0 | Y18: 0
N19: 16 | T19: 0 | W19: 0 | X19: 0 | Y19: 0
N20: 17 | T20: 0 | W20: 0 | X20: 0 | Y20: 0
N21: 18 | T21: 0 | W21: 0 | X21: 0 | Y21: 0
N22: 19 | T22: 0 | W22: 0 | X22: 0 | Y22: 0
N23: 20 | T23: 0 | W23: 0 | X23: 0 | Y23: 0
N24: 21 | T24: 0 | W24: 0 | X24: 0 | Y24: 0
N25: 22 | T25: 0 | W25: 0 | X25: 0 | Y25: 0
N26: 23 | T26: 0 | W26: 0 | X26: 0 | Y26: 0
N27: 24 | T27: 0 | W27: 0 | X27: 0 | Y27: 0
N28: 25 | T28: 0 | W28: 0 | X28: 0 | Y28: 0
N29: 26 | T29: 0 | W29: 0 | X29: 0 | Y29: 0
N30: 27 | T30: 0 | W30: 0 | X30: 0 | Y30: 0
N31: 28 | T31: 0 | W31: 0 | X31: 0 | Y31: 0
N32: 29 | T32: 0 | W32: 0 | X32: 0 | Y32: 0
N33: 30 | T33: 0 | W33: 0 | X33: 0 | Y33: 0
N34: 31 | T34: 0 | W34: 0 | X34: 0 | Y34: 0
N35: 32 | T35: 0 | W35: 0 | X35: 0 | Y35: 0
N36: 33 | T36: 0 | W36: 0 | X36: 0 | Y36: 0
N37: 34 | T37: 0 | W37: 0 | X37: 0 | Y37: 0
N38: 35 | T38: 0 | W38: 0 | X38: 0 | Y38: 0
N39: 36 | T39: 0 | W39: 0 | X39: 0 | Y39: 0
N40: 37 | T40: 0 | W40: 0 | X40: 0 | Y40: 0
N41: 38 | T41: 0 | W41: 0 | X41: 0 | Y41: 0
N42: 39 | T42: 0 | W42: 0 | X42: 0 | Y42: 0
N43: 40 | T43: 0 | W43: 0 | X43: 0 | Y43: 0
N44: 41 | T44: 0 | W44: 0 | X44: 0 | Y44: 0
N45: 42 | T45: 0 | W45: 0 | X45: 0 | Y45: 0
N46: 43 | T46: 0 | W46: 0 | X46: 0 | Y46: 0
N47: 44 | T47: 0 | W47: 0 | X47: 0 | Y47: 0
N48: 45 | T48: 0 | W48: 0 | X48: 0 | Y48: 0
N49: 46 | T49: 0 | W49: 0 | X49: 0 | Y49: 0
N50: 47 | T50: 0 | W50: 0 | X50: 0 | Y50: 0
N51: 48 | T51: 0 | W51: 0 | X51: 0 | Y51: 0
N52: 49 | T52: 0 | W52: 0 | X52: 0 | Y52: 0
N53: 50 | T53: 0 | W53: 0 | X53: 0 | Y53: 0
N54: 51 | T54: 0 | W54: 0 | X54: 0 | Y54: 0
N55: 52 | T55: 0 | W55: 0 | X55: 0 | Y55: 0
N56: 53 | T56: 0 | W56: 0 | X56: 0 | Y56: 0
N57: 54 | T57: 0 | W57: 0 | X57: 0 | Y57: 0
N58: 55 | T58: 0 | W58: 0 | X58: 0 | Y58: 0
N59: 56 | T59: 0 | W59: 0 | X59: 0 | Y59: 0
N60: 57 | T60: 0 | W60: 0 | X60: 0 | Y60: 0
N61: 58 | T61: 0 | W61: 0 | X61: 0 | Y61: 0
N62: 59 | T62: 0 | W62: 0 | X62: 0 | Y62: 0
N63: 60 | T63: 0 | W63: 0 | X63: 0 | Y63: 0
N64: 61 | T64: 0 | W64: 0 | X64: 0 | Y64: 0
N65: 62 | T65: 0 | W65: 0 | X65: 0 | Y65: 0
N66: 63 | T66: 0 | W66: 0 | X66: 0 | Y66: 0
N67: 64 | T67: 0 | W67: 0 | X67: 0 | Y67: 0
N68: 65 | T68: 0 | W68: 0 | X68: 0 | Y68: 0
N69: 66 | T69: =IF(OR(R69=5,R69=10, R69=15, R69="BP",R69="SCR"),"NT",S69) -> 0 | W69: =IF(OR(U69=5,U69=10, U69=15, U69="BP",U69="SCR"),"NT",V69) -> 0 | X69: =(T69+W69) -> 0 | Y69: =(T69+W69)/2 -> 0
N70: 67 | T70: 0 | W70: 0 | X70: 0 | Y70: 0
N71: 68 | T71: 0 | W71: 0 | X71: 0 | Y71: 0
N72: 69 | T72: 0 | W72: 0 | X72: 0 | Y72: 0
N73: 70 | T73: 0 | W73: 0 | X73: 0 | Y73: 0
N74: 71 | T74: 0 | W74: 0 | X74: 0 | Y74: 0
N75: 72 | T75: 0 | W75: 0 | X75: 0 | Y75: 0
N76: 73 | T76: 0 | W76: 0 | X76: 0 | Y76: 0
N77: 74 | T77: 0 | W77: 0 | X77: 0 | Y77: 0
N78: 75 | T78: 0 | W78: 0 | X78: 0 | Y78: 0
N79: 76 | T79: 0 | W79: 0 | X79: 0 | Y79: 0
N80: 77 | T80: 0 | W80: 0 | X80: 0 | Y80: 0
N81: 78 | T81: 0 | W81: 0 | X81: 0 | Y81: 0
N82: 79 | T82: 0 | W82: 0 | X82: 0 | Y82: 0
N83: 80 | T83: 0 | W83: 0 | X83: 0 | Y83: 0
N84: 81 | T84: 0 | W84: 0 | X84: 0 | Y84: 0
N85: 82 | T85: 0 | W85: 0 | X85: 0 | Y85: 0
N86: 83 | T86: 0 | W86: 0 | X86: 0 | Y86: 0
N87: 84 | T87: 0 | W87: 0 | X87: 0 | Y87: 0
N88: 85 | T88: 0 | W88: 0 | X88: 0 | Y88: 0
N89: 86 | T89: 0 | W89: 0 | X89: 0 | Y89: 0
N90: 87 | T90: 0 | W90: 0 | X90: 0 | Y90: 0
N91: 88 | T91: 0 | W91: 0 | X91: 0 | Y91: 0
N92: 89 | T92: 0 | W92: 0 | X92: 0 | Y92: 0
N93: 90 | T93: 0 | W93: 0 | X93: 0 | Y93: 0
N94: 91 | T94: 0 | W94: 0 | X94: 0 | Y94: 0
N95: 92 | T95: 0 | W95: 0 | X95: 0 | Y95: 0
N96: 93 | T96: 0 | W96: 0 | X96: 0 | Y96: 0
N97: 94 | T97: 0 | W97: 0 | X97: 0 | Y97: 0
N98: 95 | T98: 0 | W98: 0 | X98: 0 | Y98: 0
N99: 96 | T99: 0 | W99: 0 | X99: 0 | Y99: 0
N100: 97 | T100: 0 | W100: 0 | X100: 0 | Y100: 0
N101: 98 | T101: 0 | W101: 0 | X101: 0 | Y101: 0
N102: 99 | T102: 0 | W102: 0 | X102: 0 | Y102: 0
N103: 100 | T103: 0 | W103: 0 | X103: 0 | Y103: 0
N104: 101 | T104: 0 | W104: 0 | X104: 0 | Y104: 0
N105: 102 | T105: 0 | W105: 0 | X105: 0 | Y105: 0
N106: 103 | T106: 0 | W106: 0 | X106: 0 | Y106: 0
N107: 104 | T107: 0 | W107: 0 | X107: 0 | Y107: 0
N108: 105 | T108: 0 | W108: 0 | X108: 0 | Y108: 0
N109: 106 | T109: 0 | W109: 0 | X109: 0 | Y109: 0
N110: 107 | T110: 0 | W110: 0 | X110: 0 | Y110: 0
N111: 108 | T111: 0 | W111: 0 | X111: 0 | Y111: 0
N112: 109 | T112: 0 | W112: 0 | X112: 0 | Y112: 0
N113: 110 | T113: 0 | W113: 0 | X113: 0 | Y113: 0
N114: 111 | T114: 0 | W114: 0 | X114: 0 | Y114: 0
N115: 112 | T115: 0 | W115: 0 | X115: 0 | Y115: 0
N116: 113 | T116: 0 | W116: 0 | X116: 0 | Y116: 0
N117: 114 | T117: 0 | W117: 0 | X117: 0 | Y117: 0
N118: 115 | T118: 0 | W118: 0 | X118: 0 | Y118: 0
N119: 116 | T119: 0 | W119: 0 | X119: 0 | Y119: 0
N120: 117 | T120: 0 | W120: 0 | X120: 0 | Y120: 0
N121: 118 | T121: 0 | W121: 0 | X121: 0 | Y121: 0
N122: 119 | T122: 0 | W122: 0 | X122: 0 | Y122: 0
N123: 120 | T123: 0 | W123: 0 | X123: 0 | Y123: 0
N124: 121 | T124: 0 | W124: 0 | X124: 0 | Y124: 0
N125: 122 | T125: 0 | W125: 0 | X125: 0 | Y125: 0
N126: 123 | T126: 0 | W126: 0 | X126: 0 | Y126: 0
N127: 124 | T127: 0 | W127: 0 | X127: 0 | Y127: 0
N128: 125 | T128: 0 | W128: 0 | X128: 0 | Y128: 0
N129: 126 | T129: 0 | W129: 0 | X129: 0 | Y129: 0
N130: 127 | T130: 0 | W130: 0 | X130: 0 | Y130: 0
N131: 128 | T131: 0 | W131: 0 | X131: 0 | Y131: 0
N132: 129 | T132: 0 | W132: 0 | X132: 0 | Y132: 0
N133: 130 | T133: =IF(OR(R133=5,R133=10, R133=15, R133="BP",R133="SCR"),"NT",S133) -> 0 | W133: =IF(OR(U133=5,U133=10, U133=15, U133="BP",U133="SCR"),"NT",V133) -> 0 | X133: =(T133+W133) -> 0 | Y133: =(T133+W133)/2 -> 0
N134: 131 | T134: 0 | W134: 0 | X134: 0 | Y134: 0
N135: 132 | T135: 0 | W135: 0 | X135: 0 | Y135: 0
N136: 133 | T136: 0 | W136: 0 | X136: 0 | Y136: 0
N137: 134 | T137: 0 | W137: 0 | X137: 0 | Y137: 0
N138: 135 | T138: 0 | W138: 0 | X138: 0 | Y138: 0
N139: 136 | T139: 0 | W139: 0 | X139: 0 | Y139: 0
N140: 137 | T140: 0 | W140: 0 | X140: 0 | Y140: 0
N141: 138 | T141: 0 | W141: 0 | X141: 0 | Y141: 0
N142: 139 | T142: 0 | W142: 0 | X142: 0 | Y142: 0
N143: 140 | T143: 0 | W143: 0 | X143: 0 | Y143: 0
N144: 141 | T144: 0 | W144: 0 | X144: 0 | Y144: 0
N145: 142 | T145: 0 | W145: 0 | X145: 0 | Y145: 0
N146: 143 | T146: 0 | W146: 0 | X146: 0 | Y146: 0
N147: 144 | T147: 0 | W147: 0 | X147: 0 | Y147: 0
N148: 145 | T148: 0 | W148: 0 | X148: 0 | Y148: 0
N149: 146 | T149: 0 | W149: 0 | X149: 0 | Y149: 0
N150: 147 | T150: 0 | W150: 0 | X150: 0 | Y150: 0
N151: 148 | T151: 0 | W151: 0 | X151: 0 | Y151: 0
N152: 149 | T152: 0 | W152: 0 | X152: 0 | Y152: 0
N153: 150 | T153: 0 | W153: 0 | X153: 0 | Y153: 0
N154: 151 | T154: 0 | W154: 0 | X154: 0 | Y154: 0
N155: 152 | T155: 0 | W155: 0 | X155: 0 | Y155: 0
N156: 153 | T156: 0 | W156: 0 | X156: 0 | Y156: 0
N157: 154 | T157: 0 | W157: 0 | X157: 0 | Y157: 0
N158: 155 | T158: 0 | W158: 0 | X158: 0 | Y158: 0
N159: 156 | T159: 0 | W159: 0 | X159: 0 | Y159: 0
N160: 157 | T160: 0 | W160: 0 | X160: 0 | Y160: 0
N161: 158 | T161: 0 | W161: 0 | X161: 0 | Y161: 0
N162: 159 | T162: 0 | W162: 0 | X162: 0 | Y162: 0
N163: 160 | T163: 0 | W163: 0 | X163: 0 | Y163: 0
N164: 161 | T164: 0 | W164: 0 | X164: 0 | Y164: 0
N165: 162 | T165: 0 | W165: 0 | X165: 0 | Y165: 0
N166: 163 | T166: 0 | W166: 0 | X166: 0 | Y166: 0
N167: 164 | T167: 0 | W167: 0 | X167: 0 | Y167: 0
N168: 165 | T168: 0 | W168: 0 | X168: 0 | Y168: 0
N169: 166 | T169: 0 | W169: 0 | X169: 0 | Y169: 0
N170: 167 | T170: 0 | W170: 0 | X170: 0 | Y170: 0
N171: 168 | T171: 0 | W171: 0 | X171: 0 | Y171: 0
N172: 169 | T172: 0 | W172: 0 | X172: 0 | Y172: 0
N173: 170 | T173: 0 | W173: 0 | X173: 0 | Y173: 0
N174: 171 | T174: 0 | W174: 0 | X174: 0 | Y174: 0
N175: 172 | T175: 0 | W175: 0 | X175: 0 | Y175: 0
N176: 173 | T176: 0 | W176: 0 | X176: 0 | Y176: 0
N177: 174 | T177: 0 | W177: 0 | X177: 0 | Y177: 0
N178: 175 | T178: 0 | W178: 0 | X178: 0 | Y178: 0
N179: 176 | T179: 0 | W179: 0 | X179: 0 | Y179: 0
N180: 177 | T180: 0 | W180: 0 | X180: 0 | Y180: 0
N181: 178 | T181: 0 | W181: 0 | X181: 0 | Y181: 0
N182: 179 | T182: 0 | W182: 0 | X182: 0 | Y182: 0
N183: 180 | T183: 0 | W183: 0 | X183: 0 | Y183: 0
N184: 181 | T184: 0 | W184: 0 | X184: 0 | Y184: 0
N185: 182 | T185: 0 | W185: 0 | X185: 0 | Y185: 0
N186: 183 | T186: 0 | W186: 0 | X186: 0 | Y186: 0
N187: 184 | T187: 0 | W187: 0 | X187: 0 | Y187: 0
N188: 185 | T188: 0 | W188: 0 | X188: 0 | Y188: 0
N189: 186 | T189: 0 | W189: 0 | X189: 0 | Y189: 0
N190: 187 | T190: 0 | W190: 0 | X190: 0 | Y190: 0
N191: 188 | T191: 0 | W191: 0 | X191: 0 | Y191: 0
N192: 189 | T192: 0 | W192: 0 | X192: 0 | Y192: 0
N193: 190 | T193: 0 | W193: 0 | X193: 0 | Y193: 0
N194: 191 | T194: 0 | W194: 0 | X194: 0 | Y194: 0
N195: 192 | T195: 0 | W195: 0 | X195: 0 | Y195: 0
N196: 193 | T196: 0 | W196: 0 | X196: 0 | Y196: 0
N197: 194 | T197: =IF(OR(R197=5,R197=10, R197=15, R197="BP",R197="SCR"),"NT",S197) -> 0 | W197: =IF(OR(U197=5,U197=10, U197=15, U197="BP",U197="SCR"),"NT",V197) -> 0 | X197: =(T197+W197) -> 0 | Y197: =(T197+W197)/2 -> 0
N198: 195 | T198: 0 | W198: 0 | X198: 0 | Y198: 0
N199: 196 | T199: 0 | W199: 0 | X199: 0 | Y199: 0
N200: 197 | T200: 0 | W200: 0 | X200: 0 | Y200: 0
... 303 more rows

Sheet BFA 2D Payout (hidden)
A1: BFA 2D Payout
A2: Entry Fee | B2: # Entries | C2: % Payback | D2: Added $ | E2: Total Payout | F2: Each Go
A3: 25 | B3: 19 | C3: 0.8 | D3: 200 | E3: =(A3*$C$3)*B3+D3 -> 580 | F3: 0.3
F4: =$E$3*$F$3 -> 174
A5: $5,000-7,500 Pays 5 Places 4 to 1D 1 to 2D
A6: Placings | B6: 1D | D6: 2D
A7: 1st | B7: =($F$4*$C$7) -> 57.42 | C7: 0.33 | D7: =$F$4*$E$7 -> 12.18 | E7: 0.07
A8: 2nd | B8: =$F$4*$C$8 -> 46.98 | C8: 0.27
A9: 3rd | B9: =$F$4*$C$9 -> 34.8 | C9: 0.2
A10: 4th | B10: =$F$4*$C$10 -> 22.62 | C10: 0.13
A11: Totals | B11: =SUM(B7:B10) -> 161.82 | D11: =SUM(D7:D10) -> 12.18 | E11: =(C7+C8+C9+C10+E7+E8) -> 1
A12: =B11+D11 -> 174
A13: $7,501 - 10,000 Pays 6 Places 4 to 1D, 2 to 2D
A14: Placings | B14: 1D | D14: 2D
A15: 1st | B15: =$F$4*$C$15 -> 50.46 | C15: 0.29 | D15: =$F$4*$E$15 -> 15.66 | E15: 0.09
A16: 2nd | B16: =+$F$4*$C$16 -> 41.76 | C16: 0.24 | D16: =F4*E16 -> 8.7 | E16: 0.05
A17: 3rd | B17: =$F$4*$C$17 -> 33.06 | C17: 0.19
A18: 4th | B18: =$F$4*$C$18 -> 24.36 | C18: 0.14
A19: Totals | B19: =SUM(B15:B18) -> 149.64 | D19: =D16+D15 -> 24.36 | E19: =SUM(C15+C16+C17+C18+E15+E16) -> 1
A20: =D19+B19 -> 174
A21: $10,001 - $15,000 Payes 8 Places 5 to 1D, 3 to 2D
A22: Placings | B22: 1D | D22: 2D
A23: 1st | B23: =F4*C23 -> 41.76 | C23: 0.24 | D23: =F4*E23 -> 12.18 | E23: 0.07
A24: 2nd | B24: =F4*C24 -> 34.8 | C24: 0.2 | D24: =F4*E24 -> 8.7 | E24: 0.05
A25: 3rd | B25: =F4*C25 -> 29.58 | C25: 0.17 | D25: =F4*E25 -> 6.96 | E25: 0.04
A26: 4th | B26: =F4*C26 -> 22.62 | C26: 0.13
A27: 5th | B27: =F4*C27 -> 17.4 | C27: 0.1
A28: Totals | B28: =SUM(B23:B27) -> 146.16 | D28: =SUM(D23:D27) -> 27.84 | E28: =C23+C24+C25+C26+C27+E23+E24+E25 -> 1
A29: =B28+D28 -> 174
A30: $15,001 - $25,000 Payes 11 Places 7 to 1D, 4 to 2D
A31: Placings | B31: 1D | D31: 2D
A32: 1st | B32: =$F$4*C32 -> 36.54 | C32: 0.21 | D32: =$F$4*E32 -> 8.7 | E32: 0.05
A33: 2nd | B33: =$F$4*C33 -> 31.32 | C33: 0.18 | D33: =$F$4*E33 -> 6.96 | E33: 0.04
A34: 3rd | B34: 26.1 | C34: 0.15 | D34: 5.22 | E34: 0.03
A35: 4th | B35: 19.14 | C35: 0.11 | D35: 3.48 | E35: 0.02
A36: 5th | B36: 13.92 | C36: 0.08
A37: 6th | B37: 12.18 | C37: 0.07
A38: 7th | B38: 10.44 | C38: 0.06
A39: Totals | B39: =SUM(B32:B38) -> 149.64 | D39: =SUM(D32:D38) -> 24.36 | E39: =C32+C33+C34+C35+C36+C37+C38+E32+E33+E34+E35 -> 1
A40: =SUM(B39+D39) -> 174
A41: $25,001 - $35,000 Payes 12 Places 8 to 1D, 4 to 2D
A42: Placings | B42: 1D | D42: 2D
A43: 1st | B43: =$F$4*C43 -> 33.06 | C43: 0.19 | D43: =$F$4*E43 -> 8.7 | E43: 0.05
A44: 2nd | B44: =$F$4*C44 -> 26.1 | C44: 0.15 | D44: =$F$4*E44 -> 6.96 | E44: 0.04
A45: 3rd | B45: 20.88 | C45: 0.12 | D45: 5.22 | E45: 0.03
A46: 4th | B46: 17.4 | C46: 0.1 | D46: 3.48 | E46: 0.02
A47: 5th | B47: 15.66 | C47: 0.09
A48: 6th | B48: 13.92 | C48: 0.08
A49: 7th | B49: 12.18 | C49: 0.07
A50: 8th | B50: 10.44 | C50: 0.06
A51: Totals | B51: =SUM(B43:B50) -> 149.64 | D51: =SUM(D43:D46) -> 24.36 | E51: =C43+C44+C45+C46+C47+C48+C49+C50+E43+E44+E45+E46 -> 1
A52: =D51+B51 -> 174

Sheet 2D Payout
A1: 2D Payout
A2: Entry Fee | B2: # Entries | C2: % Payback | D2: Added $ | E2: Total Payout
A3: 50 | B3: 75 | C3: 0.8 | D3: 1500 | E3: =(A3*$C$3)*B3+D3 -> 4500
A5: % in each D | B5: 0.7 | C5: 0.3 | D5: Total % = | E5: =SUM(B5:C5) -> 1
B6: 1D | C6: 2D
B7: =(($A$3*$B$3*$C$3*$B$5)+($D$3*$B$5)) -> 3150 | C7: =(($A$3*$B$3*$C$3*$C$5)+($D$3*$C$5)) -> 1350
A8: Totals | B8: =SUM(B7) -> 3150 | C8: =SUM(C7) -> 1350 | D8: =SUM(B8:C8) -> 4500
A10: For 1-7 riders 1 place
A11: Placings | B11: 1D | C11: 2D
A12: 1st | B12: =$B$7*$E$12 -> 3150 | C12: =$C$7*$E$5 -> 1350 | D12: è | E12: 1
A13: Totals | B13: =SUM(B12:B12) -> 3150 | C13: =SUM(C12:C12) -> 1350 | D13: =SUM(B13:C13) -> 4500 | E13: =SUM(E12) -> 1
A15: For 8-11 riders 2 places
A16: Placings | B16: 1D | C16: 2D
A17: 1st | B17: =$B$7*$E$17 -> 1890 | C17: =$C$7*$E$17 -> 810 | D17: è | E17: 0.6
A18: 2nd | B18: =$B$7*$E$18 -> 1260 | C18: =$C$7*$E$18 -> 540 | D18: è | E18: 0.4
A19: Totals | B19: =SUM(B17:B18) -> 3150 | C19: =SUM(C17:C18) -> 1350 | D19: =SUM(B19:C19) -> 4500 | E19: =SUM(E17:E18) -> 1
A21: For 12-15 riders 3 places
A22: Placings | B22: 1D | C22: 2D
A23: 1st | B23: =$B$7*$E$23 -> 1575 | C23: =$C$7*$E$23 -> 675 | D23: è | E23: 0.5
A24: 2nd | B24: =$B$7*$E$24 -> 945 | C24: =$C$7*$E$24 -> 405 | D24: è | E24: 0.3
A25: 3rd | B25: =$B$7*$E$25 -> 630 | C25: =$C$7*$E$25 -> 270 | D25: è | E25: 0.2
A26: Totals | B26: =SUM(B23:B25) -> 3150 | C26: =SUM(C23:C25) -> 1350 | D26: =SUM(B26:C26) -> 4500 | E26: =SUM(E23:E25) -> 1
A28: For 16-19 riders 4 places
A29: Placings | B29: 1D | C29: 2D
A30: 1st | B30: =$B$7*$E$30 -> 1260 | C30: =$C$7*$E$30 -> 540 | D30: è | E30: 0.4
A31: 2nd | B31: =$B$7*$E$31 -> 945 | C31: =$C$7*$E$31 -> 405 | D31: è | E31: 0.3
A32: 3rd | B32: =$B$7*$E$32 -> 630 | C32: =$C$7*$E$32 -> 270 | D32: è | E32: 0.2
A33: 4th | B33: =$B$7*$E$33 -> 315 | C33: =$C$7*$E$33 -> 135 | D33: è | E33: 0.1
A34: Totals | B34: =SUM(B30:B33) -> 3150 | C34: =SUM(C30:C33) -> 1350 | D34: =SUM(B34:C34) -> 4500 | E34: =SUM(E30:E33) -> 1
A36: For 20-23 riders 5 places
A37: Placings | B37: 1D | C37: 2D
A38: 1st | B38: =$B$7*$E$38 -> 945 | C38: =$C$7*$E$38 -> 405 | D38: è | E38: 0.3
A39: 2nd | B39: =$B$7*$E$39 -> 787.5 | C39: =$C$7*$E$39 -> 337.5 | D39: è | E39: 0.25
A40: 3rd | B40: =$B$7*$E$40 -> 630 | C40: =$C$7*$E$40 -> 270 | D40: è | E40: 0.2
A41: 4th | B41: =$B$7*$E$41 -> 472.5 | C41: =$C$7*$E$41 -> 202.5 | D41: è | E41: 0.15
A42: 5th | B42: =$B$7*$E$42 -> 315 | C42: =$C$7*$E$42 -> 135 | D42: è | E42: 0.1
A43: Totals | B43: =SUM(B38:B42) -> 3150 | C43: =SUM(C38:C42) -> 1350 | D43: =SUM(B43:C43) -> 4500 | E43: =SUM(E38:E42) -> 1
A45: For 24-27 riders 6 places
A46: Placings | B46: 1D | C46: 2D
A47: 1st | B47: =$B$7*$E$47 -> 787.5 | C47: =$C$7*$E$47 -> 337.5 | D47: è | E47: 0.25
A48: 2nd | B48: =$B$7*$E$48 -> 630 | C48: =$C$7*$E$48 -> 270 | D48: è | E48: 0.2
A49: 3rd | B49: =$B$7*$E$49 -> 567 | C49: =$C$7*$E$49 -> 243 | D49: è | E49: 0.18
A50: 4th | B50: =$B$7*$E$50 -> 472.5 | C50: =$C$7*$E$50 -> 202.5 | D50: è | E50: 0.15
A51: 5th | B51: =$B$7*$E$51 -> 378 | C51: =$C$7*$E$51 -> 162 | D51: è | E51: 0.12
A52: 6th | B52: =$B$7*$E$52 -> 315 | C52: =$C$7*$E$52 -> 135 | D52: è | E52: 0.1
A53: Totals | B53: =SUM(B47:B52) -> 3150 | C53: =SUM(C47:C52) -> 1350 | D53: =SUM(B53:C53) -> 4500 | E53: =SUM(E47:E52) -> 1
A55: For 28-31 riders 7 places
A56: Placings | B56: 1D | C56: 2D
A57: 1st | B57: =$B$7*$E$57 -> 693 | C57: =$C$7*$E$57 -> 297 | D57: è | E57: 0.22
A58: 2nd | B58: =$B$7*$E$58 -> 567 | C58: =$C$7*$E$58 -> 243 | D58: è | E58: 0.18
A59: 3rd | B59: =$B$7*$E$59 -> 504 | C59: =$C$7*$E$59 -> 216 | D59: è | E59: 0.16
A60: 4th | B60: =$B$7*$E$60 -> 441 | C60: =$C$7*$E$60 -> 189 | D60: è | E60: 0.14
A61: 5th | B61: =$B$7*$E$61 -> 378 | C61: =$C$7*$E$61 -> 162 | D61: è | E61: 0.12
A62: 6th | B62: =$B$7*$E$62 -> 315 | C62: =$C$7*$E$62 -> 135 | D62: è | E62: 0.1
A63: 7th | B63: =$B$7*$E$63 -> 252 | C63: =$C$7*$E$63 -> 108 | D63: è | E63: 0.08
A64: Totals | B64: =SUM(B57:B63) -> 3150 | C64: =SUM(C57:C63) -> 1350 | D64: =SUM(B64:C64) -> 4500 | E64: =SUM(E57:E63) -> 1
A66: For 32 or more riders 8 places
A67: Placings | B67: 1D | C67: 2D
A68: 1st | B68: =$B$7*$E$68 -> 724.5 | C68: =$C$7*$E$68 -> 310.5 | D68: è | E68: 0.23
A69: 2nd | B69: =$B$7*$E$69 -> 630 | C69: =$C$7*$E$69 -> 270 | D69: è | E69: 0.2
A70: 3rd | B70: =$B$7*$E$70 -> 535.5 | C70: =$C$7*$E$70 -> 229.5 | D70: è | E70: 0.17
A71: 4th | B71: =$B$7*$E$71 -> 441 | C71: =$C$7*$E$71 -> 189 | D71: è | E71: 0.14
A72: 5th | B72: =$B$7*$E$72 -> 346.5 | C72: =$C$7*$E$72 -> 148.5 | D72: è | E72: 0.11
A73: 6th | B73: =$B$7*$E$73 -> 252 | C73: =$C$7*$E$73 -> 108 | D73: è | E73: 0.08
A74: 7th | B74: =$B$7*$E$74 -> 157.5 | C74: =$C$7*$E$74 -> 67.5 | D74: è | E74: 0.05
A75: 8th | B75: =$B$7*$E$75 -> 63 | C75: =$C$7*$E$75 -> 27 | D75: è | E75: 0.02
A76: Totals | B76: =SUM(B68:B75) -> 3150 | C76: =SUM(C68:C75) -> 1350 | D76: =SUM(B76:C76) -> 4500 | E76: =SUM(E68:E75) -> 1

Sheet 3D Payout (hidden)
A1: 3D Payout
A2: Entry Fee | B2: # Entries | C2: % Payback | D2: $ From Entry | E2: Added $ | F2: Total Payout
A3: 10 | B3: 3 | C3: 0.8 | D3: =$A$3*$C$3*$B$3 -> 24 | F3: =$D$3+$E$3 -> 24
A5: % in each D | B5: 0.5 | C5: 0.3 | D5: 0.2 | E5: Total % = | F5: =SUM(B5:D5) -> 1
B6: 1D | C6: 2D | D6: 3D
B7: =(($A$3*$B$3*$C$3*$B$5)+($E$3*$B$5)) -> 12 | C7: =(($A$3*$B$3*$C$3*$C$5)+($E$3*$C$5)) -> 7.2 | D7: =(($A$3*$B$3*$C$3*$D$5)+($E$3*$D$5)) -> 4.8
A8: Totals | B8: =SUM(B7) -> 12 | C8: =SUM(C7) -> 7.2 | D8: 4.8 | E8: =SUM(B8:D8) -> 24
A10: For 1-10 riders 1 place
A11: Placings | B11: 1D | C11: 2D | D11: 3D
A12: 1st | B12: =$B$7*$F$12 -> 12 | C12: =$C$7*$F$12 -> 7.2 | D12: =$D$7*$F$12 -> 4.8 | E12: è | F12: 1
A13: Totals | B13: =SUM(B12:B12) -> 12 | C13: =SUM(C12:C12) -> 7.2 | D13: =SUM(D12:D12) -> 4.8 | E13: =SUM(B13:D13) -> 24 | F13: =SUM(F12) -> 1
A15: For 11-15 riders 2 places
A16: Placings | B16: 1D | C16: 2D | D16: 3D
A17: 1st | B17: =$B$7*$F$17 -> 7.2 | C17: =$C$7*$F$17 -> 4.32 | D17: =$D$7*$F$17 -> 2.88 | E17: è | F17: 0.6
A18: 2nd | B18: =$B$7*$F$18 -> 4.8 | C18: =$C$7*$F$18 -> 2.88 | D18: =$D$7*$F$18 -> 1.92 | E18: è | F18: 0.4
A19: Totals | B19: =SUM(B17:B18) -> 12 | C19: =SUM(C17:C18) -> 7.2 | D19: =SUM(D17:D18) -> 4.8 | E19: =SUM(B19:D19) -> 24 | F19: =SUM(F17:F18) -> 1
A21: For 16-30 riders 3 places
A22: Placings | B22: 1D | C22: 2D | D22: 3D
A23: 1st | B23: =$B$7*$F$23 -> 6 | C23: =$C$7*$F$23 -> 3.6 | D23: =$D$7*$F$23 -> 2.4 | E23: è | F23: 0.5
A24: 2nd | B24: =$B$7*$F$24 -> 3.6 | C24: =$C$7*$F$24 -> 2.16 | D24: =$D$7*$F$24 -> 1.44 | E24: è | F24: 0.3
A25: 3rd | B25: =$B$7*$F$25 -> 2.4 | C25: =$C$7*$F$25 -> 1.44 | D25: =$D$7*$F$25 -> 0.96 | E25: è | F25: 0.2
A26: Totals | B26: =SUM(B23:B25) -> 12 | C26: =SUM(C23:C25) -> 7.2 | D26: =SUM(D22:D25) -> 4.8 | E26: =SUM(B26:D26) -> 24 | F26: =SUM(F23:F25) -> 1
A28: For 31-60 riders 4 places
A29: Placings | B29: 1D | C29: 2D | D29: 3D
A30: 1st | B30: =$B$7*$F$30 -> 5.04 | C30: =$C$7*$F$30 -> 3.024 | D30: =$D$7*$F$30 -> 2.016 | E30: è | F30: 0.42
A31: 2nd | B31: =$B$7*$F$31 -> 3.48 | C31: =$C$7*$F$31 -> 2.088 | D31: =$D$7*$F$31 -> 1.392 | E31: è | F31: 0.29
A32: 3rd | B32: =$B$7*$F$32 -> 2.28 | C32: =$C$7*$F$32 -> 1.368 | D32: =$D$7*$F$32 -> 0.912 | E32: è | F32: 0.19
A33: 4th | B33: =$B$7*$F$33 -> 1.2 | C33: =$C$7*$F$33 -> 0.72 | D33: =$D$7*$F$33 -> 0.48 | E33: è | F33: 0.1
A34: Totals | B34: =SUM(B30:B33) -> 12 | C34: =SUM(C30:C33) -> 7.2 | D34: =SUM(D30:D33) -> 4.8 | E34: =SUM(B34:D34) -> 24 | F34: =SUM(F30:F33) -> 1
A36: For 61-90 riders 5 places
A37: Placings | B37: 1D | C37: 2D | D37: 3D
A38: 1st | B38: =$B$7*$F$38 -> 4.56 | C38: =$C$7*$F$38 -> 2.736 | D38: =$D$7*$F$38 -> 1.824 | E38: è | F38: 0.38
A39: 2nd | B39: =$B$7*$F$39 -> 3.36 | C39: =$C$7*$F$39 -> 2.016 | D39: =$D$7*$F$39 -> 1.344 | E39: è | F39: 0.28
A40: 3rd | B40: =$B$7*$F$40 -> 2.16 | C40: =$C$7*$F$40 -> 1.296 | D40: =$D$7*$F$40 -> 0.864 | E40: è | F40: 0.18
A41: 4th | B41: =$B$7*$F$41 -> 1.2 | C41: =$C$7*$F$41 -> 0.72 | D41: =$D$7*$F$41 -> 0.48 | E41: è | F41: 0.1
A42: 5th | B42: =$B$7*$F$42 -> 0.72 | C42: =$C$7*$F$42 -> 0.432 | D42: =$D$7*$F$42 -> 0.288 | E42: è | F42: 0.06
A43: Totals | B43: =SUM(B38:B42) -> 12 | C43: =SUM(C38:C42) -> 7.2 | D43: =SUM(D38:D42) -> 4.8 | E43: =SUM(B43:D43) -> 24 | F43: =SUM(F38:F42) -> 1
A45: For 91-120 riders 6 places
A46: Placings | B46: 1D | C46: 2D | D46: 3D
A47: 1st | B47: =$B$7*$F$47 -> 4.32 | C47: =$C$7*$F$47 -> 2.592 | D47: =$D$7*$F$47 -> 1.728 | E47: è | F47: 0.36
A48: 2nd | B48: =$B$7*$F$48 -> 3.12 | C48: =$C$7*$F$48 -> 1.872 | D48: =$D$7*$F$48 -> 1.248 | E48: è | F48: 0.26
A49: 3rd | B49: =$B$7*$F$49 -> 1.92 | C49: =$C$7*$F$49 -> 1.152 | D49: =$D$7*$F$49 -> 0.768 | E49: è | F49: 0.16
A50: 4th | B50: =$B$7*$F$50 -> 1.2 | C50: =$C$7*$F$50 -> 0.72 | D50: =$D$7*$F$50 -> 0.48 | E50: è | F50: 0.1
A51: 5th | B51: =$B$7*$F$51 -> 0.84 | C51: =$C$7*$F$51 -> 0.504 | D51: =$D$7*$F$51 -> 0.336 | E51: è | F51: 0.07
A52: 6th | B52: =$B$7*$F$52 -> 0.6 | C52: =$C$7*$F$52 -> 0.36 | D52: =$D$7*$F$52 -> 0.24 | E52: è | F52: 0.05
A53: Totals | B53: =SUM(B47:B52) -> 12 | C53: =SUM(C47:C52) -> 7.2 | D53: =SUM(D47:D52) -> 4.8 | E53: =SUM(B53:D53) -> 24 | F53: =SUM(F47:F52) -> 1
A55: For 121-200 riders 7 places
A56: Placings | B56: 1D | C56: 2D | D56: 3D
A57: 1st | B57: =$B$7*$F$57 -> 3.12 | C57: =$C$7*$F$57 -> 1.872 | D57: =$D$7*$F$57 -> 1.248 | E57: è | F57: 0.26
A58: 2nd | B58: =$B$7*$F$58 -> 2.4 | C58: =$C$7*$F$58 -> 1.44 | D58: =$D$7*$F$58 -> 0.96 | E58: è | F58: 0.2
A59: 3rd | B59: =$B$7*$F$59 -> 1.8 | C59: =$C$7*$F$59 -> 1.08 | D59: =$D$7*$F$59 -> 0.72 | E59: è | F59: 0.15
A60: 4th | B60: =$B$7*$F$60 -> 1.44 | C60: =$C$7*$F$60 -> 0.864 | D60: =$D$7*$F$60 -> 0.576 | E60: è | F60: 0.12
A61: 5th | B61: =$B$7*$F$61 -> 1.2 | C61: =$C$7*$F$61 -> 0.72 | D61: =$D$7*$F$61 -> 0.48 | E61: è | F61: 0.1
A62: 6th | B62: =$B$7*$F$62 -> 1.08 | C62: =$C$7*$F$62 -> 0.648 | D62: =$D$7*$F$62 -> 0.432 | E62: è | F62: 0.09
A63: 7th | B63: =$B$7*$F$63 -> 0.96 | C63: =$C$7*$F$63 -> 0.576 | D63: =$D$7*$F$63 -> 0.384 | E63: è | F63: 0.08
A64: Totals | B64: =SUM(B57:B63) -> 12 | C64: =SUM(C57:C63) -> 7.2 | D64: =SUM(D57:D63) -> 4.8 | E64: =SUM(B64:D64) -> 24 | F64: =SUM(F57:F63) -> 1
A66: For 201 or more riders 8 places
A67: Placings | B67: 1D | C67: 2D | D67: 3D
A68: 1st | B68: =$B$7*0.24 -> 2.88 | C68: =$C$7*0.24 -> 1.728 | D68: =$D$7*0.24 -> 1.152 | E68: è | F68: 0.24
A69: 2nd | B69: =$B$7*0.18 -> 2.16 | C69: =$C$7*0.18 -> 1.296 | D69: =$D$7*0.18 -> 0.864 | E69: è | F69: 0.18
A70: 3rd | B70: =$B$7*0.15 -> 1.8 | C70: =$C$7*0.15 -> 1.08 | D70: =$D$7*0.15 -> 0.72 | E70: è | F70: 0.15
A71: 4th | B71: =$B$7*0.12 -> 1.44 | C71: =$C$7*0.12 -> 0.864 | D71: =$D$7*0.12 -> 0.576 | E71: è | F71: 0.12
A72: 5th | B72: =$B$7*0.1 -> 1.2 | C72: =$C$7*0.1 -> 0.72 | D72: =$D$7*0.1 -> 0.48 | E72: è | F72: 0.1
A73: 6th | B73: =$B$7*0.08 -> 0.96 | C73: =$C$7*0.08 -> 0.576 | D73: =$D$7*0.08 -> 0.384 | E73: è | F73: 0.08
A74: 7th | B74: =$B$7*0.07 -> 0.84 | C74: =$C$7*0.07 -> 0.504 | D74: =$D$7*0.07 -> 0.336 | E74: è | F74: 0.07
A75: 8th | B75: =$B$7*0.06 -> 0.72 | C75: =$C$7*0.06 -> 0.432 | D75: =$D$7*0.06 -> 0.288 | E75: è | F75: 0.06
A76: Totals | B76: =SUM(B68:B75) -> 12 | C76: =SUM(C68:C75) -> 7.2 | D76: =SUM(D68:D75) -> 4.8 | E76: =SUM(B76:D76) -> 24 | F76: =SUM(F68:F75) -> 1

Sheet 4D Payout BBR (hidden)
A1: 4D Payout BBR
A2: Entry Fee | B2: # Entries | C2: % Payback | D2: $ From Entry | E2: Added $ | F2: Total Payout
A3: 40 | B3: 200 | C3: 0.8 | D3: =$A$3*$C$3*$B$3 -> 6400 | E3: 1100 | F3: =($A$3*$C$3)*$B$3+$E$3 -> 7500
A5: % in each D | B5: 0.35 | C5: 0.3 | D5: 0.2 | E5: 0.15 | F5: Total % Payout | G5: =SUM(B5:E5) -> 1
B6: 1D | C6: 2D | D6: 3D | E6: 4D
B7: =(($A$3*$B$3*$C$3*0.35)+($E$3/4)) -> 2515 | C7: =(($A$3*$B$3*$C$3*0.3)+($E$3/4)) -> 2195 | D7: =(($A$3*$B$3*$C$3*0.2)+($E$3/4)) -> 1555 | E7: =(($A$3*$B$3*$C$3*0.15)+($E$3/4)) -> 1235
A8: Totals | B8: =SUM(B7) -> 2515 | C8: =SUM(C7) -> 2195 | D8: 1555 | E8: 1235 | F8: =SUM(B8:E8) -> 7500
A10: For 1-16 riders 1 place
A11: Placings | B11: 1D | C11: 2D | D11: 3D | E11: 4D
A12: 1st | B12: =$B$7*$G$12 -> 2515 | C12: =$C$7*$G$12 -> 2195 | D12: =$D$7*$G$12 -> 1555 | E12: =$E$7*$G$12 -> 1235 | F12: è | G12: 1
A13: Totals | B13: =SUM(B12:B12) -> 2515 | C13: =SUM(C12:C12) -> 2195 | D13: =SUM(D12:D12) -> 1555 | E13: =SUM(E12:E12) -> 1235 | F13: =SUM(B13:E13) -> 7500 | G13: =SUM(G12) -> 1
A15: For 17-33 riders 2 places
A16: Placings | B16: 1D | C16: 2D | D16: 3D | E16: 4D
A17: 1st | B17: =$B$7*$G$17 -> 1509 | C17: =$C$7*$G$17 -> 1317 | D17: =$D$7*$G$17 -> 933 | E17: =$E$7*$G$17 -> 741 | F17: è | G17: 0.6
A18: 2nd | B18: =$B$7*$G$18 -> 1006 | C18: =$C$7*$G$18 -> 878 | D18: =$D$7*$G$18 -> 622 | E18: =$E$7*$G$18 -> 494 | F18: è | G18: 0.4
A19: Totals | B19: =SUM(B17:B18) -> 2515 | C19: =SUM(C17:C18) -> 2195 | D19: =SUM(D17:D18) -> 1555 | E19: =SUM(E17:E18) -> 1235 | F19: =SUM(B19:E19) -> 7500 | G19: =SUM(G17:G18) -> 1
A21: For 34-66 riders 3 places
A22: Placings | B22: 1D | C22: 2D | D22: 3D | E22: 4D
A23: 1st | B23: =$B$7*$G$23 -> 1257.5 | C23: =$C$7*$G$23 -> 1097.5 | D23: =$D$7*$G$23 -> 777.5 | E23: =$E$7*$G$23 -> 617.5 | F23: è | G23: 0.5
A24: 2nd | B24: =$B$7*$G$24 -> 754.5 | C24: =$C$7*$G$24 -> 658.5 | D24: =$D$7*$G$24 -> 466.5 | E24: =$E$7*$G$24 -> 370.5 | F24: è | G24: 0.3
A25: 3rd | B25: =$B$7*$G$25 -> 503 | C25: =$C$7*$G$25 -> 439 | D25: =$D$7*$G$25 -> 311 | E25: =$E$7*$G$25 -> 247 | F25: è | G25: 0.2
A26: Totals | B26: =SUM(B23:B25) -> 2515 | C26: =SUM(C23:C25) -> 2195 | D26: =SUM(D23:D25) -> 1555 | E26: =SUM(E23:E25) -> 1235 | F26: =SUM(B26:E26) -> 7500 | G26: =SUM(G23:G25) -> 1
A28: For 97-95 riders 4 places
A29: Placings | B29: 1D | C29: 2D | D29: 3D | E29: 4D
A30: 1st | B30: =$B$7*$G$30 -> 1006 | C30: =$C$7*$G$30 -> 878 | D30: =$D$7*$G$30 -> 622 | E30: =$E$7*$G$30 -> 494 | F30: è | G30: 0.4
A31: 2nd | B31: =$B$7*$G$31 -> 754.5 | C31: =$C$7*$G$31 -> 658.5 | D31: =$D$7*$G$31 -> 466.5 | E31: =$E$7*$G$31 -> 370.5 | F31: è | G31: 0.3
A32: 3rd | B32: =$B$7*$G$32 -> 503 | C32: =$C$7*$G$32 -> 439 | D32: =$D$7*$G$32 -> 311 | E32: =$E$7*$G$32 -> 247 | F32: è | G32: 0.2
A33: 4th | B33: =$B$7*$G$33 -> 251.5 | C33: =$C$7*$G$33 -> 219.5 | D33: =$D$7*$G$33 -> 155.5 | E33: =$E$7*$G$33 -> 123.5 | F33: è | G33: 0.1
A34: Totals | B34: =SUM(B30:B33) -> 2515 | C34: =SUM(C30:C33) -> 2195 | D34: =SUM(D30:D33) -> 1555 | E34: =SUM(E30:E33) -> 1235 | F34: =SUM(B34:E34) -> 7500 | G34: =SUM(G30:G33) -> 1
A36: For 96-133 riders 5 places
A37: Placings | B37: 1D | C37: 2D | D37: 3D | E37: 4D
A38: 1st | B38: =$B$7*$G$38 -> 829.95 | C38: =$C$7*$G$38 -> 724.35 | D38: =$D$7*G38 -> 513.15 | E38: =$E$7*$G$38 -> 407.55 | F38: è | G38: 0.33
A39: 2nd | B39: =$B$7*$G$39 -> 679.05 | C39: =$C$7*$G$39 -> 592.65 | D39: =$D$7*$G$39 -> 419.85 | E39: =$E$7*$G$39 -> 333.45 | F39: è | G39: 0.27
A40: 3rd | B40: =$B$7*$G$40 -> 503 | C40: =$C$7*$G$40 -> 439 | D40: =$D$7*$G$40 -> 311 | E40: =$E$7*$G$40 -> 247 | F40: è | G40: 0.2
A41: 4th | B41: =$B$7*$G$41 -> 326.95 | C41: =$C$7*$G$41 -> 285.35 | D41: =$D$7*$G$41 -> 202.15 | E41: =$E$7*$G$41 -> 160.55 | F41: è | G41: 0.13
A42: 5th | B42: =$B$7*$G$42 -> 176.05 | C42: =$C$7*$G$42 -> 153.65 | D42: =$D$7*$G$42 -> 108.85 | E42: =$E$7*$G$42 -> 86.45 | F42: è | G42: 0.07
A43: Totals | B43: =SUM(B38:B42) -> 2515 | C43: =SUM(C38:C42) -> 2195 | D43: =SUM(D38:D42) -> 1555 | E43: =SUM(E38:E42) -> 1235 | F43: =SUM(B43:E43) -> 7500 | G43: =SUM(G38:G42) -> 1
A45: For 134-166 riders 6 places
A46: Placings | B46: 1D | C46: 2D | D46: 3D | E46: 4D
A47: 1st | B47: =$B$7*$G$47 -> 729.35 | C47: =$C$7*$G$47 -> 636.55 | D47: =$D$7*$G$47 -> 450.95 | E47: =$E$7*$G$47 -> 358.15 | F47: è | G47: 0.29
A48: 2nd | B48: =$B$7*$G$48 -> 603.6 | C48: =$C$7*$G$48 -> 526.8 | D48: =$D$7*$G$48 -> 373.2 | E48: =$E$7*$G$48 -> 296.4 | F48: è | G48: 0.24
A49: 3rd | B49: =$B$7*$G$49 -> 477.85 | C49: =$C$7*$G$49 -> 417.05 | D49: =$D$7*$G$49 -> 295.45 | E49: =$E$7*$G$49 -> 234.65 | F49: è | G49: 0.19
A50: 4th | B50: =$B$7*$G$50 -> 352.1 | C50: =$C$7*$G$50 -> 307.3 | D50: =$D$7*$G$50 -> 217.7 | E50: =$E$7*$G$50 -> 172.9 | F50: è | G50: 0.14
A51: 5th | B51: =$B$7*$G$51 -> 226.35 | C51: =$C$7*$G$51 -> 197.55 | D51: =$D$7*$G$51 -> 139.95 | E51: =$E$7*$G$51 -> 111.15 | F51: è | G51: 0.09
A52: 6th | B52: =$B$7*$G$52 -> 125.75 | C52: =$C$7*$G$52 -> 109.75 | D52: =$D$7*$G$52 -> 77.75 | E52: =$E$7*$G$52 -> 61.75 | F52: è | G52: 0.05
A53: Totals | B53: =SUM(B47:B52) -> 2515 | C53: =SUM(C47:C52) -> 2195 | D53: =SUM(D47:D52) -> 1555 | E53: =SUM(E47:E52) -> 1235 | F53: =SUM(B53:E53) -> 7500 | G53: =SUM(G47:G52) -> 1
A55: For 167-222 riders 8 places
A56: Placings | B56: 1D | C56: 2D | D56: 3D | E56: 4D
A57: 1st | B57: =$B$7*$G$57 -> 603.6 | C57: =$C$7*$G$57 -> 526.8 | D57: =$D$7*$G$57 -> 373.2 | E57: =$E$7*$G$57 -> 296.4 | F57: è | G57: 0.24
A58: 2nd | B58: =$B$7*$G$58 -> 503 | C58: =$C$7*$G$58 -> 439 | D58: =$D$7*$G$58 -> 311 | E58: =$E$7*$G$58 -> 247 | F58: è | G58: 0.2
A59: 3rd | B59: =$B$7*$G$59 -> 427.55 | C59: =$C$7*$G$59 -> 373.15 | D59: =$D$7*$G$59 -> 264.35 | E59: =$E$7*$G$59 -> 209.95 | F59: è | G59: 0.17
A60: 4th | B60: =$B$7*$G$60 -> 326.95 | C60: =$C$7*$G$60 -> 285.35 | D60: =$D$7*$G$60 -> 202.15 | E60: =$E$7*$G$60 -> 160.55 | F60: è | G60: 0.13
A61: 5th | B61: =$B$7*$G$61 -> 251.5 | C61: =$C$7*$G$61 -> 219.5 | D61: =$D$7*$G$61 -> 155.5 | E61: =$E$7*$G$61 -> 123.5 | F61: è | G61: 0.1
A62: 6th | B62: =$B$7*$G$62 -> 176.05 | C62: =$C$7*$G$62 -> 153.65 | D62: =$D$7*$G$62 -> 108.85 | E62: =$E$7*$G$62 -> 86.45 | F62: è | G62: 0.07
A63: 7th | B63: =$B$7*$G$63 -> 125.75 | C63: =$C$7*$G$63 -> 109.75 | D63: =$D$7*$G$63 -> 77.75 | E63: =$E$7*$G$63 -> 61.75 | F63: è | G63: 0.05
A64: 8th | B64: =$B$7*$G$64 -> 100.6 | C64: =$C$7*$G$64 -> 87.8 | D64: =$D$7*$G$64 -> 62.2 | E64: =$E$7*$G$64 -> 49.4 | F64: è | G64: 0.04
A65: Totals | B65: =SUM(B57:B64) -> 2515 | C65: =SUM(C57:C64) -> 2195 | D65: =SUM(D57:D64) -> 1555 | E65: =SUM(E57:E64) -> 1235 | F65: =SUM(B65:E65) -> 7500 | G65: =SUM(G57:G64) -> 1
A67: For 223-333 riders 10 places
A68: Placings | B68: 1D | C68: 2D | D68: 3D | E68: 4D
A69: 1st | B69: =$B$7*$G$69 -> 528.15 | C69: =$C$7*$G$69 -> 460.95 | D69: =$D$7*$G$69 -> 326.55 | E69: =$E$7*$G$69 -> 259.35 | F69: è | G69: 0.21
A70: 2nd | B70: =$B$7*$G$70 -> 452.7 | C70: =$C$7*$G$70 -> 395.1 | D70: =$D$7*$G$70 -> 279.9 | E70: =$E$7*$G$70 -> 222.3 | F70: è | G70: 0.18
A71: 3rd | B71: =$B$7*$G$71 -> 377.25 | C71: =$C$7*$G$71 -> 329.25 | D71: =$D$7*$G$71 -> 233.25 | E71: =$E$7*$G$71 -> 185.25 | F71: è | G71: 0.15
A72: 4th | B72: =$B$7*$G$72 -> 301.8 | C72: =$C$7*$G$72 -> 263.4 | D72: =$D$7*$G$72 -> 186.6 | E72: =$E$7*$G$72 -> 148.2 | F72: è | G72: 0.12
A73: 5th | B73: =$B$7*$G$73 -> 226.35 | C73: =$C$7*$G$73 -> 197.55 | D73: =$D$7*$G$73 -> 139.95 | E73: =$E$7*$G$73 -> 111.15 | F73: è | G73: 0.09
A74: 6th | B74: =$B$7*$G$74 -> 176.05 | C74: =$C$7*$G$74 -> 153.65 | D74: =$D$7*$G$74 -> 108.85 | E74: =$E$7*$G$74 -> 86.45 | F74: è | G74: 0.07
A75: 7th | B75: =$B$7*$G$75 -> 150.9 | C75: =$C$7*$G$75 -> 131.7 | D75: =$D$7*$G$75 -> 93.3 | E75: =$E$7*$G$75 -> 74.1 | F75: è | G75: 0.06
A76: 8th | B76: =$B$7*$G$76 -> 125.75 | C76: =$C$7*$G$76 -> 109.75 | D76: =$D$7*$G$76 -> 77.75 | E76: =$E$7*$G$76 -> 61.75 | F76: è | G76: 0.05
A77: 9th | B77: =$B$7*$G$77 -> 100.6 | C77: =$C$7*$G$77 -> 87.8 | D77: =$D$7*$G$77 -> 62.2 | E77: =$E$7*$G$77 -> 49.4 | F77: è | G77: 0.04
A78: 10th | B78: =$B$7*$G$78 -> 75.45 | C78: =$C$7*$G$78 -> 65.85 | D78: =$D$7*$G$78 -> 46.65 | E78: =$E$7*$G$78 -> 37.05 | F78: è | G78: 0.03
A79: Totals | B79: =SUM(B69:B78) -> 2515 | C79: =SUM(C69:C78) -> 2195 | D79: =SUM(D69:D78) -> 1555 | E79: =SUM(E69:E78) -> 1235 | F79: =B79+C79+D79+E79 -> 7500 | G79: =SUM(G69:G78) -> 1
A81: For 334-500 riders 12 places
A82: Placings | B82: 1D | C82: 2D | D82: 3D | E82: 4D
A83: 1st | B83: =$B$7*$G$83 -> 477.85 | C83: =$C$7*$G$83 -> 417.05 | D83: =$D$7*$G$83 -> 295.45 | E83: =$E$7*$G$83 -> 234.65 | F83: è | G83: 0.19
A84: 2nd | B84: =$B$7*$G$84 -> 377.25 | C84: =$C$7*$G$84 -> 329.25 | D84: =$D$7*$G$84 -> 233.25 | E84: =$E$7*$G$84 -> 185.25 | F84: è | G84: 0.15
A85: 3rd | B85: =$B$7*$G$85 -> 301.8 | C85: =$C$7*$G$85 -> 263.4 | D85: =$D$7*$G$85 -> 186.6 | E85: =$E$7*$G$85 -> 148.2 | F85: è | G85: 0.12
A86: 4th | B86: =$B$7*$G$86 -> 251.5 | C86: =$C$7*$G$86 -> 219.5 | D86: =$D$7*$G$86 -> 155.5 | E86: =$E$7*$G$86 -> 123.5 | F86: è | G86: 0.1
A87: 5th | B87: =$B$7*$G$87 -> 226.35 | C87: =$C$7*$G$87 -> 197.55 | D87: =$D$7*$G$87 -> 139.95 | E87: =$E$7*$G$87 -> 111.15 | F87: è | G87: 0.09
A88: 6th | B88: =$B$7*$G$88 -> 201.2 | C88: =$C$7*$G$88 -> 175.6 | D88: =$D$7*$G$88 -> 124.4 | E88: =$E$7*$G$88 -> 98.8 | F88: è | G88: 0.08
A89: 7th | B89: =$B$7*$G$89 -> 176.05 | C89: =$C$7*$G$89 -> 153.65 | D89: =$D$7*$G$89 -> 108.85 | E89: =$E$7*$G$89 -> 86.45 | F89: è | G89: 0.07
A90: 8th | B90: =$B$7*$G$90 -> 150.9 | C90: =$C$7*$G$90 -> 131.7 | D90: =$D$7*$G$90 -> 93.3 | E90: =$E$7*$G$90 -> 74.1 | F90: è | G90: 0.06
A91: 9th | B91: =$B$7*$G$91 -> 125.75 | C91: =$C$7*$G$91 -> 109.75 | D91: =$D$7*$G$91 -> 77.75 | E91: =$E$7*$G$91 -> 61.75 | F91: è | G91: 0.05
A92: 10th | B92: =$B$7*$G$92 -> 100.6 | C92: =$C$7*$G$92 -> 87.8 | D92: =$D$7*$G$92 -> 62.2 | E92: =$E$7*$G$92 -> 49.4 | F92: è | G92: 0.04
A93: 11th | B93: =$B$7*$G$93 -> 75.45 | C93: =$C$7*$G$93 -> 65.85 | D93: =$D$7*$G$93 -> 46.65 | E93: =$E$7*$G$93 -> 37.05 | F93: è | G93: 0.03
A94: 12th | B94: =$B$7*$G$94 -> 50.3 | C94: =$C$7*$G$94 -> 43.9 | D94: =$D$7*$G$94 -> 31.1 | E94: =$E$7*$G$94 -> 24.7 | F94: è | G94: 0.02
A95: Totals | B95: =SUM(B83:B94) -> 2515 | C95: =SUM(C83:C94) -> 2195 | D95: 1555 | E95: 1235 | F95: =B95+C95+D95+E95 -> 7500 | G95: =SUM(G83:G94) -> 1
A97: For 501-750 riders 15 places
A98: Placings | B98: 1D | C98: 2D | D98: 3D | E98: 4D
A99: 1st | B99: =$B$7*$G$99 -> 452.7 | C99: =$C$7*$G$99 -> 395.1 | D99: =$D$7*$G$99 -> 279.9 | E99: =$E$7*$G$99 -> 222.3 | F99: è | G99: 0.18
A100: 2nd | B100: =$B$7*$G$100 -> 377.25 | C100: =$C$7*$G$100 -> 329.25 | D100: =$D$7*$G$100 -> 233.25 | E100: =$E$7*$G$100 -> 185.25 | F100: è | G100: 0.15
A101: 3rd | B101: =$B$7*$G$101 -> 301.8 | C101: =$C$7*$G$101 -> 263.4 | D101: =$D$7*$G$101 -> 186.6 | E101: =$E$7*$G$101 -> 148.2 | F101: è | G101: 0.12
A102: 4th | B102: =$B$7*$G$102 -> 251.5 | C102: =$C$7*$G$102 -> 219.5 | D102: =$D$7*$G$102 -> 155.5 | E102: =$E$7*$G$102 -> 123.5 | F102: è | G102: 0.1
A103: 5th | B103: =$B$7*$G$103 -> 213.775 | C103: =$C$7*$G$103 -> 186.575 | D103: =$D$7*$G$103 -> 132.175 | E103: =$E$7*$G$103 -> 104.975 | F103: è | G103: 0.085
A104: 6th | B104: =$B$7*$G$104 -> 176.05 | C104: =$C$7*$G$104 -> 153.65 | D104: =$D$7*$G$104 -> 108.85 | E104: =$E$7*$G$104 -> 86.45 | F104: è | G104: 0.07
A105: 7th | B105: =$B$7*$G$105 -> 150.9 | C105: =$C$7*$G$105 -> 131.7 | D105: =$D$7*$G$105 -> 93.3 | E105: =$E$7*$G$105 -> 74.1 | F105: è | G105: 0.06
A106: 8th | B106: =$B$7*$G$106 -> 125.75 | C106: =$C$7*$G$106 -> 109.75 | D106: =$D$7*$G$106 -> 77.75 | E106: =$E$7*$G$106 -> 61.75 | F106: è | G106: 0.05
A107: 9th | B107: =$B$7*$G$107 -> 106.8875 | C107: =$C$7*$G$107 -> 93.2875 | D107: =$D$7*$G$107 -> 66.0875 | E107: =$E$7*$G$107 -> 52.4875 | F107: è | G107: 0.0425
A108: 10th | B108: =$B$7*$G$108 -> 88.025 | C108: =$C$7*$G$108 -> 76.825 | D108: =$D$7*$G$108 -> 54.425 | E108: =$E$7*$G$108 -> 43.225 | F108: è | G108: 0.035
A109: 11th | B109: =$B$7*$G$109 -> 75.45 | C109: =$C$7*$G$109 -> 65.85 | D109: =$D$7*$G$109 -> 46.65 | E109: =$E$7*$G$109 -> 37.05 | F109: è | G109: 0.03
A110: 12th | B110: =$B$7*$G$110 -> 62.875 | C110: =$C$7*$G$110 -> 54.875 | D110: =$D$7*$G$110 -> 38.875 | E110: =$E$7*$G$110 -> 30.875 | F110: è | G110: 0.025
A111: 13th | B111: =$B$7*$G$111 -> 50.3 | C111: =$C$7*$G$111 -> 43.9 | D111: =$D$7*$G$111 -> 31.1 | E111: =$E$7*$G$111 -> 24.7 | F111: è | G111: 0.02
A112: 14th | B112: =$B$7*$G$112 -> 44.0125 | C112: =$C$7*$G$112 -> 38.4125 | D112: =$D$7*$G$112 -> 27.2125 | E112: =$E$7*$G$112 -> 21.6125 | F112: è | G112: 0.0175
A113: 15th | B113: =$B$7*$G$113 -> 37.725 | C113: =$C$7*$G$113 -> 32.925 | D113: =$D$7*$G$113 -> 23.325 | E113: =$E$7*$G$113 -> 18.525 | F113: è | G113: 0.015
A114: Totals | B114: =SUM(B99:B113) -> 2515 | C114: =SUM(C99:C113) -> 2195 | D114: 1555 | E114: 1235 | F114: =B114+C114+D114+E114 -> 7500 | G114: =SUM(G99:G113) -> 1
A116: For 751-1200 riders 20 places
A117: Placings | B117: 1D | C117: 2D | D117: 3D | E117: 4D
A118: 1st | B118: =$B$7*$G$118 -> 352.1 | C118: =$C$7*$G$118 -> 307.3 | D118: =$D$7*$G$118 -> 217.7 | E118: =$E$7*$G$118 -> 172.9 | F118: è | G118: 0.14
A119: 2nd | B119: =$B$7*$G$119 -> 276.65 | C119: =$C$7*$G$119 -> 241.45 | D119: =$D$7*$G$119 -> 171.05 | E119: =$E$7*$G$119 -> 135.85 | F119: è | G119: 0.11
A120: 3rd | B120: =$B$7*$G$120 -> 226.35 | C120: =$C$7*$G$120 -> 197.55 | D120: =$D$7*$G$120 -> 139.95 | E120: =$E$7*$G$120 -> 111.15 | F120: è | G120: 0.09
A121: 4th | B121: =$B$7*$G$121 -> 193.655 | C121: =$C$7*$G$121 -> 169.015 | D121: =$D$7*$G$121 -> 119.735 | E121: =$E$7*$G$121 -> 95.095 | F121: è | G121: 0.077
A122: 5th | B122: =$B$7*$G$122 -> 176.05 | C122: =$C$7*$G$122 -> 153.65 | D122: =$D$7*$G$122 -> 108.85 | E122: =$E$7*$G$122 -> 86.45 | F122: è | G122: 0.07
A123: 6th | B123: =$B$7*$G$123 -> 163.475 | C123: =$C$7*$G$123 -> 142.675 | D123: =$D$7*$G$123 -> 101.075 | E123: =$E$7*$G$123 -> 80.275 | F123: è | G123: 0.065
A124: 7th | B124: =$B$7*$G$124 -> 150.9 | C124: =$C$7*$G$124 -> 131.7 | D124: =$D$7*$G$124 -> 93.3 | E124: =$E$7*$G$124 -> 74.1 | F124: è | G124: 0.06
A125: 8th | B125: =$B$7*$G$125 -> 138.325 | C125: =$C$7*$G$125 -> 120.725 | D125: =$D$7*$G$125 -> 85.525 | E125: =$E$7*$G$125 -> 67.925 | F125: è | G125: 0.055
A126: 9th | B126: =$B$7*$G$126 -> 125.75 | C126: =$C$7*$G$126 -> 109.75 | D126: =$D$7*$G$126 -> 77.75 | E126: =$E$7*$G$126 -> 61.75 | F126: è | G126: 0.05
A127: 10th | B127: =$B$7*$G$127 -> 113.175 | C127: =$C$7*$G$127 -> 98.775 | D127: =$D$7*$G$127 -> 69.975 | E127: =$E$7*$G$127 -> 55.575 | F127: è | G127: 0.045
A128: 11th | B128: =$B$7*$G$128 -> 100.6 | C128: =$C$7*$G$128 -> 87.8 | D128: =$D$7*$G$128 -> 62.2 | E128: =$E$7*$G$128 -> 49.4 | F128: è | G128: 0.04
A129: 12th | B129: =$B$7*$G$129 -> 93.055 | C129: =$C$7*$G$129 -> 81.215 | D129: =$D$7*$G$129 -> 57.535 | E129: =$E$7*$G$129 -> 45.695 | F129: è | G129: 0.037
A130: 13th | B130: =$B$7*$G$130 -> 82.995 | C130: =$C$7*$G$130 -> 72.435 | D130: =$D$7*$G$130 -> 51.315 | E130: =$E$7*$G$130 -> 40.755 | F130: è | G130: 0.033
A131: 14th | B131: =$B$7*$G$131 -> 72.935 | C131: =$C$7*$G$131 -> 63.655 | D131: =$D$7*$G$131 -> 45.095 | E131: =$E$7*$G$131 -> 35.815 | F131: è | G131: 0.029
A132: 15th | B132: =$B$7*$G$132 -> 62.875 | C132: =$C$7*$G$132 -> 54.875 | D132: =$D$7*$G$132 -> 38.875 | E132: =$E$7*$G$132 -> 30.875 | F132: è | G132: 0.025
A133: 16th | B133: =$B$7*$G$133 -> 52.815 | C133: =$C$7*$G$133 -> 46.095 | D133: =$D$7*$G$133 -> 32.655 | E133: =$E$7*$G$133 -> 25.935 | F133: è | G133: 0.021
A134: 17th | B134: =$B$7*$G$134 -> 42.755 | C134: =$C$7*$G$134 -> 37.315 | D134: =$D$7*$G$134 -> 26.435 | E134: =$E$7*$G$134 -> 20.995 | F134: è | G134: 0.017
A135: 18th | B135: =$B$7*$G$135 -> 35.21 | C135: =$C$7*$G$135 -> 30.73 | D135: =$D$7*$G$135 -> 21.77 | E135: =$E$7*$G$135 -> 17.29 | F135: è | G135: 0.014
A136: 19th | B136: =$B$7*$G$136 -> 30.18 | C136: =$C$7*$G$136 -> 26.34 | D136: =$D$7*$G$136 -> 18.66 | E136: =$E$7*$G$136 -> 14.82 | F136: è | G136: 0.012
A137: 20th | B137: =$B$7*$G$137 -> 25.15 | C137: =$C$7*$G$137 -> 21.95 | D137: =$D$7*$G$137 -> 15.55 | E137: =$E$7*$G$137 -> 12.35 | F137: è | G137: 0.01
A138: Totals | B138: =SUM(B118:B137) -> 2515 | C138: =SUM(C118:C137) -> 2195 | D138: 1555 | E138: 1235 | F138: =B138+C138+D138+E138 -> 7500 | G138: =SUM(G118:G137) -> 1
A140: For 1201 or More riders 30 places
A141: Placings | B141: 1D | C141: 2D | D141: 3D | E141: 4D
A142: 1st | B142: =$B$7*$G$142 -> 301.8 | C142: =$C$7*$G$142 -> 263.4 | D142: =$D$7*$G$142 -> 186.6 | E142: =$E$7*$G$142 -> 148.2 | F142: è | G142: 0.12
A143: 2nd | B143: =$B$7*$G$143 -> 238.925 | C143: =$C$7*$G$143 -> 208.525 | D143: =$D$7*$G$143 -> 147.725 | E143: =$E$7*$G$143 -> 117.325 | F143: è | G143: 0.095
A144: 3rd | B144: =$B$7*$G$144 -> 183.595 | C144: =$C$7*$G$144 -> 160.235 | D144: =$D$7*$G$144 -> 113.515 | E144: =$E$7*$G$144 -> 90.155 | F144: è | G144: 0.073
A145: 4th | B145: =$B$7*$G$145 -> 155.93 | C145: =$C$7*$G$145 -> 136.09 | D145: =$D$7*$G$145 -> 96.41 | E145: =$E$7*$G$145 -> 76.57 | F145: è | G145: 0.062
A146: 5th | B146: =$B$7*$G$146 -> 125.75 | C146: =$C$7*$G$146 -> 109.75 | D146: =$D$7*$G$146 -> 77.75 | E146: =$E$7*$G$146 -> 61.75 | F146: è | G146: 0.05
A147: 6th | B147: =$B$7*$G$147 -> 113.175 | C147: =$C$7*$G$147 -> 98.775 | D147: =$D$7*$G$147 -> 69.975 | E147: =$E$7*$G$147 -> 55.575 | F147: è | G147: 0.045
A148: 7th | B148: =$B$7*$G$148 -> 108.145 | C148: =$C$7*$G$148 -> 94.385 | D148: =$D$7*$G$148 -> 66.865 | E148: =$E$7*$G$148 -> 53.105 | F148: è | G148: 0.043
A149: 8th | B149: =$B$7*$G$149 -> 100.6 | C149: =$C$7*$G$149 -> 87.8 | D149: =$D$7*$G$149 -> 62.2 | E149: =$E$7*$G$149 -> 49.4 | F149: è | G149: 0.04
A150: 9th | B150: =$B$7*$G$150 -> 93.055 | C150: =$C$7*$G$150 -> 81.215 | D150: =$D$7*$G$150 -> 57.535 | E150: =$E$7*$G$150 -> 45.695 | F150: è | G150: 0.037
A151: 10th | B151: =$B$7*$G$151 -> 88.025 | C151: =$C$7*$G$151 -> 76.825 | D151: =$D$7*$G$151 -> 54.425 | E151: =$E$7*$G$151 -> 43.225 | F151: è | G151: 0.035
A152: 11th | B152: =$B$7*$G$152 -> 82.995 | C152: =$C$7*$G$152 -> 72.435 | D152: =$D$7*$G$152 -> 51.315 | E152: =$E$7*$G$152 -> 40.755 | F152: è | G152: 0.033
A153: 12th | B153: =$B$7*$G$153 -> 77.965 | C153: =$C$7*$G$153 -> 68.045 | D153: =$D$7*$G$153 -> 48.205 | E153: =$E$7*$G$153 -> 38.285 | F153: è | G153: 0.031
A154: 13th | B154: =$B$7*$G$154 -> 72.935 | C154: =$C$7*$G$154 -> 63.655 | D154: =$D$7*$G$154 -> 45.095 | E154: =$E$7*$G$154 -> 35.815 | F154: è | G154: 0.029
A155: 14th | B155: =$B$7*$G$155 -> 67.905 | C155: =$C$7*$G$155 -> 59.265 | D155: =$D$7*$G$155 -> 41.985 | E155: =$E$7*$G$155 -> 33.345 | F155: è | G155: 0.027
A156: 15th | B156: =$B$7*$G$156 -> 62.875 | C156: =$C$7*$G$156 -> 54.875 | D156: =$D$7*$G$156 -> 38.875 | E156: =$E$7*$G$156 -> 30.875 | F156: è | G156: 0.025
A157: 16th | B157: =$B$7*$G$157 -> 60.36 | C157: =$C$7*$G$157 -> 52.68 | D157: =$D$7*$G$157 -> 37.32 | E157: =$E$7*$G$157 -> 29.64 | F157: è | G157: 0.024
A158: 17th | B158: =$B$7*$G$158 -> 57.845 | C158: =$C$7*$G$158 -> 50.485 | D158: =$D$7*$G$158 -> 35.765 | E158: =$E$7*$G$158 -> 28.405 | F158: è | G158: 0.023
A159: 18th | B159: =$B$7*$G$159 -> 55.33 | C159: =$C$7*$G$159 -> 48.29 | D159: =$D$7*$G$159 -> 34.21 | E159: =$E$7*$G$159 -> 27.17 | F159: è | G159: 0.022
A160: 19th | B160: =$B$7*$G$160 -> 52.815 | C160: =$C$7*$G$160 -> 46.095 | D160: =$D$7*$G$160 -> 32.655 | E160: =$E$7*$G$160 -> 25.935 | F160: è | G160: 0.021
A161: 20th | B161: =$B$7*$G$161 -> 50.3 | C161: =$C$7*$G$161 -> 43.9 | D161: =$D$7*$G$161 -> 31.1 | E161: =$E$7*$G$161 -> 24.7 | F161: è | G161: 0.02
A162: 21st | B162: =$B$7*$G$162 -> 47.785 | C162: =$C$7*$G$162 -> 41.705 | D162: =$D$7*$G$162 -> 29.545 | E162: =$E$7*$G$162 -> 23.465 | F162: è | G162: 0.019
A163: 22nd | B163: =$B$7*$G$163 -> 45.27 | C163: =$C$7*$G$163 -> 39.51 | D163: =$D$7*$G$163 -> 27.99 | E163: =$E$7*$G$163 -> 22.23 | F163: è | G163: 0.018
A164: 23rd | B164: =$B$7*$G$164 -> 42.755 | C164: =$C$7*$G$164 -> 37.315 | D164: =$D$7*$G$164 -> 26.435 | E164: =$E$7*$G$164 -> 20.995 | F164: è | G164: 0.017
A165: 24th | B165: =$B$7*$G$165 -> 40.24 | C165: =$C$7*$G$165 -> 35.12 | D165: =$D$7*$G$165 -> 24.88 | E165: =$E$7*$G$165 -> 19.76 | F165: è | G165: 0.016
A166: 25th | B166: =$B$7*$G$166 -> 37.725 | C166: =$C$7*$G$166 -> 32.925 | D166: =$D$7*$G$166 -> 23.325 | E166: =$E$7*$G$166 -> 18.525 | F166: è | G166: 0.015
A167: 26th | B167: =$B$7*$G$167 -> 35.21 | C167: =$C$7*$G$167 -> 30.73 | D167: =$D$7*$G$167 -> 21.77 | E167: =$E$7*$G$167 -> 17.29 | F167: è | G167: 0.014
A168: 27th | B168: =$B$7*$G$168 -> 32.695 | C168: =$C$7*$G$168 -> 28.535 | D168: =$D$7*$G$168 -> 20.215 | E168: =$E$7*$G$168 -> 16.055 | F168: è | G168: 0.013
A169: 28th | B169: =$B$7*$G$169 -> 30.18 | C169: =$C$7*$G$169 -> 26.34 | D169: =$D$7*$G$169 -> 18.66 | E169: =$E$7*$G$169 -> 14.82 | F169: è | G169: 0.012
A170: 29th | B170: =$B$7*$G$170 -> 27.665 | C170: =$C$7*$G$170 -> 24.145 | D170: =$D$7*$G$170 -> 17.105 | E170: =$E$7*$G$170 -> 13.585 | F170: è | G170: 0.011
A171: 30th | B171: =$B$7*$G$171 -> 25.15 | C171: =$C$7*$G$171 -> 21.95 | D171: =$D$7*$G$171 -> 15.55 | E171: =$E$7*$G$171 -> 12.35 | F171: è | G171: 0.01
A172: Totals | B172: =SUM(B142:B171) -> 2515 | C172: =SUM(C142:C171) -> 2195 | D172: =SUM(D142:D171) -> 1555 | E172: =SUM(E142:E171) -> 1235 | F172: =B172+C172+D172+E172 -> 7500 | G172: =SUM(G142:G171) -> 1

Sheet 5D Payout BBR
A1: 5D Payout BBR
A2: Entry Fee | B2: # Entries | C2: % Payback | D2: $ From Entry | E2: Added $ | F2: Total Payout | G2: Total $ Held
A3: 50 | B3: 415 | C3: 0.8 | D3: =$A$3*$C$3*$B$3 -> 16600 | E3: 2000 | F3: =($A$3*$C$3)*$B$3+$E$3 -> 18600 | G3: =$A$3*(100%-$C$3)*$B$3 -> 4150
A5: % in each D | B5: 0.3 | C5: 0.25 | D5: 0.2 | E5: 0.15 | F5: 0.1 | G5: Total % Payout | H5: =SUM(B5:F5) -> 1
B6: 1D | C6: 2D | D6: 3D | E6: 4D | F6: 5D
B7: =(($A$3*$B$3*$C$3*$B$5)+($E$3*$B$5)) -> 5580 | C7: =(($A$3*$B$3*$C$3*$C$5)+($E$3*$C$5)) -> 4650 | D7: =(($A$3*$B$3*$C$3*$D$5)+($E$3*$D$5)) -> 3720 | E7: =(($A$3*$B$3*$C$3*$E$5)+($E$3*$E$5)) -> 2790 | F7: =(($A$3*$B$3*$C$3*$F$5)+($E$3*$F$5)) -> 1860
A8: Totals | B8: =SUM(B7) -> 5580 | C8: =SUM(C7) -> 4650 | D8: 3720 | E8: 2790 | F8: 1860 | G8: =SUM(B8:F8) -> 18600
A10: For 1-25 riders 1 place
A11: Placings | B11: 1D | C11: 2D | D11: 3D | E11: 4D | F11: 5D
A12: 1st | B12: =$B$7*$H$12 -> 5580 | C12: =$C$7*$H$12 -> 4650 | D12: =$D$7*$H$12 -> 3720 | E12: =$E$7*$H$12 -> 2790 | F12: =$F$7*$H$12 -> 1860 | G12: è | H12: 1
A13: Totals | B13: =SUM(B12:B12) -> 5580 | C13: =SUM(C12:C12) -> 4650 | D13: =SUM(D12:D12) -> 3720 | E13: =SUM(E12:E12) -> 2790 | F13: =SUM(F12) -> 1860 | G13: =SUM(B13:F13) -> 18600 | H13: =SUM(H12) -> 1
A15: For 26-50 riders 2 places
A16: Placings | B16: 1D | C16: 2D | D16: 3D | E16: 4D | F16: 5D
A17: 1st | B17: =$B$7*$H$17 -> 3348 | C17: =$C$7*$H$17 -> 2790 | D17: =$D$7*$H$17 -> 2232 | E17: =$E$7*$H$17 -> 1674 | F17: =$F$7*$H$17 -> 1116 | G17: è | H17: 0.6
A18: 2nd | B18: =$B$7*$H$18 -> 2232 | C18: =$C$7*$H$18 -> 1860 | D18: =$D$7*$H$18 -> 1488 | E18: =$E$7*$H$18 -> 1116 | F18: =$F$7*$H$18 -> 744 | G18: è | H18: 0.4
A19: Totals | B19: =SUM(B17:B18) -> 5580 | C19: =SUM(C17:C18) -> 4650 | D19: =SUM(D17:D18) -> 3720 | E19: =SUM(E17:E18) -> 2790 | F19: =SUM(F17:F18) -> 1860 | G19: =SUM(B19:F19) -> 18600 | H19: =SUM(H17:H18) -> 1
A21: For 51-100 riders 3 places
A22: Placings | B22: 1D | C22: 2D | D22: 3D | E22: 4D | F22: 5D
A23: 1st | B23: =$B$7*$H$23 -> 2790 | C23: =$C$7*$H$23 -> 2325 | D23: =$D$7*$H$23 -> 1860 | E23: =$E$7*$H$23 -> 1395 | F23: =$F$7*$H$23 -> 930 | G23: è | H23: 0.5
A24: 2nd | B24: =$B$7*$H$24 -> 1674 | C24: =$C$7*$H$24 -> 1395 | D24: =$D$7*$H$24 -> 1116 | E24: =$E$7*$H$24 -> 837 | F24: =$F$7*$H$24 -> 558 | G24: è | H24: 0.3
A25: 3rd | B25: =$B$7*$H$25 -> 1116 | C25: =$C$7*$H$25 -> 930 | D25: =$D$7*$H$25 -> 744 | E25: =$E$7*$H$25 -> 558 | F25: =$F$7*$H$25 -> 372 | G25: è | H25: 0.2
A26: Totals | B26: =SUM(B23:B25) -> 5580 | C26: =SUM(C23:C25) -> 4650 | D26: =SUM(D23:D25) -> 3720 | E26: =SUM(E23:E25) -> 2790 | F26: =SUM(F23:F25) -> 1860 | G26: =SUM(B26:F26) -> 18600 | H26: =SUM(H23:H25) -> 1
A28: For 101-143 riders 4 places
A29: Placings | B29: 1D | C29: 2D | D29: 3D | E29: 4D | F29: 5D
A30: 1st | B30: =$B$7*$H$30 -> 2232 | C30: =$C$7*$H$30 -> 1860 | D30: =$D$7*$H$30 -> 1488 | E30: =$E$7*$H$30 -> 1116 | F30: =$F$7*$H$30 -> 744 | G30: è | H30: 0.4
A31: 2nd | B31: =$B$7*$H$31 -> 1674 | C31: =$C$7*$H$31 -> 1395 | D31: =$D$7*$H$31 -> 1116 | E31: =$E$7*$H$31 -> 837 | F31: =$F$7*$H$31 -> 558 | G31: è | H31: 0.3
A32: 3rd | B32: =$B$7*$H$32 -> 1116 | C32: =$C$7*$H$32 -> 930 | D32: =$D$7*$H$32 -> 744 | E32: =$E$7*$H$32 -> 558 | F32: =$F$7*$H$32 -> 372 | G32: è | H32: 0.2
A33: 4th | B33: =$B$7*$H$33 -> 558 | C33: =$C$7*$H$33 -> 465 | D33: =$D$7*$H$33 -> 372 | E33: =$E$7*$H$33 -> 279 | F33: =$F$7*$H$33 -> 186 | G33: è | H33: 0.1
A34: Totals | B34: =SUM(B30:B33) -> 5580 | C34: =SUM(C30:C33) -> 4650 | D34: =SUM(D30:D33) -> 3720 | E34: =SUM(E30:E33) -> 2790 | F34: =SUM(F30:F33) -> 1860 | G34: =SUM(B34:F34) -> 18600 | H34: =SUM(H30:H33) -> 1
A36: For 144-200 riders 5 places
A37: Placings | B37: 1D | C37: 2D | D37: 3D | E37: 4D | F37: 5D
A38: 1st | B38: =$B$7*$H$38 -> 1841.4 | C38: =$C$7*$H$38 -> 1534.5 | D38: =$D$7*$H$38 -> 1227.6 | E38: =$E$7*$H$38 -> 920.7 | F38: =$F$7*$H$38 -> 613.8 | G38: è | H38: 0.33
A39: 2nd | B39: =$B$7*$H$39 -> 1506.6 | C39: =$C$7*$H$39 -> 1255.5 | D39: =$D$7*$H$39 -> 1004.4 | E39: =$E$7*$H$39 -> 753.3 | F39: =$F$7*$H$39 -> 502.2 | G39: è | H39: 0.27
A40: 3rd | B40: =$B$7*$H$40 -> 1116 | C40: =$C$7*$H$40 -> 930 | D40: =$D$7*$H$40 -> 744 | E40: =$E$7*$H$40 -> 558 | F40: =$F$7*$H$40 -> 372 | G40: è | H40: 0.2
A41: 4th | B41: =$B$7*$H$41 -> 725.4 | C41: =$C$7*$H$41 -> 604.5 | D41: =$D$7*$H$41 -> 483.6 | E41: =$E$7*$H$41 -> 362.7 | F41: =$F$7*$H$41 -> 241.8 | G41: è | H41: 0.13
A42: 5th | B42: =$B$7*$H$42 -> 390.6 | C42: =$C$7*$H$42 -> 325.5 | D42: =$D$7*$H$42 -> 260.4 | E42: =$E$7*$H$42 -> 195.3 | F42: =$F$7*$H$42 -> 130.2 | G42: è | H42: 0.07
A43: Totals | B43: =SUM(B38:B42) -> 5580 | C43: =SUM(C38:C42) -> 4650 | D43: =SUM(D38:D42) -> 3720 | E43: =SUM(E38:E42) -> 2790 | F43: =SUM(F38:F42) -> 1860 | G43: =SUM(B43:F43) -> 18600 | H43: =SUM(H38:H42) -> 1
A45: For 201-250 riders 6 places
A46: Placings | B46: 1D | C46: 2D | D46: 3D | E46: 4D | F46: 5D
A47: 1st | B47: =$B$7*$H$47 -> 1618.2 | C47: =$C$7*$H$47 -> 1348.5 | D47: =$D$7*$H$47 -> 1078.8 | E47: =$E$7*$H$47 -> 809.1 | F47: =$F$7*$H$47 -> 539.4 | G47: è | H47: 0.29
A48: 2nd | B48: =$B$7*$H$48 -> 1339.2 | C48: =$C$7*$H$48 -> 1116 | D48: =$D$7*$H$48 -> 892.8 | E48: =$E$7*$H$48 -> 669.6 | F48: =$F$7*$H$48 -> 446.4 | G48: è | H48: 0.24
A49: 3rd | B49: =$B$7*$H$49 -> 1060.2 | C49: =$C$7*$H$49 -> 883.5 | D49: =$D$7*$H$49 -> 706.8 | E49: =$E$7*$H$49 -> 530.1 | F49: =$F$7*$H$49 -> 353.4 | G49: è | H49: 0.19
A50: 4th | B50: =$B$7*$H$50 -> 781.2 | C50: =$C$7*$H$50 -> 651 | D50: =$D$7*$H$50 -> 520.8 | E50: =$E$7*$H$50 -> 390.6 | F50: =$F$7*$H$50 -> 260.4 | G50: è | H50: 0.14
A51: 5th | B51: =$B$7*$H$51 -> 502.2 | C51: =$C$7*$H$51 -> 418.5 | D51: =$D$7*$H$51 -> 334.8 | E51: =$E$7*$H$51 -> 251.1 | F51: =$F$7*$H$51 -> 167.4 | G51: è | H51: 0.09
A52: 6th | B52: =$B$7*$H$52 -> 279 | C52: =$C$7*$H$52 -> 232.5 | D52: =$D$7*$H$52 -> 186 | E52: =$E$7*$H$52 -> 139.5 | F52: =$F$7*$H$52 -> 93 | G52: è | H52: 0.05
A53: Totals | B53: =SUM(B47:B52) -> 5580 | C53: =SUM(C47:C52) -> 4650 | D53: =SUM(D47:D52) -> 3720 | E53: =SUM(E47:E52) -> 2790 | F53: =SUM(F47:F52) -> 1860 | G53: =SUM(B53:F53) -> 18600 | H53: =SUM(H47:H52) -> 1
A55: For 251-333 riders 8 places
A56: Placings | B56: 1D | C56: 2D | D56: 3D | E56: 4D | F56: 5D
A57: 1st | B57: =$B$7*$H$57 -> 1339.2 | C57: =$C$7*$H$57 -> 1116 | D57: =$D$7*$H$57 -> 892.8 | E57: =$E$7*$H$57 -> 669.6 | F57: =$F$7*$H$57 -> 446.4 | G57: è | H57: 0.24
A58: 2nd | B58: =$B$7*$H$58 -> 1116 | C58: =$C$7*$H$58 -> 930 | D58: =$D$7*$H$58 -> 744 | E58: =$E$7*$H$58 -> 558 | F58: =$F$7*$H$58 -> 372 | G58: è | H58: 0.2
A59: 3rd | B59: =$B$7*$H$59 -> 948.6 | C59: =$C$7*$H$59 -> 790.5 | D59: =$D$7*$H$59 -> 632.4 | E59: =$E$7*$H$59 -> 474.3 | F59: =$F$7*$H$59 -> 316.2 | G59: è | H59: 0.17
A60: 4th | B60: =$B$7*$H$60 -> 725.4 | C60: =$C$7*$H$60 -> 604.5 | D60: =$D$7*$H$60 -> 483.6 | E60: =$E$7*$H$60 -> 362.7 | F60: =$F$7*$H$60 -> 241.8 | G60: è | H60: 0.13
A61: 5th | B61: =$B$7*$H$61 -> 558 | C61: =$C$7*$H$61 -> 465 | D61: =$D$7*$H$61 -> 372 | E61: =$E$7*$H$61 -> 279 | F61: =$F$7*$H$61 -> 186 | G61: è | H61: 0.1
A62: 6th | B62: =$B$7*$H$62 -> 390.6 | C62: =$C$7*$H$62 -> 325.5 | D62: =$D$7*$H$62 -> 260.4 | E62: =$E$7*$H$62 -> 195.3 | F62: =$F$7*$H$62 -> 130.2 | G62: è | H62: 0.07
A63: 7th | B63: =$B$7*$H$63 -> 279 | C63: =$C$7*$H$63 -> 232.5 | D63: =$D$7*$H$63 -> 186 | E63: =$E$7*$H$63 -> 139.5 | F63: =$F$7*$H$63 -> 93 | G63: è | H63: 0.05
A64: 8th | B64: =$B$7*$H$64 -> 223.2 | C64: =$C$7*$H$64 -> 186 | D64: =$D$7*$H$64 -> 148.8 | E64: =$E$7*$H$64 -> 111.6 | F64: =$F$7*$H$64 -> 74.4 | G64: è | H64: 0.04
A65: Totals | B65: =SUM(B57:B64) -> 5580 | C65: =SUM(C57:C64) -> 4650 | D65: =SUM(D57:D64) -> 3720 | E65: =SUM(E57:E64) -> 2790 | F65: =SUM(F57:F64) -> 1860 | G65: =SUM(B65:F65) -> 18600 | H65: =SUM(H57:H64) -> 1
A67: For 334-500 riders 10 places
A68: Placings | B68: 1D | C68: 2D | D68: 3D | E68: 4D | F68: 5D
A69: 1st | B69: =$B$7*$H$69 -> 1171.8 | C69: =$C$7*$H$69 -> 976.5 | D69: =$D$7*$H$69 -> 781.2 | E69: =$E$7*$H$69 -> 585.9 | F69: =$F$7*$H$69 -> 390.6 | G69: è | H69: 0.21
A70: 2nd | B70: =$B$7*$H$70 -> 1004.4 | C70: =$C$7*$H$70 -> 837 | D70: =$D$7*$H$70 -> 669.6 | E70: =$E$7*$H$70 -> 502.2 | F70: =$F$7*$H$70 -> 334.8 | G70: è | H70: 0.18
A71: 3rd | B71: =$B$7*$H$71 -> 837 | C71: =$C$7*$H$71 -> 697.5 | D71: =$D$7*$H$71 -> 558 | E71: =$E$7*$H$71 -> 418.5 | F71: =$F$7*$H$71 -> 279 | G71: è | H71: 0.15
A72: 4th | B72: =$B$7*$H$72 -> 669.6 | C72: =$C$7*$H$72 -> 558 | D72: =$D$7*$H$72 -> 446.4 | E72: =$E$7*$H$72 -> 334.8 | F72: =$F$7*$H$72 -> 223.2 | G72: è | H72: 0.12
A73: 5th | B73: =$B$7*$H$73 -> 502.2 | C73: =$C$7*$H$73 -> 418.5 | D73: =$D$7*$H$73 -> 334.8 | E73: =$E$7*$H$73 -> 251.1 | F73: =$F$7*$H$73 -> 167.4 | G73: è | H73: 0.09
A74: 6th | B74: =$B$7*$H$74 -> 390.6 | C74: =$C$7*$H$74 -> 325.5 | D74: =$D$7*$H$74 -> 260.4 | E74: =$E$7*$H$74 -> 195.3 | F74: =$F$7*$H$74 -> 130.2 | G74: è | H74: 0.07
A75: 7th | B75: =$B$7*$H$75 -> 334.8 | C75: =$C$7*$H$75 -> 279 | D75: =$D$7*$H$75 -> 223.2 | E75: =$E$7*$H$75 -> 167.4 | F75: =$F$7*$H$75 -> 111.6 | G75: è | H75: 0.06
A76: 8th | B76: =$B$7*$H$76 -> 279 | C76: =$C$7*$H$76 -> 232.5 | D76: =$D$7*$H$76 -> 186 | E76: =$E$7*$H$76 -> 139.5 | F76: =$F$7*$H$76 -> 93 | G76: è | H76: 0.05
A77: 9th | B77: =$B$7*$H$77 -> 223.2 | C77: =$C$7*$H$77 -> 186 | D77: =$D$7*$H$77 -> 148.8 | E77: =$E$7*$H$77 -> 111.6 | F77: =$F$7*$H$77 -> 74.4 | G77: è | H77: 0.04
A78: 10th | B78: =$B$7*$H$78 -> 167.4 | C78: =$C$7*$H$78 -> 139.5 | D78: =$D$7*$H$78 -> 111.6 | E78: =$E$7*$H$78 -> 83.7 | F78: =$F$7*$H$78 -> 55.8 | G78: è | H78: 0.03
A79: Totals | B79: =SUM(B69:B78) -> 5580 | C79: =SUM(C69:C78) -> 4650 | D79: 3720 | E79: 2790 | F79: 1860 | G79: =SUM(B79:F79) -> 18600 | H79: =SUM(H69:H78) -> 1
A81: For 501-666 riders 12 places
A82: Placings | B82: 1D | C82: 2D | D82: 3D | E82: 4D | F82: 5D
A83: 1st | B83: =$B$7*$H$83 -> 1060.2 | C83: =$C$7*$H$83 -> 883.5 | D83: =$D$7*$H$83 -> 706.8 | E83: =$E$7*$H$83 -> 530.1 | F83: =$F$7*$H$83 -> 353.4 | G83: è | H83: 0.19
A84: 2nd | B84: =$B$7*$H$84 -> 837 | C84: =$C$7*$H$84 -> 697.5 | D84: =$D$7*$H$84 -> 558 | E84: =$E$7*$H$84 -> 418.5 | F84: =$F$7*$H$84 -> 279 | G84: è | H84: 0.15
A85: 3rd | B85: =$B$7*$H$85 -> 669.6 | C85: =$C$7*$H$85 -> 558 | D85: =$D$7*$H$85 -> 446.4 | E85: =$E$7*$H$85 -> 334.8 | F85: =$F$7*$H$85 -> 223.2 | G85: è | H85: 0.12
A86: 4th | B86: =$B$7*$H$86 -> 558 | C86: =$C$7*$H$86 -> 465 | D86: =$D$7*$H$86 -> 372 | E86: =$E$7*$H$86 -> 279 | F86: =$F$7*$H$86 -> 186 | G86: è | H86: 0.1
A87: 5th | B87: =$B$7*$H$87 -> 502.2 | C87: =$C$7*$H$87 -> 418.5 | D87: =$D$7*$H$87 -> 334.8 | E87: =$E$7*$H$87 -> 251.1 | F87: =$F$7*$H$87 -> 167.4 | G87: è | H87: 0.09
A88: 6th | B88: =$B$7*$H$88 -> 446.4 | C88: =$C$7*$H$88 -> 372 | D88: =$D$7*$H$88 -> 297.6 | E88: =$E$7*$H$88 -> 223.2 | F88: =$F$7*$H$88 -> 148.8 | G88: è | H88: 0.08
A89: 7th | B89: =$B$7*$H$89 -> 390.6 | C89: =$C$7*$H$89 -> 325.5 | D89: =$D$7*$H$89 -> 260.4 | E89: =$E$7*$H$89 -> 195.3 | F89: =$F$7*$H$89 -> 130.2 | G89: è | H89: 0.07
A90: 8th | B90: =$B$7*$H$90 -> 334.8 | C90: =$C$7*$H$90 -> 279 | D90: =$D$7*$H$90 -> 223.2 | E90: =$E$7*$H$90 -> 167.4 | F90: =$F$7*$H$90 -> 111.6 | G90: è | H90: 0.06
A91: 9th | B91: =$B$7*$H$91 -> 279 | C91: =$C$7*$H$91 -> 232.5 | D91: =$D$7*$H$91 -> 186 | E91: =$E$7*$H$91 -> 139.5 | F91: =$F$7*$H$91 -> 93 | G91: è | H91: 0.05
A92: 10th | B92: =$B$7*$H$92 -> 223.2 | C92: =$C$7*$H$92 -> 186 | D92: =$D$7*$H$92 -> 148.8 | E92: =$E$7*$H$92 -> 111.6 | F92: =$F$7*$H$92 -> 74.4 | G92: è | H92: 0.04
A93: 11th | B93: =$B$7*$H$93 -> 167.4 | C93: =$C$7*$H$93 -> 139.5 | D93: =$D$7*$H$93 -> 111.6 | E93: =$E$7*$H$93 -> 83.7 | F93: =$F$7*$H$93 -> 55.8 | G93: è | H93: 0.03
A94: 12th | B94: =$B$7*$H$94 -> 111.6 | C94: =$C$7*$H$94 -> 93 | D94: =$D$7*$H$94 -> 74.4 | E94: =$E$7*$H$94 -> 55.8 | F94: =$F$7*$H$94 -> 37.2 | G94: è | H94: 0.02
A95: Totals | B95: =SUM(B83:B94) -> 5580 | C95: =SUM(C83:C94) -> 4650 | D95: =SUM(D83:D94) -> 3720 | E95: =SUM(E83:E94) -> 2790 | F95: =SUM(F83:F94) -> 1860 | G95: =SUM(B95:F95) -> 18600 | H95: =SUM(H83:H94) -> 1
A97: For 667-1000 riders 15 places
A98: Placings | B98: 1D | C98: 2D | D98: 3D | E98: 4D | F98: 5D
A99: 1st | B99: =$B$7*$H$99 -> 1004.4 | C99: =$C$7*$H$99 -> 837 | D99: =$D$7*$H$99 -> 669.6 | E99: =$E$7*$H$99 -> 502.2 | F99: =$F$7*$H$99 -> 334.8 | G99: è | H99: 0.18
A100: 2nd | B100: =$B$7*$H$100 -> 837 | C100: =$C$7*$H$100 -> 697.5 | D100: =$D$7*$H$100 -> 558 | E100: =$E$7*$H$100 -> 418.5 | F100: =$F$7*$H$100 -> 279 | G100: è | H100: 0.15
A101: 3rd | B101: =$B$7*$H$101 -> 669.6 | C101: =$C$7*$H$101 -> 558 | D101: =$D$7*$H$101 -> 446.4 | E101: =$E$7*$H$101 -> 334.8 | F101: =$F$7*$H$101 -> 223.2 | G101: è | H101: 0.12
A102: 4th | B102: =$B$7*$H$102 -> 558 | C102: =$C$7*$H$102 -> 465 | D102: =$D$7*$H$102 -> 372 | E102: =$E$7*$H$102 -> 279 | F102: =$F$7*$H$102 -> 186 | G102: è | H102: 0.1
A103: 5th | B103: =$B$7*$H$103 -> 474.3 | C103: =$C$7*$H$103 -> 395.25 | D103: =$D$7*$H$103 -> 316.2 | E103: =$E$7*$H$103 -> 237.15 | F103: =$F$7*$H$103 -> 158.1 | G103: è | H103: 0.085
A104: 6th | B104: =$B$7*$H$104 -> 390.6 | C104: =$C$7*$H$104 -> 325.5 | D104: =$D$7*$H$104 -> 260.4 | E104: =$E$7*$H$104 -> 195.3 | F104: =$F$7*$H$104 -> 130.2 | G104: è | H104: 0.07
A105: 7th | B105: =$B$7*$H$105 -> 334.8 | C105: =$C$7*$H$105 -> 279 | D105: =$D$7*$H$105 -> 223.2 | E105: =$E$7*$H$105 -> 167.4 | F105: =$F$7*$H$105 -> 111.6 | G105: è | H105: 0.06
A106: 8th | B106: =$B$7*$H$106 -> 279 | C106: =$C$7*$H$106 -> 232.5 | D106: =$D$7*$H$106 -> 186 | E106: =$E$7*$H$106 -> 139.5 | F106: =$F$7*$H$106 -> 93 | G106: è | H106: 0.05
A107: 9th | B107: =$B$7*$H$107 -> 237.15 | C107: =$C$7*$H$107 -> 197.625 | D107: =$D$7*$H$107 -> 158.1 | E107: =$E$7*$H$107 -> 118.575 | F107: =$F$7*$H$107 -> 79.05 | G107: è | H107: 0.0425
A108: 10th | B108: =$B$7*$H$108 -> 195.3 | C108: =$C$7*$H$108 -> 162.75 | D108: =$D$7*$H$108 -> 130.2 | E108: =$E$7*$H$108 -> 97.65 | F108: =$F$7*$H$108 -> 65.1 | G108: è | H108: 0.035
A109: 11th | B109: =$B$7*$H$109 -> 167.4 | C109: =$C$7*$H$109 -> 139.5 | D109: =$D$7*$H$109 -> 111.6 | E109: =$E$7*$H$109 -> 83.7 | F109: =$F$7*$H$109 -> 55.8 | G109: è | H109: 0.03
A110: 12th | B110: =$B$7*$H$110 -> 139.5 | C110: =$C$7*$H$110 -> 116.25 | D110: =$D$7*$H$110 -> 93 | E110: =$E$7*$H$110 -> 69.75 | F110: =$F$7*$H$110 -> 46.5 | G110: è | H110: 0.025
A111: 13th | B111: =$B$7*$H$111 -> 111.6 | C111: =$C$7*$H$111 -> 93 | D111: =$D$7*$H$111 -> 74.4 | E111: =$E$7*$H$111 -> 55.8 | F111: =$F$7*$H$111 -> 37.2 | G111: è | H111: 0.02
A112: 14th | B112: =$B$7*$H$112 -> 97.65 | C112: =$C$7*$H$112 -> 81.375 | D112: =$D$7*$H$112 -> 65.1 | E112: =$E$7*$H$112 -> 48.825 | F112: =$F$7*$H$112 -> 32.55 | G112: è | H112: 0.0175
A113: 15th | B113: =$B$7*$H$113 -> 83.7 | C113: =$C$7*$H$113 -> 69.75 | D113: =$D$7*$H$113 -> 55.8 | E113: =$E$7*$H$113 -> 41.85 | F113: =$F$7*$H$113 -> 27.9 | G113: è | H113: 0.015
A114: Totals | B114: =SUM(B99:B113) -> 5580 | C114: =SUM(C99:C113) -> 4650 | D114: =SUM(D99:D113) -> 3720 | E114: =SUM(E99:E113) -> 2790 | F114: =SUM(F99:F113) -> 1860 | G114: =SUM(B114:F114) -> 18600 | H114: =SUM(H99:H113) -> 1
A116: For 1001-1500 riders 20 places
A117: Placings | B117: 1D | C117: 2D | D117: 3D | E117: 4D | F117: 5D
A118: 1st | B118: =$B$7*$H$118 -> 781.2 | C118: =$C$7*$H$118 -> 651 | D118: =$D$7*$H$118 -> 520.8 | E118: =$E$7*$H$118 -> 390.6 | F118: =$F$7*$H$118 -> 260.4 | G118: è | H118: 0.14
A119: 2nd | B119: =$B$7*$H$119 -> 613.8 | C119: =$C$7*$H$119 -> 511.5 | D119: =$D$7*$H$119 -> 409.2 | E119: =$E$7*$H$119 -> 306.9 | F119: =$F$7*$H$119 -> 204.6 | G119: è | H119: 0.11
A120: 3rd | B120: =$B$7*$H$120 -> 502.2 | C120: =$C$7*$H$120 -> 418.5 | D120: =$D$7*$H$120 -> 334.8 | E120: =$E$7*$H$120 -> 251.1 | F120: =$F$7*$H$120 -> 167.4 | G120: è | H120: 0.09
A121: 4th | B121: =$B$7*$H$121 -> 429.66 | C121: =$C$7*$H$121 -> 358.05 | D121: =$D$7*$H$121 -> 286.44 | E121: =$E$7*$H$121 -> 214.83 | F121: =$F$7*$H$121 -> 143.22 | G121: è | H121: 0.077
A122: 5th | B122: =$B$7*$H$122 -> 390.6 | C122: =$C$7*$H$122 -> 325.5 | D122: =$D$7*$H$122 -> 260.4 | E122: =$E$7*$H$122 -> 195.3 | F122: =$F$7*$H$122 -> 130.2 | G122: è | H122: 0.07
A123: 6th | B123: =$B$7*$H$123 -> 362.7 | C123: =$C$7*$H$123 -> 302.25 | D123: =$D$7*$H$123 -> 241.8 | E123: =$E$7*$H$123 -> 181.35 | F123: =$F$7*$H$123 -> 120.9 | G123: è | H123: 0.065
A124: 7th | B124: =$B$7*$H$124 -> 334.8 | C124: =$C$7*$H$124 -> 279 | D124: =$D$7*$H$124 -> 223.2 | E124: =$E$7*$H$124 -> 167.4 | F124: =$F$7*$H$124 -> 111.6 | G124: è | H124: 0.06
A125: 8th | B125: =$B$7*$H$125 -> 306.9 | C125: =$C$7*$H$125 -> 255.75 | D125: =$D$7*$H$125 -> 204.6 | E125: =$E$7*$H$125 -> 153.45 | F125: =$F$7*$H$125 -> 102.3 | G125: è | H125: 0.055
A126: 9th | B126: =$B$7*$H$126 -> 279 | C126: =$C$7*$H$126 -> 232.5 | D126: =$D$7*$H$126 -> 186 | E126: =$E$7*$H$126 -> 139.5 | F126: =$F$7*$H$126 -> 93 | G126: è | H126: 0.05
A127: 10th | B127: =$B$7*$H$127 -> 251.1 | C127: =$C$7*$H$127 -> 209.25 | D127: =$D$7*$H$127 -> 167.4 | E127: =$E$7*$H$127 -> 125.55 | F127: =$F$7*$H$127 -> 83.7 | G127: è | H127: 0.045
A128: 11th | B128: =$B$7*$H$128 -> 223.2 | C128: =$C$7*$H$128 -> 186 | D128: =$D$7*$H$128 -> 148.8 | E128: =$E$7*$H$128 -> 111.6 | F128: =$F$7*$H$128 -> 74.4 | G128: è | H128: 0.04
A129: 12th | B129: =$B$7*$H$129 -> 206.46 | C129: =$C$7*$H$129 -> 172.05 | D129: =$D$7*$H$129 -> 137.64 | E129: =$E$7*$H$129 -> 103.23 | F129: =$F$7*$H$129 -> 68.82 | G129: è | H129: 0.037
A130: 13th | B130: =$B$7*$H$130 -> 184.14 | C130: =$C$7*$H$130 -> 153.45 | D130: =$D$7*$H$130 -> 122.76 | E130: =$E$7*$H$130 -> 92.07 | F130: =$F$7*$H$130 -> 61.38 | G130: è | H130: 0.033
A131: 14th | B131: =$B$7*$H$131 -> 161.82 | C131: =$C$7*$H$131 -> 134.85 | D131: =$D$7*$H$131 -> 107.88 | E131: =$E$7*$H$131 -> 80.91 | F131: =$F$7*$H$131 -> 53.94 | G131: è | H131: 0.029
A132: 15th | B132: =$B$7*$H$132 -> 139.5 | C132: =$C$7*$H$132 -> 116.25 | D132: =$D$7*$H$132 -> 93 | E132: =$E$7*$H$132 -> 69.75 | F132: =$F$7*$H$132 -> 46.5 | G132: è | H132: 0.025
A133: 16th | B133: =$B$7*$H$133 -> 117.18 | C133: =$C$7*$H$133 -> 97.65 | D133: =$D$7*$H$133 -> 78.12 | E133: =$E$7*$H$133 -> 58.59 | F133: =$F$7*$H$133 -> 39.06 | G133: è | H133: 0.021
A134: 17th | B134: =$B$7*$H$134 -> 94.86 | C134: =$C$7*$H$134 -> 79.05 | D134: =$D$7*$H$134 -> 63.24 | E134: =$E$7*$H$134 -> 47.43 | F134: =$F$7*$H$134 -> 31.62 | G134: è | H134: 0.017
A135: 18th | B135: =$B$7*$H$135 -> 78.12 | C135: =$C$7*$H$135 -> 65.1 | D135: =$D$7*$H$135 -> 52.08 | E135: =$E$7*$H$135 -> 39.06 | F135: =$F$7*$H$135 -> 26.04 | G135: è | H135: 0.014
A136: 19th | B136: =$B$7*$H$136 -> 66.96 | C136: =$C$7*$H$136 -> 55.8 | D136: =$D$7*$H$136 -> 44.64 | E136: =$E$7*$H$136 -> 33.48 | F136: =$F$7*$H$136 -> 22.32 | G136: è | H136: 0.012
A137: 20th | B137: =$B$7*$H$137 -> 55.8 | C137: =$C$7*$H$137 -> 46.5 | D137: =$D$7*$H$137 -> 37.2 | E137: =$E$7*$H$137 -> 27.9 | F137: =$F$7*$H$137 -> 18.6 | G137: è | H137: 0.01
A138: Totals | B138: =SUM(B118:B137) -> 5580 | C138: =SUM(C118:C137) -> 4650 | D138: 3720 | E138: 2790 | F138: 1860 | G138: =SUM(B138:F138) -> 18600 | H138: =SUM(H118:H137) -> 1
A140: For 1501 or More riders 30 places
A141: Placings | B141: 1D | C141: 2D | D141: 3D | E141: 4D | F141: 5D
A142: 1st | B142: =$B$7*$H142 -> 669.6 | C142: =$C$7*$H142 -> 558 | D142: =$D$7*$H142 -> 446.4 | E142: =$E$7*$H142 -> 334.8 | F142: =$F$7*$H142 -> 223.2 | G142: è | H142: 0.12
A143: 2nd | B143: =$B$7*$H143 -> 530.1 | C143: 441.75 | D143: 353.4 | E143: 265.05 | F143: 176.7 | G143: è | H143: 0.095
A144: 3rd | B144: =$B$7*$H144 -> 407.34 | C144: 339.45 | D144: 271.56 | E144: 203.67 | F144: 135.78 | G144: è | H144: 0.073
A145: 4th | B145: =$B$7*$H145 -> 345.96 | C145: 288.3 | D145: 230.64 | E145: 172.98 | F145: 115.32 | G145: è | H145: 0.062
A146: 5th | B146: 279 | C146: 232.5 | D146: 186 | E146: 139.5 | F146: 93 | G146: è | H146: 0.05
A147: 6th | B147: 251.1 | C147: 209.25 | D147: 167.4 | E147: 125.55 | F147: 83.7 | G147: è | H147: 0.045
A148: 7th | B148: 239.94 | C148: 199.95 | D148: 159.96 | E148: 119.97 | F148: 79.98 | G148: è | H148: 0.043
A149: 8th | B149: 223.2 | C149: 186 | D149: 148.8 | E149: 111.6 | F149: 74.4 | G149: è | H149: 0.04
A150: 9th | B150: 206.46 | C150: 172.05 | D150: 137.64 | E150: 103.23 | F150: 68.82 | G150: è | H150: 0.037
A151: 10th | B151: 195.3 | C151: 162.75 | D151: 130.2 | E151: 97.65 | F151: 65.1 | G151: è | H151: 0.035
A152: 11th | B152: 184.14 | C152: 153.45 | D152: 122.76 | E152: 92.07 | F152: 61.38 | G152: è | H152: 0.033
A153: 12th | B153: 172.98 | C153: 144.15 | D153: 115.32 | E153: 86.49 | F153: 57.66 | G153: è | H153: 0.031
A154: 13th | B154: 161.82 | C154: 134.85 | D154: 107.88 | E154: 80.91 | F154: 53.94 | G154: è | H154: 0.029
A155: 14th | B155: 150.66 | C155: 125.55 | D155: 100.44 | E155: 75.33 | F155: 50.22 | G155: è | H155: 0.027
A156: 15th | B156: 139.5 | C156: 116.25 | D156: 93 | E156: 69.75 | F156: 46.5 | G156: è | H156: 0.025
A157: 16th | B157: 133.92 | C157: 111.6 | D157: 89.28 | E157: 66.96 | F157: 44.64 | G157: è | H157: 0.024
A158: 17th | B158: 128.34 | C158: 106.95 | D158: 85.56 | E158: 64.17 | F158: 42.78 | G158: è | H158: 0.023
A159: 18th | B159: 122.76 | C159: 102.3 | D159: 81.84 | E159: 61.38 | F159: 40.92 | G159: è | H159: 0.022
A160: 19th | B160: 117.18 | C160: 97.65 | D160: 78.12 | E160: 58.59 | F160: 39.06 | G160: è | H160: 0.021
A161: 20th | B161: 111.6 | C161: 93 | D161: 74.4 | E161: 55.8 | F161: 37.2 | G161: è | H161: 0.02
A162: 21st | B162: 106.02 | C162: 88.35 | D162: 70.68 | E162: 53.01 | F162: 35.34 | G162: è | H162: 0.019
A163: 22nd | B163: 100.44 | C163: 83.7 | D163: 66.96 | E163: 50.22 | F163: 33.48 | G163: è | H163: 0.018
A164: 23rd | B164: 94.86 | C164: 79.05 | D164: 63.24 | E164: 47.43 | F164: 31.62 | G164: è | H164: 0.017
A165: 24th | B165: 89.28 | C165: 74.4 | D165: 59.52 | E165: 44.64 | F165: 29.76 | G165: è | H165: 0.016
A166: 25th | B166: 83.7 | C166: 69.75 | D166: 55.8 | E166: 41.85 | F166: 27.9 | G166: è | H166: 0.015
A167: 26th | B167: 78.12 | C167: 65.1 | D167: 52.08 | E167: 39.06 | F167: 26.04 | G167: è | H167: 0.014
A168: 27th | B168: 72.54 | C168: 60.45 | D168: 48.36 | E168: 36.27 | F168: 24.18 | G168: è | H168: 0.013
A169: 28th | B169: 66.96 | C169: 55.8 | D169: 44.64 | E169: 33.48 | F169: 22.32 | G169: è | H169: 0.012
A170: 29th | B170: 61.38 | C170: 51.15 | D170: 40.92 | E170: 30.69 | F170: 20.46 | G170: è | H170: 0.011
A171: 30th | B171: 55.8 | C171: 46.5 | D171: 37.2 | E171: 27.9 | F171: 18.6 | G171: è | H171: 0.01
A172: Totals | B172: =SUM(B142:B171) -> 5580 | C172: =SUM(C142:C171) -> 4650 | D172: 3720 | E172: 2790 | F172: 1860 | G172: =SUM(B172:F172) -> 18600 | H172: =SUM(H142:H171) -> 1

Sheet DON'T TOUCH (hidden)
A2: Yes | C2: S | D2: 5 | E2: X
C3: A | D3: 10
C4: Y | D4: 15
C5: P | D5: BP
D6: SCR
